Workbook

Sheet ALIMOVINS
B1: fabrice.ranoux@educagri.fr
B3: Rationnement des ovins
B4: Fabrice RANOUX - LYCEE AGRICOLE du BOURBONNAIS - BP 1721 - 03017 MOULINS cedex - Tous droits réservés
B10: Version utilisable avec Microsoft® Excel 2010 et au-delà
C11: Code de déverrouillage → ctrl

Sheet ACCUEIL
B2: ALIM'ovins(v. 5.1)
B3: Rationnement des ovins
B4: Fabrice RANOUX - Lycée Agricole du Bourbonnais - BP 1721 - 03017 MOULINS cedex - Tous droits réservés
C7: RATION | E7: Etablissement d'une ration | H7: Cliquez
C10: BILAN | E10: Bilan alimentaire et coût | H10: Cliquez
C13: COUT | E13: Formulation d'aliment et coût de concentré | H13: Cliquez
C16: PREVISION | E16: Prévision de la valeur alimentaire des aliments du commerce | H16: Cliquez
C19: ALIMENTS | E19: Saisie de mes nouveaux aliments | H19: Cliquez
C22: FOURRAGES | E22: Bilan fourrager du troupeau | H22: Cliquez
C25: AGNEAUX | E25: Besoins des agneaux à l'engrais | H25: Cliquez
C28: PATURAGE | E28: Jours d'avance de pâturage | H28: Cliquez
C30: Les saisies effectuent uniquement dans les cases "blanches"
C31: Les cases "bleues" correspondent à des menus déroulants

Sheet PREVISION
B2: ALIM'ovins(v. 5.1)
B3: Rationnement des ovins
C5: Prévision
A7: Prévision de la valeur alimentaire d'un concentré du commerce (à partir des constituants analytiques)
B9: Valeurs d'analyse pour 100 g | D9: Saisissez les constituants | I9: Valeurs calculées | M9: Valeurs d'analyse
B10: Calculs effectués à partir des équations INRA | I10: MS | J10: =IF(D12="","",100-D12) ->  | K10: % | N10: Saisissez les constituants
B12: Humidité | F12: % | I12: UFL | J12: =IF(D12="","",((118+(0.256*D14)+(1.58*D16)-(1.02*D18)-(2.07*I27))*(J10/10000))*(C36/1000)) ->  | M12: P (Phosphore) | O12: %
B14: Protéines Brutes (Matières Azotées Totales) | C14: MAT | F14: % | I14: UFV | J14: =IF(D12="","",((120+(0.214*D14)+(1.62*D16)-(1.19*D18)-(2.64*I27))*(J10/10000))*(C36/1000)) ->  | M14: Ca (Calcium) | O14: %
B16: Matière Grasse (Lipides) | C16: MG | F16: % | I16: PDIA | J16: =IF(D12="","",C30*(J10/100)) ->  | K16: g / kg | M16: Minéraux absorbables
B18: Cellulose Brute | C18: CB | F18: % | I18: PDIN | J18: =IF(D12="","",C31*(J10/100)) ->  | K18: g / kg | M18: Pabs | N18: =IF(N12="","",N12*6.5) ->  | O18: g/100 g
B20: Cendres Brutes (Matières Minérales) | C20: MM | F20: % | I20: PDIE | J20: =IF(D12="","",C32*(J10/100)) ->  | K20: g / kg | M20: Ca abs | N20: =IF(N14="","",N14*4) ->  | O20: g/100 g
J22: =IF(D22="","",D22*0.7) ->  | K22: =IF(J22="","","g / kg brut") -> 
B27: MAT | C27: =D14*10 -> 0 | I27: =IF(D14>25,6,IF(D14>20,4,2)) -> 2
B28: DE1 | C28: 34
B29: MANDE1 | C29: =C27*(1-(C28/100)) -> 0
B30: PDIA | C30: =(-0.211*C27)+(0.84*C29) -> 0
B31: PDIN | C31: =(0.507*C27)+(0.278*C29) -> 0
B32: PDIE | C32: =67.1-(0.22*C27)+(0.802*C29) -> 67.1
B33: MG | C33: =D16*10 -> 0
B34: CB | C34: =D18*10 -> 0
B35: MM | C35: =D20*10 -> 0
B36: MO | C36: =1000-C35 -> 1000
B37: EB

Sheet Feuil1

Sheet ANIMAL
B1: ALIM'ovins(v. 5.1)
B2: Rationnement des ovins
F4: Ration
C6: 1 Cliquez sur les flèches pour faire votre choix | L6: REPARTITION DES BESOINS | R6: =R8-R7 ->  | S6: =S8-S7 ->  | T6: =T8-T7 ->  | U6: =U8-U7 -> 
R7: =POWER(C23,0.75)*0.033 -> 0.7986150125 | S7: =R7/R8 ->  | T7: =POWER(C23,0.75)*2.5 -> 60.50113731 | U7: =T7/T8 -> 
B8: Catégorie animal | E8: BESOINS ALIMENTAIRES | M8: U.F.L. | O8: P.D.I. | R8: =F16 ->  | S8: 1 | T8: =G16 ->  | U8: 1
B10: Poids vif | C10: =IF(C8="","",CONCATENATE(C23," kg")) ->  | E10: CATEGORIE | L10: en % des besoins totaux
E11: =CONCATENATE(C8," ",C10," ",C12," ",C14," ",C16) ->  | L11: ENTRETIEN
B12: =IF(C8="Brebis traite","Production laitière",IF(C8="brebis","Stade physiologique","Objectifs")) -> Objectifs
L13: =CONCATENATE(ROUND(G16/F16,0)," g PDI/UF") -> 
B14: =IF(C8="Brebis","Agnelage Etat","") ->  | E14: APPORTS ALIMENTAIRES RECOMMANDES
E15: U.E.M | F15: U.F.L | G15: P.D.I. | H15: Pabs | I15: Caabs | L15: PRODUCTION
B16: =IF(C8="Brebis","Période (semaines)","") ->  | E16: =IF(C8="","",VLOOKUP($E$11,$C$39:$I$393,3)) ->  | F16: =IF(C8="","",IF(VLOOKUP($E$11,$C$39:$I$393,4)="ND","ND",IF(E34=2,VLOOKUP($E$11,$C$39:$I$393,4),VLOOKUP($E$11,$C$39:$I$393,4)+0.2))) ->  | G16: =IF(C8="","",VLOOKUP($E$11,$C$39:$I$393,5)) ->  | H16: =IF(C8="","",VLOOKUP($E$11,$C$39:$I$393,6)) ->  | I16: =IF(C8="","",VLOOKUP($E$11,$C$39:$I$393,7)) -> 
C17: ND: non disponible | E17: =CONCATENATE(ROUND(F16/E16,2)," UFL / UEM") ->  | G17: =CONCATENATE(ROUND(G16/F16,0)," g PDI / UFL") ->  | I17: =CONCATENATE("Ca/P = ",ROUND(I16/H16,1)) -> 
C23: 70 | I23: 30 kg
C24: Brebis | D24: =IF(C8="Brebis traite","0,5 l/jour",IF(C8="Brebis","Allaitante","Croissance")) -> Croissance | E24: =IF(C12="Engrais","Mauvais état (1 - 1.5)",IF(C8="Bélier","",IF(C8="Agnelle","",IF(C8="Brebis traite","",IF(C12="Vide","Sans prise de poids - Entretien",IF(C12="gestante",D31,F31)))))) -> Semaines 0 à + 3 | F24: =IF(C12="Engrais","GMQ 50 g/j",IF(C8="Bélier","",IF(C8="Agnelle","",IF(C8="Brebis traite","",IF(C12="Vide","Mauvais Etat (< 2,5)","Simple"))))) -> Simple | I24: 40 kg
C25: Bélier | D25: =IF(C8="Brebis traite","1,0 l/jour",IF(C8="Brebis","Gestante","Flushing")) -> Flushing | E25: =IF(C12="Engrais","Etat moyen (2 - 2.5)",IF(C8="Bélier","",IF(C8="Agnelle","",IF(C8="Brebis traite","",IF(C12="Vide","Avec prise de poids + 150 g/j",IF(C12="gestante",D32,F32)))))) -> Semaines + 4 à + 6 | F25: =IF(C12="Engrais","GMQ 100 g/j",IF(C8="Bélier","",IF(C8="Agnelle","",IF(C8="Brebis traite","",IF(C12="Vide","Etat Moyen (2,5 - 3,5)","Double"))))) -> Double | I25: 50 kg | J25: 30 kg | K25: 70 kg
C26: Agnelle | D26: =IF(C8="Brebis traite","2,0 l/jour",IF(C8="Brebis","Vide","Entretien")) -> Entretien | E26: =IF(C12="Engrais","Bon état (3 - 3.5)",IF(C8="Bélier","",IF(C8="Agnelle","",IF(C8="Brebis traite","",IF(C12="Vide","flushing + 100 g/j",IF(C12="gestante",D33,F33)))))) -> Semaines + 7 à + 10 | F26: =IF(C12="Engrais","GMQ 150 g/j",IF(C8="Bélier","",IF(C8="Agnelle","",IF(C8="Brebis traite","",IF(C12="Vide","Bon Etat (> 3,5)",IF(C12="Allaitante","Triple","Inconnu")))))) -> Inconnu | I26: 60 kg | J26: 40 kg | K26: 80 kg
C27: Brebis traite | D27: =IF(C8="Brebis traite","2,5 l/jour",IF(C8="Brebis","Engrais","")) ->  | I27: 70 kg | J27: 50 kg | K27: 90 kg
D28: =IF(C8="Brebis traite","3,0 l/jour","") ->  | I28: 80 kg | K28: 100 kg
C29: 60 kg | D29: =IF(C8="Brebis traite","3,5 l/jour","") ->  | I29: 90 kg
C30: =IF($C$9="brebis",I25,IF($C$9="Agnelle",J25,K25)) -> 70 kg | I30: 100 kg
C31: 80 kg | D31: Semaines - 5 à - 6 | F31: Semaines 0 à + 3
C32: 90 kg | D32: Semaines - 3 à - 4 | F32: Semaines + 4 à + 6
C33: 100 kg | D33: Semaines - 2 à 0 | F33: Semaines + 7 à + 10 | I33: Bergerie
E34: 2 | I34: Plein air
C38: Catégorie | E38: UEM | F38: UFL | G38: PDI | H38: Pabs | I38: Caabs
C39: Agnelle 100 kg Croissance | E39: ND | F39: ND | G39: ND | H39: ND | I39: ND
C40: Agnelle 100 kg Entretien | E40: ND | F40: ND | G40: ND | H40: ND | I40: ND
C41: Agnelle 100 kg Flushing | E41: ND | F41: ND | G41: ND | H41: ND | I41: ND
C42: Agnelle 30 kg Croissance | D42: 13 | E42: 1 | F42: 0.57 | G42: 52 | H42: 0.9 | I42: 1
C43: Agnelle 30 kg Entretien | D43: 15 | E43: 1 | F43: 0.44 | G43: 32 | H43: 0.6 | I43: 0.8
C44: Agnelle 30 kg Flushing | D44: 14 | E44: 1 | F44: 1 | G44: 54 | H44: 0.6 | I44: 0.8
C45: Agnelle 40 kg Croissance | D45: 16 | E45: 1.2 | F45: 0.78 | G45: 62 | H45: 1.4 | I45: 1.5
C46: Agnelle 40 kg Entretien | D46: 18 | E46: 1.2 | F46: 0.52 | G46: 40 | H46: 0.8 | I46: 1
C47: Agnelle 40 kg Flushing | D47: 17 | E47: 1.2 | F47: 1.08 | G47: 62 | H47: 0.8 | I47: 1
C48: Agnelle 50 kg Croissance | D48: 19 | E48: 1.3 | F48: 0.84 | G48: 69 | H48: 1.6 | I48: 1.7
C49: Agnelle 50 kg Entretien | D49: 21 | E49: 1.3 | F49: 0.62 | G49: 47 | H49: 1 | I49: 1.2
C50: Agnelle 50 kg Flushing | D50: 20 | E50: 1.3 | F50: 0.84 | G50: 69 | H50: 1 | I50: 1.2
C51: Agnelle 60 kg Croissance | E51: ND | F51: ND | G51: ND | H51: ND | I51: ND
C52: Agnelle 60 kg Entretien | E52: ND | F52: ND | G52: ND | H52: ND | I52: ND
C53: Agnelle 60 kg Flushing | E53: ND | F53: ND | G53: ND | H53: ND | I53: ND
C54: Agnelle 70 kg Croissance | E54: ND | F54: ND | G54: ND | H54: ND | I54: ND
C55: Agnelle 70 kg Entretien | E55: ND | F55: ND | G55: ND | H55: ND | I55: ND
C56: Agnelle 70 kg Flushing | E56: ND | F56: ND | G56: ND | H56: ND | I56: ND
C57: Agnelle 80 kg Croissance | E57: ND | F57: ND | G57: ND | H57: ND | I57: ND
C58: Agnelle 80 kg Entretien | E58: ND | F58: ND | G58: ND | H58: ND | I58: ND
C59: Agnelle 80 kg Flushing | E59: ND | F59: ND | G59: ND | H59: ND | I59: ND
C60: Agnelle 90 kg Croissance | E60: ND | F60: ND | G60: ND | H60: ND | I60: ND
C61: Agnelle 90 kg Entretien | E61: ND | F61: ND | G61: ND | H61: ND | I61: ND
C62: Agnelle 90 kg Flushing | E62: ND | F62: ND | G62: ND | H62: ND | I62: ND
C63: Bélier 100 kg Croissance | D63: 10 | E63: ND | F63: ND | G63: ND | H63: ND | I63: ND
C64: Bélier 100 kg Entretien | D64: 12 | E64: 2.8 | F64: 1.1 | G64: 88 | H64: 2.2 | I64: 2.9
C65: Bélier 100 kg Flushing | D65: 11 | E65: 2.8 | F65: 1.66 | G65: 110 | H65: 2.2 | I65: 2.9
C66: Bélier 30 kg Croissance | E66: ND | F66: ND | G66: ND | H66: ND | I66: ND
C67: Bélier 30 kg Entretien | E67: ND | F67: ND | G67: ND | H67: ND | I67: ND
C68: Bélier 30 kg Flushing | E68: ND | F68: ND | G68: ND | H68: ND | I68: ND
C69: Bélier 40 kg Croissance | E69: ND | F69: ND | G69: ND | H69: ND | I69: ND
C70: Bélier 40 kg Entretien | E70: ND | F70: ND | G70: ND | H70: ND | I70: ND
C71: Bélier 40 kg Flushing | E71: ND | F71: ND | G71: ND | H71: ND | I71: ND
C72: Bélier 50 kg Croissance | E72: 1.8 | F72: 1.11 | G72: 86 | H72: 1.9 | I72: 2.4
C73: Bélier 50 kg Entretien | E73: 1.8 | F73: 0.72 | G73: 63 | H73: 1.2 | I73: 1.4
C74: Bélier 50 kg Flushing | E74: 1.8 | F74: 1.29 | G74: 75 | H74: 1.2 | I74: 2.7
C75: Bélier 60 kg Croissance | E75: 2 | F75: 1.19 | G75: 93 | H75: 2.1 | I75: 2.7
C76: Bélier 60 kg Entretien | E76: 2 | F76: 0.8 | G76: 60 | H76: 1.4 | I76: 1.7
C77: Bélier 60 kg Flushing | E77: 2 | F77: 1.36 | G77: 82 | H77: 1.4 | I77: 3
C78: Bélier 70 kg Croissance | D78: 1 | E78: 2.2 | F78: 1.27 | G78: 100 | H78: 2.3 | I78: 3
C79: Bélier 70 kg Entretien | D79: 3 | E79: 2.2 | F79: 0.88 | G79: 67 | H79: 1.6 | I79: 2
C80: Bélier 70 kg Flushing | D80: 2 | E80: 2.2 | F80: 1.44 | G80: 89 | H80: 1.6 | I80: 2
C81: Bélier 80 kg Croissance | D81: 4 | E81: 2.4 | F81: 1.35 | G81: 107 | H81: 2.5 | I81: 3.3
C82: Bélier 80 kg Entretien | D82: 6 | E82: 2.4 | F82: 0.96 | G82: 74 | H82: 1.8 | I82: 2.3
C83: Bélier 80 kg Flushing | D83: 5 | E83: 2.4 | F83: 1.52 | G83: 96 | H83: 1.8 | I83: 2.3
C84: Bélier 90 kg Croissance | D84: 7 | E84: ND | F84: ND | G84: ND | H84: ND | I84: ND
C85: Bélier 90 kg Entretien | D85: 9 | E85: 2.6 | F85: 1.04 | G85: 81 | H85: 2 | I85: 2.6
C86: Bélier 90 kg Flushing | D86: 8 | E86: 2.6 | F86: 1.6 | G86: 103 | H86: 2 | I86: 2.6
C87: Brebis 100 kg Allaitante Double Semaines + 4 à + 6 | D87: 116 | E87: ND | F87: ND | G87: ND | H87: ND | I87: ND
C88: Brebis 100 kg Allaitante Double Semaines + 7 à + 10 | D88: 117 | E88: ND | F88: ND | G88: ND | H88: ND | I88: ND
C89: Brebis 100 kg Allaitante Double Semaines 0 à + 3 | D89: 115 | E89: ND | F89: ND | G89: ND | H89: ND | I89: ND
C90: Brebis 100 kg Allaitante Simple Semaines + 4 à + 6 | D90: 113 | E90: ND | F90: ND | G90: ND | H90: ND | I90: ND
C91: Brebis 100 kg Allaitante Simple Semaines + 7 à + 10 | D91: 114 | E91: ND | F91: ND | G91: ND | H91: ND | I91: ND
C92: Brebis 100 kg Allaitante Simple Semaines 0 à + 3 | D92: 112 | E92: ND | F92: ND | G92: ND | H92: ND | I92: ND
C93: Brebis 100 kg Gestante Double Semaines - 2 à 0 | D93: 90 | E93: ND | F93: ND | G93: ND | H93: ND | I93: ND
C94: Brebis 100 kg Gestante Double Semaines - 3 à - 4 | D94: 89 | E94: ND | F94: ND | G94: ND | H94: ND | I94: ND
C95: Brebis 100 kg Gestante Double Semaines - 5 à - 6 | D95: 88 | E95: ND | F95: ND | G95: ND | H95: ND | I95: ND
C96: Brebis 100 kg Gestante Inconnu Semaines - 2 à 0 | D96: 93 | E96: ND | F96: ND | G96: ND | H96: ND | I96: ND
C97: Brebis 100 kg Gestante Inconnu Semaines - 3 à - 4 | D97: 92 | E97: ND | F97: ND | G97: ND | H97: ND | I97: ND
C98: Brebis 100 kg Gestante Inconnu Semaines - 5 à - 6 | D98: 91 | E98: ND | F98: ND | G98: ND | H98: ND | I98: ND
C99: Brebis 100 kg Gestante Simple Semaines - 2 à 0 | D99: 87 | E99: ND | F99: ND | G99: ND | H99: ND | I99: ND
C100: Brebis 100 kg Gestante Simple Semaines - 3 à - 4 | D100: 86 | E100: ND | F100: ND | G100: ND | H100: ND | I100: ND
C101: Brebis 100 kg Gestante Simple Semaines - 5 à - 6 | D101: 85 | E101: ND | F101: ND | G101: ND | H101: ND | I101: ND
C102: Brebis 100 kg Vide Bon Etat (> 3,5) Avec prise de poids + 150 g/j | D102: 56 | E102: ND | F102: ND | G102: ND | H102: ND | I102: ND
C103: Brebis 100 kg Vide Bon Etat (> 3,5) flushing + 100 g/j | D103: 57 | E103: ND | F103: ND | G103: ND | H103: ND | I103: ND
C104: Brebis 100 kg Vide Bon Etat (> 3,5) Sans prise de poids - Entretien | D104: 55 | E104: ND | F104: ND | G104: ND | H104: ND | I104: ND
C105: Brebis 100 kg Vide Etat Moyen (2,5 - 3,5) Avec prise de poids + 150 g/j | D105: 53 | E105: ND | F105: ND | G105: ND | H105: ND | I105: ND
C106: Brebis 100 kg Vide Etat Moyen (2,5 - 3,5) flushing + 100 g/j | D106: 54 | E106: ND | F106: ND | G106: ND | H106: ND | I106: ND
C107: Brebis 100 kg Vide Etat Moyen (2,5 - 3,5) Sans prise de poids - Entretien | D107: 52 | E107: ND | F107: ND | G107: ND | H107: ND | I107: ND
C108: Brebis 100 kg Vide Mauvais Etat (< 2,5) Avec prise de poids + 150 g/j | D108: 50 | E108: ND | F108: ND | G108: ND | H108: ND | I108: ND
C109: Brebis 100 kg Vide Mauvais Etat (< 2,5) flushing + 100 g/j | D109: 51 | E109: ND | F109: ND | G109: ND | H109: ND | I109: ND
C110: Brebis 100 kg Vide Mauvais Etat (< 2,5) Sans prise de poids - Entretien | D110: 49 | E110: ND | F110: ND | G110: ND | H110: ND | I110: ND
C111: Brebis 30 kg Allaitante Double Semaines + 4 à + 6 | D111: 116 | E111: ND | F111: ND | G111: ND | H111: ND | I111: ND
C112: Brebis 30 kg Allaitante Double Semaines + 7 à + 10 | D112: 117 | E112: ND | F112: ND | G112: ND | H112: ND | I112: ND
C113: Brebis 30 kg Allaitante Double Semaines 0 à + 3 | D113: 115 | E113: ND | F113: ND | G113: ND | H113: ND | I113: ND
C114: Brebis 30 kg Allaitante Simple Semaines + 4 à + 6 | D114: 113 | E114: ND | F114: ND | G114: ND | H114: ND | I114: ND
C115: Brebis 30 kg Allaitante Simple Semaines + 7 à + 10 | D115: 114 | E115: ND | F115: ND | G115: ND | H115: ND | I115: ND
C116: Brebis 30 kg Allaitante Simple Semaines 0 à + 3 | D116: 112 | E116: ND | F116: ND | G116: ND | H116: ND | I116: ND
C117: Brebis 30 kg Allaitante Triple Semaines + 4 à + 6 | E117: ND | F117: ND | G117: ND | H117: ND | I117: ND
C118: Brebis 30 kg Allaitante Triple Semaines + 7 à + 10 | E118: ND | F118: ND | G118: ND | H118: ND | I118: ND
C119: Brebis 30 kg Allaitante Triple Semaines 0 à + 3 | E119: ND | F119: ND | G119: ND | H119: ND | I119: ND
C120: Brebis 30 kg Gestante Double Semaines - 2 à 0 | D120: 90 | E120: ND | F120: ND | G120: ND | H120: ND | I120: ND
C121: Brebis 30 kg Gestante Double Semaines - 3 à - 4 | D121: 89 | E121: ND | F121: ND | G121: ND | H121: ND | I121: ND
C122: Brebis 30 kg Gestante Double Semaines - 5 à - 6 | D122: 88 | E122: ND | F122: ND | G122: ND | H122: ND | I122: ND
C123: Brebis 30 kg Gestante Inconnu Semaines - 2 à 0 | D123: 93 | E123: ND | F123: ND | G123: ND | H123: ND | I123: ND
C124: Brebis 30 kg Gestante Inconnu Semaines - 3 à - 4 | D124: 92 | E124: ND | F124: ND | G124: ND | H124: ND | I124: ND
C125: Brebis 30 kg Gestante Inconnu Semaines - 5 à - 6 | D125: 91 | E125: ND | F125: ND | G125: ND | H125: ND | I125: ND
C126: Brebis 30 kg Gestante Simple Semaines - 2 à 0 | D126: 87 | E126: ND | F126: ND | G126: ND | H126: ND | I126: ND
C127: Brebis 30 kg Gestante Simple Semaines - 3 à - 4 | D127: 86 | E127: ND | F127: ND | G127: ND | H127: ND | I127: ND
C128: Brebis 30 kg Gestante Simple Semaines - 5 à - 6 | D128: 85 | E128: ND | F128: ND | G128: ND | H128: ND | I128: ND
C129: Brebis 30 kg Vide Bon Etat (> 3,5) Avec prise de poids + 150 g/j | D129: 56 | E129: ND | F129: ND | G129: ND | H129: ND | I129: ND
C130: Brebis 30 kg Vide Bon Etat (> 3,5) flushing + 100 g/j | D130: 57 | E130: ND | F130: ND | G130: ND | H130: ND | I130: ND
C131: Brebis 30 kg Vide Bon Etat (> 3,5) Sans prise de poids - Entretien | D131: 55 | E131: ND | F131: ND | G131: ND | H131: ND | I131: ND
C132: Brebis 30 kg Vide Etat Moyen (2,5 - 3,5) Avec prise de poids + 150 g/j | D132: 53 | E132: ND | F132: ND | G132: ND | H132: ND | I132: ND
C133: Brebis 30 kg Vide Etat Moyen (2,5 - 3,5) flushing + 100 g/j | D133: 54 | E133: ND | F133: ND | G133: ND | H133: ND | I133: ND
C134: Brebis 30 kg Vide Etat Moyen (2,5 - 3,5) Sans prise de poids - Entretien | D134: 52 | E134: ND | F134: ND | G134: ND | H134: ND | I134: ND
C135: Brebis 30 kg Vide Mauvais Etat (< 2,5) Avec prise de poids + 150 g/j | D135: 50 | E135: ND | F135: ND | G135: ND | H135: ND | I135: ND
C136: Brebis 30 kg Vide Mauvais Etat (< 2,5) flushing + 100 g/j | D136: 51 | E136: ND | F136: ND | G136: ND | H136: ND | I136: ND
C137: Brebis 30 kg Vide Mauvais Etat (< 2,5) Sans prise de poids - Entretien | D137: 49 | E137: ND | F137: ND | G137: ND | H137: ND | I137: ND
C138: Brebis 40 kg Allaitante Double Semaines + 4 à + 6 | D138: 116 | E138: ND | F138: ND | G138: ND | H138: ND | I138: ND
C139: Brebis 40 kg Allaitante Double Semaines + 7 à + 10 | D139: 117 | E139: ND | F139: ND | G139: ND | H139: ND | I139: ND
C140: Brebis 40 kg Allaitante Double Semaines 0 à + 3 | D140: 115 | E140: ND | F140: ND | G140: ND | H140: ND | I140: ND
C141: Brebis 40 kg Allaitante Simple Semaines + 4 à + 6 | D141: 113 | E141: ND | F141: ND | G141: ND | H141: ND | I141: ND
C142: Brebis 40 kg Allaitante Simple Semaines + 7 à + 10 | D142: 114 | E142: ND | F142: ND | G142: ND | H142: ND | I142: ND
C143: Brebis 40 kg Allaitante Simple Semaines 0 à + 3 | D143: 112 | E143: ND | F143: ND | G143: ND | H143: ND | I143: ND
C144: Brebis 40 kg Allaitante Triple Semaines + 4 à + 6 | E144: ND | F144: ND | G144: ND | H144: ND | I144: ND
C145: Brebis 40 kg Allaitante Triple Semaines + 7 à + 10 | E145: ND | F145: ND | G145: ND | H145: ND | I145: ND
C146: Brebis 40 kg Allaitante Triple Semaines 0 à + 3 | E146: ND | F146: ND | G146: ND | H146: ND | I146: ND
C147: Brebis 40 kg Engrais GMQ 50 g/j Bon état (3 - 3.5) | E147: 1.288338581 | F147: =F183-0.08 -> 0.8 | G147: =G183-7 -> 48 | H147: 1 | I147: 0.8
C148: Brebis 40 kg Engrais GMQ 50 g/j Etat moyen (2 - 2.5) | E148: 1.415581897 | F148: 0.75 | G148: 44 | H148: 1 | I148: 0.8
C149: Brebis 40 kg Engrais GMQ 50 g/j Mauvais état (1 - 1.5) | E149: 1.542825214 | F149: 0.71 | G149: 41 | H149: 1 | I149: 0.8
C150: Brebis 40 kg Engrais GMQ 100 g/j Bon état (3 - 3.5) | E150: 1.288338581 | F150: 1.08 | G150: 59 | H150: 1 | I150: 0.8
C151: Brebis 40 kg Engrais GMQ 100 g/j Etat moyen (2 - 2.5) | E151: 1.415581897 | F151: 1.03 | G151: 55 | H151: 1 | I151: 0.8
C152: Brebis 40 kg Engrais GMQ 100 g/j Mauvais état (1 - 1.5) | E152: 1.542825214 | F152: 0.99 | G152: 52 | H152: 1 | I152: 0.8
C153: Brebis 40 kg Engrais GMQ 150 g/j Bon état (3 - 3.5) | E153: 1.288338581 | F153: 1.36 | G153: 70 | H153: 1 | I153: 0.8
C154: Brebis 40 kg Engrais GMQ 150 g/j Etat moyen (2 - 2.5) | E154: 1.415581897 | F154: 1.31 | G154: 66 | H154: 1 | I154: 0.8
C155: Brebis 40 kg Engrais GMQ 150 g/j Mauvais état (1 - 1.5) | E155: 1.542825214 | F155: 1.27 | G155: 63 | H155: 1 | I155: 0.8
C156: Brebis 40 kg Gestante Double Semaines - 2 à 0 | D156: 90 | E156: ND | F156: ND | G156: ND | H156: ND | I156: ND
C157: Brebis 40 kg Gestante Double Semaines - 3 à - 4 | D157: 89 | E157: ND | F157: ND | G157: ND | H157: ND | I157: ND
C158: Brebis 40 kg Gestante Double Semaines - 5 à - 6 | D158: 88 | E158: ND | F158: ND | G158: ND | H158: ND | I158: ND
C159: Brebis 40 kg Gestante Inconnu Semaines - 2 à 0 | D159: 93 | E159: ND | F159: ND | G159: ND | H159: ND | I159: ND
C160: Brebis 40 kg Gestante Inconnu Semaines - 3 à - 4 | D160: 92 | E160: ND | F160: ND | G160: ND | H160: ND | I160: ND
C161: Brebis 40 kg Gestante Inconnu Semaines - 5 à - 6 | D161: 91 | E161: ND | F161: ND | G161: ND | H161: ND | I161: ND
C162: Brebis 40 kg Gestante Simple Semaines - 2 à 0 | D162: 87 | E162: ND | F162: ND | G162: ND | H162: ND | I162: ND
C163: Brebis 40 kg Gestante Simple Semaines - 3 à - 4 | D163: 86 | E163: ND | F163: ND | G163: ND | H163: ND | I163: ND
C164: Brebis 40 kg Gestante Simple Semaines - 5 à - 6 | D164: 85 | E164: ND | F164: ND | G164: ND | H164: ND | I164: ND
C165: Brebis 40 kg Vide Bon Etat (> 3,5) Avec prise de poids + 150 g/j | D165: 56 | E165: ND | F165: ND | G165: ND | H165: ND | I165: ND
C166: Brebis 40 kg Vide Bon Etat (> 3,5) flushing + 100 g/j | D166: 57 | E166: ND | F166: ND | G166: ND | H166: ND | I166: ND
C167: Brebis 40 kg Vide Bon Etat (> 3,5) Sans prise de poids - Entretien | D167: 55 | E167: ND | F167: ND | G167: ND | H167: ND | I167: ND
C168: Brebis 40 kg Vide Etat Moyen (2,5 - 3,5) Avec prise de poids + 150 g/j | D168: 53 | E168: ND | F168: ND | G168: ND | H168: ND | I168: ND
C169: Brebis 40 kg Vide Etat Moyen (2,5 - 3,5) flushing + 100 g/j | D169: 54 | E169: ND | F169: ND | G169: ND | H169: ND | I169: ND
C170: Brebis 40 kg Vide Etat Moyen (2,5 - 3,5) Sans prise de poids - Entretien | D170: 52 | E170: ND | F170: ND | G170: ND | H170: ND | I170: ND
C171: Brebis 40 kg Vide Mauvais Etat (< 2,5) Avec prise de poids + 150 g/j | D171: 50 | E171: ND | F171: ND | G171: ND | H171: ND | I171: ND
C172: Brebis 40 kg Vide Mauvais Etat (< 2,5) flushing + 100 g/j | D172: 51 | E172: ND | F172: ND | G172: ND | H172: ND | I172: ND
C173: Brebis 40 kg Vide Mauvais Etat (< 2,5) Sans prise de poids - Entretien | D173: 49 | E173: ND | F173: ND | G173: ND | H173: ND | I173: ND
C174: Brebis 50 kg Allaitante Double Semaines + 4 à + 6 | D174: 98 | E174: 2.55 | F174: 2.03 | G174: 202 | H174: 4.7 | I174: 5.3
C175: Brebis 50 kg Allaitante Double Semaines + 7 à + 10 | D175: 99 | E175: 2.05 | F175: 1.63 | G175: 157 | H175: 3.5 | I175: 3.8
C176: Brebis 50 kg Allaitante Double Semaines 0 à + 3 | D176: 97 | E176: 2 | F176: 2.28 | G176: 227 | H176: 5.2 | I176: 5.9
C177: Brebis 50 kg Allaitante Simple Semaines + 4 à + 6 | D177: 95 | E177: 1.95 | F177: 1.33 | G177: 127 | H177: 3 | I177: 3.2
C178: Brebis 50 kg Allaitante Simple Semaines + 7 à + 10 | D178: 96 | E178: 1.7 | F178: 1.18 | G178: 107 | H178: 2.7 | I178: 3.5
C179: Brebis 50 kg Allaitante Simple Semaines 0 à + 3 | D179: 94 | E179: 1.52 | F179: 1.53 | G179: 147 | H179: 3.4 | I179: 3.7
C180: Brebis 50 kg Allaitante Triple Semaines + 4 à + 6 | E180: ND | F180: ND | G180: ND | H180: ND | I180: ND
C181: Brebis 50 kg Allaitante Triple Semaines + 7 à + 10 | E181: ND | F181: ND | G181: ND | H181: ND | I181: ND
C182: Brebis 50 kg Allaitante Triple Semaines 0 à + 3 | E182: ND | F182: ND | G182: ND | H182: ND | I182: ND
C183: Brebis 50 kg Engrais GMQ 50 g/j Bon état (3 - 3.5) | E183: 1.523044253 | F183: =F219-0.08 -> 0.88 | G183: =G219-7 -> 55 | H183: 1.3 | I183: 1
C184: Brebis 50 kg Engrais GMQ 50 g/j Etat moyen (2 - 2.5) | E184: 1.673468376 | F184: 0.83 | G184: 51 | H184: 1.3 | I184: 1
C185: Brebis 50 kg Engrais GMQ 50 g/j Mauvais état (1 - 1.5) | E185: 1.8238925 | F185: 0.79 | G185: 48 | H185: 1.3 | I185: 1
C186: Brebis 50 kg Engrais GMQ 100 g/j Bon état (3 - 3.5) | E186: 1.523044253 | F186: 1.16 | G186: 66 | H186: 1.3 | I186: 1
C187: Brebis 50 kg Engrais GMQ 100 g/j Etat moyen (2 - 2.5) | E187: 1.673468376 | F187: 1.11 | G187: 62 | H187: 1.3 | I187: 1
C188: Brebis 50 kg Engrais GMQ 100 g/j Mauvais état (1 - 1.5) | E188: 1.8238925 | F188: 1.07 | G188: 59 | H188: 1.3 | I188: 1
C189: Brebis 50 kg Engrais GMQ 150 g/j Bon état (3 - 3.5) | E189: 1.523044253 | F189: 1.44 | G189: 77 | H189: 1.3 | I189: 1
C190: Brebis 50 kg Engrais GMQ 150 g/j Etat moyen (2 - 2.5) | E190: 1.673468376 | F190: 1.39 | G190: 73 | H190: 1.3 | I190: 1
C191: Brebis 50 kg Engrais GMQ 150 g/j Mauvais état (1 - 1.5) | E191: 1.8238925 | F191: 1.35 | G191: 70 | H191: 1.3 | I191: 1
C192: Brebis 50 kg Gestante Double Semaines - 2 à 0 | D192: 63 | E192: 1.3 | F192: 1.26 | G192: 140 | H192: 2.9 | I192: 3.8
C193: Brebis 50 kg Gestante Double Semaines - 3 à - 4 | D193: 62 | E193: 1.3 | F193: 0.98 | G193: 114 | H193: 2.3 | I193: 2.6
C194: Brebis 50 kg Gestante Double Semaines - 5 à - 6 | D194: 61 | E194: 1.3 | F194: 0.78 | G194: 90 | H194: 2 | I194: 2
C195: Brebis 50 kg Gestante Inconnu Semaines - 2 à 0 | D195: 66 | E195: 1.23 | F195: 1.175 | G195: 129 | H195: 2.7 | I195: 3.4
C196: Brebis 50 kg Gestante Inconnu Semaines - 3 à - 4 | D196: 65 | E196: 1.23 | F196: 0.935 | G196: 109 | H196: 2.2 | I196: 2.4
C197: Brebis 50 kg Gestante Inconnu Semaines - 5 à - 6 | D197: 64 | E197: 1.23 | F197: 0.77 | G197: 85 | H197: 1.95 | I197: 1.85
C198: Brebis 50 kg Gestante Simple Semaines - 2 à 0 | D198: 60 | E198: 1.16 | F198: 1.09 | G198: 118 | H198: 2.5 | I198: 3
C199: Brebis 50 kg Gestante Simple Semaines - 3 à - 4 | D199: 59 | E199: 1.16 | F199: 0.89 | G199: 104 | H199: 2.1 | I199: 2.2
C200: Brebis 50 kg Gestante Simple Semaines - 5 à - 6 | D200: 58 | E200: 1.16 | F200: 0.76 | G200: 80 | H200: 1.7 | I200: 1.9
C201: Brebis 50 kg Vide Bon Etat (> 3,5) Avec prise de poids + 150 g/j | D201: 29 | E201: 1.41022616 | F201: 1.46049951 | G201: 80.00753866 | H201: 1 | I201: 1.3
C202: Brebis 50 kg Vide Bon Etat (> 3,5) flushing + 100 g/j | D202: 30 | E202: 1.41022616 | F202: 1.18049951 | G202: 58.00753866 | H202: 1 | I202: 1.3
C203: Brebis 50 kg Vide Bon Etat (> 3,5) Sans prise de poids - Entretien | D203: 28 | E203: 1.41022616 | F203: 0.6204995104 | G203: 47.00753866 | H203: 1 | I203: 1.3
C204: Brebis 50 kg Vide Etat Moyen (2,5 - 3,5) Avec prise de poids + 150 g/j | D204: 26 | E204: 1.523044253 | F204: 1.46049951 | G204: 80.00753866 | H204: 1 | I204: 1.3
C205: Brebis 50 kg Vide Etat Moyen (2,5 - 3,5) flushing + 100 g/j | D205: 27 | E205: 1.523044253 | F205: 1.18049951 | G205: 58.00753866 | H205: 1 | I205: 1.3
C206: Brebis 50 kg Vide Etat Moyen (2,5 - 3,5) Sans prise de poids - Entretien | D206: 25 | E206: 1.523044253 | F206: 0.6204995104 | G206: 47.00753866 | H206: 1 | I206: 1.3
C207: Brebis 50 kg Vide Mauvais Etat (< 2,5) Avec prise de poids + 150 g/j | D207: 23 | E207: 1.673468376 | F207: 1.46049951 | G207: 80.00753866 | H207: 1 | I207: 1.3
C208: Brebis 50 kg Vide Mauvais Etat (< 2,5) flushing + 100 g/j | D208: 24 | E208: 1.673468376 | F208: 1.18049951 | G208: 58.00753866 | H208: 1 | I208: 1.3
C209: Brebis 50 kg Vide Mauvais Etat (< 2,5) Sans prise de poids - Entretien | D209: 22 | E209: 1.673468376 | F209: 0.6204995104 | G209: 47.00753866 | H209: 1 | I209: 1.3
C210: Brebis 60 kg Allaitante Double Semaines + 4 à + 6 | D210: 104 | E210: 2.75 | F210: 2.11 | G210: 209 | H210: 5 | I210: 5.5
C211: Brebis 60 kg Allaitante Double Semaines + 7 à + 10 | D211: 105 | E211: 2.25 | F211: 1.71 | G211: 164 | H211: 3.8 | I211: 4
... 181 more rows

Sheet FOURRAGE
B1: ALIM'ovins(v. 5.1)
B2: Rationnement des ovins
H4: Ration
B5: zone de Plaine (Normandie) zone de Demi-montagne (Auvergne)
E6: FOURRAGE N° 1 (Rationné ou à volonté) | K6: 2 Saisissez les quantités brutes ou cliquez A VOLONTE
O7: =IF(ANIMAL!C8="","",IF(O11>1,"ATTENTION ! La capacité d'ingestion est dépassée",IF(C9="","",IF(V7<0.02,"La capacité d'ingestion est atteinte","La capacité d'ingestion n'est pas atteinte")))) ->  | U7: =ANIMAL!E16 ->  | V7: =IF(O11>1,0,1-V9-V8) -> 0
B8: 1 Cliquez sur les flèches pour faire votre choix | U8: =IF(C23="",0,L24*(E29/100)*F29) -> 0 | V8: =IF(O11>1,0,U8/U7) -> 0
B9: Catégorie fourrage | E9: =CONCATENATE(C9," ",C11," ",C13," ",C15) ->  | O9: Capacité d'ingestion | T9: =U12/U7 ->  | U9: =IF(C9="",0,(L10*(E15/100)*F15)) -> 0 | V9: =IF(O11>1,0,U9/U7) -> 0
Q10: =IF(O11="","",IF(O11>1,"Réduisez les fourrages !","")) -> 
B11: Espèce végétale | O11: =IF(C9="","",T9) -> 
O12: =IF(C23="","",C23) ->  | Q12: =IF(C23="","",2) ->  | U12: =U9+U8 -> 0 | V12: =U12/U7 -> 
B13: Conditions de récolte | E13: Valeurs Alimentaires
E14: % M.S. | F14: U.E.M. | G14: U.F.L | H14: P.D.I.N. | I14: P.D.I.E. | J14: Pabs | L14: Caabs | O14: =IF(C9="","",C9) ->  | Q14: =IF(C9="","",1) -> 
B15: Stade physiologique | E15: =IF(B42=1,IF(C9="","",IF(C9="Mon fourrage",VLOOKUP($C$11,NOUVEAU!$E$22:$N30,3),VLOOKUP($E$9,$C$78:L246,2))),IF(C9="","",IF(C9="Mon fourrage",VLOOKUP($C$11,NOUVEAU!$E$22:$N30,3),VLOOKUP($E$9,$C$259:L433,2)))) ->  | F15: =IF(B42=1,IF(C9="","",IF(C9="Mon fourrage",VLOOKUP($C$11,NOUVEAU!$E$22:$N30,4),VLOOKUP($E$9,$C$78:M246,3))),IF(C9="","",IF(C9="Mon fourrage",VLOOKUP($C$11,NOUVEAU!$E$22:$N30,4),VLOOKUP($E$9,$C$259:M433,3)))) ->  | G15: =IF(B42=1,IF(C9="","",IF(C9="Mon fourrage",VLOOKUP($C$11,NOUVEAU!$E$22:$N30,5),VLOOKUP($E$9,$C$78:N246,5))),IF(C9="","",IF(C9="Mon fourrage",VLOOKUP($C$11,NOUVEAU!$E$22:$N30,5),VLOOKUP($E$9,$C$259:N433,5)))) ->  | H15: =IF(B42=1,IF(C9="","",IF(C9="Mon fourrage",VLOOKUP($C$11,NOUVEAU!$E$22:$N30,7),VLOOKUP($E$9,$C$78:O246,7))),IF(C9="","",IF(C9="Mon fourrage",VLOOKUP($C$11,NOUVEAU!$E$22:$N30,7),VLOOKUP($E$9,$C$259:O433,7)))) ->  | I15: =IF(B42=1,IF(C9="","",IF(C9="Mon fourrage",VLOOKUP($C$11,NOUVEAU!$E$22:$N30,8),VLOOKUP($E$9,$C$78:P246,8))),IF(C9="","",IF(C9="Mon fourrage",VLOOKUP($C$11,NOUVEAU!$E$22:$N30,8),VLOOKUP($E$9,$C$259:P433,8)))) ->  | J15: =IF(B42=1,IF(C9="","",IF(C9="Mon fourrage",VLOOKUP($C$11,NOUVEAU!$E$22:$N30,9),VLOOKUP($E$9,$C$78:Q246,9))),IF(C9="","",IF(C9="Mon fourrage",VLOOKUP($C$11,NOUVEAU!$E$22:$N30,9),VLOOKUP($E$9,$C$259:Q433,9)))) ->  | K15: =IF(B9="","",IF(B9="Mon fourrage",VLOOKUP($C$11,NOUVEAU!$E$22:$N31,10),VLOOKUP($E$9,$C$78:R246,10))) ->  | L15: =IF(B42=1,IF(C9="","",IF(C9="Mon fourrage",VLOOKUP($C$11,NOUVEAU!$E$22:$N30,10),VLOOKUP($E$9,$C$78:S246,10))),IF(C9="","",IF(C9="Mon fourrage",VLOOKUP($C$11,NOUVEAU!$E$22:$N30,10),VLOOKUP($E$9,$C$259:S433,10)))) -> 
E16: ND: non disponible
E20: FOURRAGE N° 2 (Rationné)
B21: 1 Cliquez sur les flèches pour faire votre choix | K21: 3 Saisissez les quantités brutes | O21: Densité énergétique de la ration minimale
B23: Catégorie fourrage | E23: =CONCATENATE(C23," ",C25," ",C27," ",C29) ->  | O23: DERm | Q23: =IF(ANIMAL!C8="","",ANIMAL!F16/ANIMAL!E16) -> 
B25: Espèce végétale | O25: =IF(C23="","",IF(Q23>Q27,">","<")) ->  | P25: Densité énergétique du fourrage
B27: Conditions de récolte | E27: Valeurs Alimentaires | O27: DEF | Q27: =IF(C9="","",IF(L24="",G15/F15,AVERAGE((G15/F1),(G29/F29)))) -> 
E28: % M.S. | F28: U.E.M | G28: U.F.L | H28: P.D.I.N. | I28: P.D.I.E. | J28: Pabs | L28: Caabs | O28: =IF(C9="","",IF(Q23>Q27,"Il faut ajouter un concentré","Un concentré n'est pas nécessaire")) -> 
B29: Stade physiologique | E29: =IF(B42=1,IF(C23="","",IF(C23="Mon fourrage",VLOOKUP($C$25,NOUVEAU!$E$22:$N30,3),VLOOKUP($E$23,$C$78:L246,2))),IF(C23="","",IF(C23="Mon fourrage",VLOOKUP($C$25,NOUVEAU!$E$22:$N30,3),VLOOKUP($E$23,$C$259:L433,2)))) ->  | F29: =IF(B42=1,IF(C23="","",IF(C23="Mon fourrage",VLOOKUP($C$25,NOUVEAU!$E$22:$N30,4),VLOOKUP($E$23,$C$78:M246,3))),IF(C23="","",IF(C23="Mon fourrage",VLOOKUP($C$25,NOUVEAU!$E$22:$N30,4),VLOOKUP($E$23,$C$259:M433,3)))) ->  | G29: =IF(B42=1,IF(C23="","",IF(C23="Mon fourrage",VLOOKUP($C$25,NOUVEAU!$E$22:$N30,5),VLOOKUP($E$23,$C$78:N246,5))),IF(C23="","",IF(C23="Mon fourrage",VLOOKUP($C$25,NOUVEAU!$E$22:$N30,5),VLOOKUP($E$23,$C$259:N433,5)))) ->  | H29: =IF(B42=1,IF(C23="","",IF(C23="Mon fourrage",VLOOKUP($C$25,NOUVEAU!$E$22:$N30,7),VLOOKUP($E$23,$C$78:O246,7))),IF(C23="","",IF(C23="Mon fourrage",VLOOKUP($C$25,NOUVEAU!$E$22:$N30,7),VLOOKUP($E$23,$C$259:O433,7)))) ->  | I29: =IF(B42=1,IF(C23="","",IF(C23="Mon fourrage",VLOOKUP($C$25,NOUVEAU!$E$22:$N30,8),VLOOKUP($E$23,$C$78:P246,8))),IF(C23="","",IF(C23="Mon fourrage",VLOOKUP($C$25,NOUVEAU!$E$22:$N30,8),VLOOKUP($E$23,$C$259:P433,8)))) ->  | J29: =IF(B42=1,IF(C23="","",IF(C23="Mon fourrage",VLOOKUP($C$25,NOUVEAU!$E$22:$N30,9),VLOOKUP($E$23,$C$78:Q246,9))),IF(C23="","",IF(C23="Mon fourrage",VLOOKUP($C$25,NOUVEAU!$E$22:$N30,9),VLOOKUP($E$23,$C$259:Q433,9)))) ->  | L29: =IF(B42=1,IF(C23="","",IF(C23="Mon fourrage",VLOOKUP($C$25,NOUVEAU!$E$22:$N30,10),VLOOKUP($E$23,$C$78:S246,10))),IF(C23="","",IF(C23="Mon fourrage",VLOOKUP($C$25,NOUVEAU!$E$22:$N30,10),VLOOKUP($E$23,$C$259:S433,10)))) -> 
E30: ND: non disponible
J40: =IF($C$9="Mon fourrage",NOUVEAU!E22,IF($C$9="Paille",Q40,IF($C$9="Ensilage",L40,IF($C$9="Pâture",S40,O40)))) -> Prairie naturelle | L40: Prairie naturelle | O40: Prairie naturelle | Q40: Blé | S40: Pré | U40: Déprimage
B41: =IF(L24="",0,L24*(E29/100)*F29) -> 0 | J41: =IF($C$9="Mon fourrage",NOUVEAU!E23,IF($C$9="Paille",Q41,IF($C$9="Ensilage",L41,IF($C$9="Pâture",S41,O41)))) -> Fétuque élevée | L41: Fétuque | O41: Fétuque élevée | Q41: Orge | S41: Colza fourrager | U41: Printemps
B42: 1 | E42: =IF($C$9="Mon Fourrage","",IF($C$9="Pâture","Déprimage",IF($C$9="Paille","",IF($C$11="Maïs","",L50)))) -> 1er cycle début épiaison (25/05) | J42: =IF($C$9="Mon fourrage",NOUVEAU!E24,IF($C$9="Paille",Q42,IF($C$9="Ensilage",L42,IF($C$9="Pâture",S42,O42)))) -> Luzerne-Dactyle | L42: Luzerne-Dactyle | O42: Luzerne-Dactyle | Q42: Triticale | S42: Betterave (distribuée) | U42: Fin Printemps
C43: Foin | E43: =IF($C$9="Mon Fourrage","",IF($C$9="Pâture","Printemps",IF($C$9="Paille","",IF($C$11="Maïs","",L51)))) -> 1er cycle épaison (10/06) | J43: =IF($C$9="Mon fourrage",NOUVEAU!E25,IF($C$9="Paille",Q43,IF($C$9="Ensilage",L43,IF($C$9="Pâture",S43,O43)))) -> Trèfle-Ray Grass | L43: Trèfle-Ray Grass | O43: Trèfle-Ray Grass | Q43: Avoine | S43: Vesce | U43: Repousses
C44: Ensilage | E44: =IF($C$9="Mon Fourrage","",IF($C$9="Pâture","Fin Printemps",IF($C$9="Paille","",IF($C$11="Maïs","",L52)))) -> 1er cycle début floraison (20/06) | J44: =IF($C$9="Mon fourrage",NOUVEAU!E26,IF($C$9="Paille",Q44,IF($C$9="Ensilage",L44,IF($C$9="Pâture",S44,O44)))) -> Ray Grass Italien | L44: Ray Grass Italien | O44: Ray Grass Italien | Q44: Paille traitée Ammoniac | S44: Trèfle blanc
C45: Paille | E45: =IF($C$9="Mon Fourrage","",IF($C$9="Pâture","Repousse",IF($C$9="Paille","",IF($C$11="Maïs","",L53)))) -> 2ème cycle (regain) | J45: =IF($C$9="Mon fourrage",NOUVEAU!E27,IF($C$9="Paille",Q45,IF($C$9="Ensilage",L45,IF($C$9="Pâture",S45,O45)))) -> Luzerne | L45: Luzerne | O45: Luzerne | S45: Avoine
C46: Pâture | E46: =IF($C$9="Mon Fourrage","",IF($C$9="Pâture","Dérobé",IF($C$9="Paille","",IF($C$11="Maïs","",L54)))) ->  | J46: =IF($C$9="Mon fourrage",NOUVEAU!E28,IF($C$9="Paille",Q46,IF($C$9="Ensilage",L46,IF($C$9="Pâture",S46,O46)))) ->  | L46: Maïs | S46: Navet
C47: Mon fourrage | E47: =IF($C$9="Mon Fourrage","",IF($C$9="Pâture","",IF($C$9="Paille","",IF($C$11="Maïs","",L55)))) -> 
D50: Ventilé (en grange) | G50: Ressuyage (25 % MS) | L50: 1er cycle début épiaison (25/05) | P50: Mauvaises conditions < 30 % MS
C51: =IF($C$9="Mon Fourrage","",IF($C$9="Pâture","",IF($C$9="Foin",D50,IF($C$9="Paille","",IF($C$11="Maïs",P50,G50))))) -> Ressuyage (25 % MS) | D51: Fané au sol par beau temps | G51: Préfané (35 % MS) | L51: 1er cycle épaison (10/06) | P51: Conditions normales 25 % MS
C52: =IF($C$9="Mon Fourrage","",IF($C$9="Pâture","",IF($C$9="Foin",D51,IF($C$9="Paille","",IF($C$11="Maïs",P51,G51))))) -> Préfané (35 % MS) | D52: Fané au sol < 10 jours) | G52: Enrubanné (> 45 % MS) | L52: 1er cycle début floraison (20/06) | P52: Conditions normales 30 % MS
C53: =IF($C$9="Mon Fourrage","",IF($C$9="Pâture","",IF($C$9="Foin",D52,IF($C$9="Paille","",IF($C$11="Maïs",P52,G52))))) -> Enrubanné (> 45 % MS) | L53: 2ème cycle (regain) | P53: Conditions normales 35 % MS
C54: =IF($C$9="Mon Fourrage","",IF($C$9="Pâture","",IF($C$9="Foin",D53,IF($C$9="Paille","",IF($C$11="Maïs",P53,G53))))) ->  | P54: Très bonnes conditions (> 35 % MS)
C55: =IF($C$9="Mon Fourrage","",IF($C$9="Pâture","",IF($C$9="Foin",D54,IF($C$9="Paille","",IF($C$11="Maïs",P54,G54))))) ->  | E55: Fourrage 1
C56: =IF($C$9="Pâture","",IF($C$9="Foin",D55,IF($C$9="Paille","",IF($C$11="Maïs",P55,G55)))) ->  | E56: Fourrage 2
E57: Fourrage 3 | J57: =IF($C$23="mon fourrage",NOUVEAU!E22,IF($C$23="Paille",Q57,IF($C$23="Ensilage",L57,IF($C$23="Pâture",S57,O57)))) -> Prairie naturelle | L57: Prairie naturelle | O57: Prairie naturelle | Q57: Blé | S57: Pré | U57: Déprimage
J58: =IF($C$23="mon fourrage",NOUVEAU!E23,IF($C$23="Paille",Q58,IF($C$23="Ensilage",L58,IF($C$23="Pâture",S58,O58)))) -> Fétuque élevée | L58: Fétuque | O58: Fétuque élevée | Q58: Orge | S58: Colza fourrager | U58: Printemps
E59: =IF($C$23="Mon Fourrage","",IF($C$23="Pâture","Déprimage",IF($C$23="Paille","",IF($C$25="Maïs","",L67)))) -> 1er cycle début épiaison (25/05) | J59: =IF($C$23="mon fourrage",NOUVEAU!E24,IF($C$23="Paille",Q59,IF($C$23="Ensilage",L59,IF($C$23="Pâture",S59,O59)))) -> Luzerne-Dactyle | L59: Luzerne-Dactyle | O59: Luzerne-Dactyle | Q59: Triticale | S59: Betterave (distribuée) | U59: Fin Printemps
C60: Foin | E60: =IF($C$23="Mon Fourrage","",IF($C$23="Pâture","Printemps",IF($C$23="Paille","",IF($C$25="Maïs","",L68)))) -> 1er cycle épaison (10/06) | J60: =IF($C$23="mon fourrage",NOUVEAU!E25,IF($C$23="Paille",Q60,IF($C$23="Ensilage",L60,IF($C$23="Pâture",S60,O60)))) -> Trèfle-Ray Grass | L60: Trèfle-Ray Grass | O60: Trèfle-Ray Grass | Q60: Avoine | S60: Vesce | U60: Repousses
C61: Ensilage | E61: =IF($C$23="Mon Fourrage","",IF($C$23="Pâture","Fin Printemps",IF($C$23="Paille","",IF($C$25="Maïs","",L69)))) -> 1er cycle début floraison (20/06) | J61: =IF($C$23="mon fourrage",NOUVEAU!E26,IF($C$23="Paille",Q61,IF($C$23="Ensilage",L61,IF($C$23="Pâture",S61,O61)))) -> Ray Grass Italien | L61: Ray Grass Italien | O61: Ray Grass Italien | Q61: Paille traitée Ammoniac | S61: Trèfle blanc
C62: Paille | E62: =IF($C$23="Mon Fourrage","",IF($C$23="Pâture","Repousse",IF($C$23="Paille","",IF($C$25="Maïs","",L70)))) -> 2ème cycle (regain) | J62: =IF($C$23="mon fourrage",NOUVEAU!E27,IF($C$23="Paille",Q62,IF($C$23="Ensilage",L62,IF($C$23="Pâture",S62,O62)))) -> Luzerne | L62: Luzerne | O62: Luzerne | S62: Avoine
C63: Pâture | E63: =IF($C$23="Mon Fourrage","",IF($C$23="Pâture","Dérobé",IF($C$23="Paille","",IF($C$25="Maïs","",L71)))) ->  | J63: =IF($C$23="Paille",Q63,IF($C$23="Ensilage",L63,IF($C$23="Pâture",S63,O63))) ->  | L63: Maïs | S63: Navet
C64: Mon fourrage | E64: =IF($C$23="Mon Fourrage","",IF($C$23="Pâture","",IF($C$23="Paille","",IF($C$25="Maïs","",L72)))) -> 
E65: =IF($C$23="Pâture","",IF($C$23="Paille","",IF($C$25="Maïs","",L73))) -> 
D67: Ventilé (en grange) | G67: Ressuyage (25 % MS) | L67: 1er cycle début épiaison (25/05) | P67: Mauvaises conditions < 30 % MS
C68: =IF($C$23="Mon Fourrage","",IF($C$23="Pâture","",IF($C$23="Foin",D67,IF($C$23="Paille","",IF($C$25="Maïs",P67,G67))))) -> Ressuyage (25 % MS) | D68: Fané au sol par beau temps | G68: Préfané (35 % MS) | L68: 1er cycle épaison (10/06) | P68: Conditions normales 25 % MS
C69: =IF($C$23="Mon Fourrage","",IF($C$23="Pâture","",IF($C$23="Foin",D68,IF($C$23="Paille","",IF($C$25="Maïs",P68,G68))))) -> Préfané (35 % MS) | D69: Fané au sol < 10 jours) | G69: Enrubanné (> 45 % MS) | L69: 1er cycle début floraison (20/06) | P69: Conditions normales 30 % MS
C70: =IF($C$23="Mon Fourrage","",IF($C$23="Pâture","",IF($C$23="Foin",D69,IF($C$23="Paille","",IF($C$25="Maïs",P69,G69))))) -> Enrubanné (> 45 % MS) | L70: 2ème cycle (regain) | P70: Conditions normales 35 % MS
C71: =IF($C$23="Mon Fourrage","",IF($C$23="Pâture","",IF($C$23="Foin",D70,IF($C$23="Paille","",IF($C$25="Maïs",P70,G70))))) ->  | P71: Très bonnes conditions (> 35 % MS)
C72: =IF($C$23="Mon Fourrage","",IF($C$23="Pâture","",IF($C$23="Foin",D71,IF($C$23="Paille","",IF($C$25="Maïs",P71,G71))))) -> 
D77: % MS | E77: UEM | F77: UEB | G77: UFL | H77: UFV | I77: PDIN | J77: PDIE | K77: Pabs | L77: Caabs
C78: Betterave fourragère | D78: 13 | E78: 0.91 | F78: 1.2 | G78: 1.15 | H78: 1.16 | I78: 62 | J78: 86 | K78: 1.1 | L78: 0.5
C79: Ensilage Fétuque Enrubanné (> 45 % MS) 1er cycle épaison (10/06) | D79: 55 | E79: 1.53 | F79: 1.26 | G79: 0.67 | H79: 0.59 | I79: 66 | J79: 68 | K79: 1.4 | L79: 1.3 | M79: 27
C80: Ensilage Fétuque Enrubanné (> 45 % MS) 1er cycle début épiaison (25/05) | D80: 55 | E80: 1.41 | F80: 1.14 | G80: 0.73 | H80: 0.65 | I80: 82 | J80: 75 | K80: 1.6 | L80: 1.3 | M80: 26
C81: Ensilage Fétuque Enrubanné (> 45 % MS) 1er cycle début floraison (20/06) | D81: ND | E81: ND | F81: ND | G81: ND | H81: ND | I81: ND | J81: ND | K81: ND | L81: ND | M81: 28
C82: Ensilage Fétuque Enrubanné (> 45 % MS) 2ème cycle (regain) | D82: 55 | E82: 1.4 | F82: 1.13 | G82: 0.71 | H82: 0.63 | I82: 85 | J82: 77 | K82: 1.8 | L82: 1.8 | M82: 29
C83: Ensilage Fétuque Préfané (35 % MS) 1er cycle épaison (10/06) | D83: 33 | E83: 1.76 | F83: 1.23 | G83: 0.67 | H83: 0.58 | I83: 69 | J83: 58 | K83: 1.4 | L83: 1.3 | M83: 23
C84: Ensilage Fétuque Préfané (35 % MS) 1er cycle début épiaison (25/05) | D84: 33 | E84: 1.48 | F84: 1.13 | G84: 0.73 | H84: 0.65 | I84: 83 | J84: 63 | K84: 1.6 | L84: 1.3 | M84: 22
C85: Ensilage Fétuque Préfané (35 % MS) 1er cycle début floraison (20/06) | D85: ND | E85: ND | F85: ND | G85: ND | H85: ND | I85: ND | J85: ND | K85: ND | L85: ND | M85: 24
C86: Ensilage Fétuque Préfané (35 % MS) 2ème cycle (regain) | D86: 33 | E86: 1.46 | F86: 1.12 | G86: 0.72 | H86: 0.64 | I86: 85 | J86: 64 | K86: 1.8 | L86: 1.8 | M86: 25
C87: Ensilage Fétuque Ressuyage (25 % MS) 1er cycle épaison (10/06) | D87: 21 | E87: 1.48 | F87: 1.4 | G87: 0.73 | H87: 0.64 | I87: 65 | J87: 49 | K87: 1.4 | L87: 1.3 | M87: 19
C88: Ensilage Fétuque Ressuyage (25 % MS) 1er cycle début épiaison (25/05) | D88: 21 | E88: 1.39 | F88: 1.31 | G88: 0.79 | H88: 0.72 | I88: 78 | J88: 53 | K88: 1.6 | L88: 1.3 | M88: 18
C89: Ensilage Fétuque Ressuyage (25 % MS) 1er cycle début floraison (20/06) | D89: ND | E89: ND | F89: ND | G89: ND | H89: ND | I89: ND | J89: ND | K89: ND | L89: ND | M89: 20
C90: Ensilage Fétuque Ressuyage (25 % MS) 2ème cycle (regain) | D90: 21 | E90: 1.38 | F90: 1.26 | G90: 0.78 | H90: 0.7 | I90: 81 | J90: 55 | K90: 1.8 | L90: 1.8 | M90: 21
C91: Ensilage Luzerne Enrubanné (> 45 % MS) 1er cycle épaison (10/06) | D91: 55 | E91: 1.2 | F91: 1.07 | G91: 0.67 | H91: 0.57 | I91: 105 | J91: 75 | K91: 1.7 | L91: 3.8 | M91: 75
C92: Ensilage Luzerne Enrubanné (> 45 % MS) 1er cycle début épiaison (25/05) | D92: 55 | E92: 1.19 | F92: 1.07 | G92: 0.71 | H92: 0.62 | I92: 113 | J92: 79 | K92: 1.7 | L92: 3.8 | M92: 74
C93: Ensilage Luzerne Enrubanné (> 45 % MS) 1er cycle début floraison (20/06) | D93: ND | E93: ND | F93: ND | G93: ND | H93: ND | I93: ND | J93: ND | K93: ND | L93: ND | M93: 76
C94: Ensilage Luzerne Enrubanné (> 45 % MS) 2ème cycle (regain) | D94: 55 | E94: 1.17 | F94: 1.08 | G94: 0.7 | H94: 0.61 | I94: 114 | J94: 77 | K94: 1.5 | L94: 3.6 | M94: 77
C95: Ensilage Luzerne Préfané (35 % MS) 1er cycle épaison (10/06) | D95: ND | E95: ND | F95: ND | G95: ND | H95: ND | I95: ND | J95: ND | K95: ND | L95: ND | M95: 71
C96: Ensilage Luzerne Préfané (35 % MS) 1er cycle début épiaison (25/05) | D96: ND | E96: ND | F96: ND | G96: ND | H96: ND | I96: ND | J96: ND | K96: ND | L96: ND | M96: 70
C97: Ensilage Luzerne Préfané (35 % MS) 1er cycle début floraison (20/06) | D97: ND | E97: ND | F97: ND | G97: ND | H97: ND | I97: ND | J97: ND | K97: ND | L97: ND | M97: 72
C98: Ensilage Luzerne Préfané (35 % MS) 2ème cycle (regain) | D98: ND | E98: ND | F98: ND | G98: ND | H98: ND | I98: ND | J98: ND | K98: ND | L98: ND | M98: 73
C99: Ensilage Luzerne Ressuyage (25 % MS) 1er cycle épaison (10/06) | D99: ND | E99: ND | F99: ND | G99: ND | H99: ND | I99: ND | J99: ND | K99: ND | L99: ND | M99: 67
C100: Ensilage Luzerne Ressuyage (25 % MS) 1er cycle début épiaison (25/05) | D100: ND | E100: ND | F100: ND | G100: ND | H100: ND | I100: ND | J100: ND | K100: ND | L100: ND | M100: 66
C101: Ensilage Luzerne Ressuyage (25 % MS) 1er cycle début floraison (20/06) | D101: ND | E101: ND | F101: ND | G101: ND | H101: ND | I101: ND | J101: ND | K101: ND | L101: ND | M101: 68
C102: Ensilage Luzerne Ressuyage (25 % MS) 2ème cycle (regain) | D102: ND | E102: ND | F102: ND | G102: ND | H102: ND | I102: ND | J102: ND | K102: ND | L102: ND | M102: 69
C103: Ensilage Luzerne-Dactyle Enrubanné (> 45 % MS) 1er cycle épaison (10/06) | D103: 55 | E103: 1.37 | F103: 1.16 | G103: 0.69 | H103: 0.6 | I103: 91 | J103: 74 | K103: 1.5 | L103: 2.4 | M103: 39
C104: Ensilage Luzerne-Dactyle Enrubanné (> 45 % MS) 1er cycle début épiaison (25/05) | D104: 55 | E104: 1.26 | F104: 1.07 | G104: 0.76 | H104: 0.68 | I104: 107 | J104: 82 | K104: 1.5 | L104: 2.4 | M104: 38
C105: Ensilage Luzerne-Dactyle Enrubanné (> 45 % MS) 1er cycle début floraison (20/06) | D105: ND | E105: ND | F105: ND | G105: ND | H105: ND | I105: ND | J105: ND | K105: ND | L105: ND | M105: 40
C106: Ensilage Luzerne-Dactyle Enrubanné (> 45 % MS) 2ème cycle (regain) | D106: 55 | E106: 1.27 | F106: 1.09 | G106: 0.71 | H106: 0.62 | I106: 103 | J106: 78 | K106: 1.5 | L106: 2.8 | M106: 41
C107: Ensilage Luzerne-Dactyle Préfané (35 % MS) 1er cycle épaison (10/06) | D107: 33 | E107: 1.16 | F107: 1.12 | G107: 0.73 | H107: 0.64 | I107: 98 | J107: 65 | K107: 1.5 | L107: 2.4 | M107: 35
C108: Ensilage Luzerne-Dactyle Préfané (35 % MS) 1er cycle début épiaison (25/05) | D108: 33 | E108: 1.21 | F108: 1.01 | G108: 0.8 | H108: 0.73 | I108: 113 | J108: 71 | K108: 1.5 | L108: 2.4 | M108: 34
C109: Ensilage Luzerne-Dactyle Préfané (35 % MS) 1er cycle début floraison (20/06) | D109: ND | E109: ND | F109: ND | G109: ND | H109: ND | I109: ND | J109: ND | K109: ND | L109: ND | M109: 32
C110: Ensilage Luzerne-Dactyle Préfané (35 % MS) 2ème cycle (regain) | D110: 33 | E110: 1.23 | F110: 1.04 | G110: 0.73 | H110: 0.64 | I110: 106 | J110: 66 | K110: 1.5 | L110: 2.8 | M110: 37
C111: Ensilage Luzerne-Dactyle Ressuyage (25 % MS) 1er cycle épaison (10/06) | D111: 21 | E111: 1.32 | F111: 1.32 | G111: 0.79 | H111: 0.71 | I111: 90 | J111: 55 | K111: 1.5 | L111: 2.4 | M111: 31
C112: Ensilage Luzerne-Dactyle Ressuyage (25 % MS) 1er cycle début épiaison (25/05) | D112: 21 | E112: 1.22 | F112: 1.22 | G112: 0.87 | H112: 0.8 | I112: 102 | J112: 60 | K112: 1.5 | L112: 2.4 | M112: 30
C113: Ensilage Luzerne-Dactyle Ressuyage (25 % MS) 1er cycle début floraison (20/06) | D113: ND | E113: ND | F113: ND | G113: ND | H113: ND | I113: ND | J113: ND | K113: ND | L113: ND | M113: 36
C114: Ensilage Luzerne-Dactyle Ressuyage (25 % MS) 2ème cycle (regain) | D114: 21 | E114: 1.23 | F114: 1.17 | G114: 0.78 | H114: 0.69 | I114: 98 | J114: 56 | K114: 1.5 | L114: 2.8 | M114: 33
C115: Ensilage Maïs Conditions normales 25 % MS | D115: 25 | E115: 1.28 | F115: 1.23 | G115: 0.9 | H115: 0.8 | I115: 44 | J115: 63 | K115: 1.3 | L115: 0.8 | M115: 1
C116: Ensilage Maïs Conditions normales 30 % MS | D116: 30 | E116: 1.28 | F116: 1.13 | G116: 0.9 | H116: 0.8 | I116: 42 | J116: 65 | K116: 1.3 | L116: 0.8 | M116: 2
C117: Ensilage Maïs Conditions normales 35 % MS | D117: 35 | E117: 1.28 | F117: 1.05 | G117: 0.91 | H117: 0.81 | I117: 42 | J117: 67 | K117: 1.3 | L117: 0.8 | M117: 3
C118: Ensilage Maïs Mauvaises conditions < 30 % MS | D118: 25 | E118: 1.5 | F118: 1.26 | G118: 0.85 | H118: 0.73 | I118: 65 | J118: 66 | K118: 1.3 | L118: 0.8 | M118: 5
C119: Ensilage Maïs Très bonnes conditions (> 35 % MS) | D119: 35 | E119: 1.36 | F119: 1 | G119: 0.96 | H119: 0.87 | I119: 50 | J119: 71 | K119: 1.3 | L119: 0.8 | M119: 4
C120: Ensilage Prairie naturelle Enrubanné (> 45 % MS) 1er cycle épaison | D120: 55 | E120: 1.56 | F120: 1.29 | G120: 0.73 | H120: 0.65 | I120: 71 | J120: 75 | K120: 1.9 | L120: 2 | M120: 15
C121: Ensilage Prairie naturelle Enrubanné (> 45 % MS) 1er cycle début épiaison | D121: 55 | E121: 1.38 | F121: 1.11 | G121: 0.82 | H121: 0.75 | I121: 86 | J121: 83 | K121: 1.9 | L121: 2.2 | M121: 14
C122: Ensilage Prairie naturelle Enrubanné (> 45 % MS) 1er cycle début floraison | D122: ND | E122: ND | F122: ND | G122: ND | H122: ND | I122: ND | J122: ND | K122: ND | L122: ND | M122: 16
C123: Ensilage Prairie naturelle Enrubanné (> 45 % MS) 2ème cycle (regain) | D123: 55 | E123: 1.51 | F123: 1.24 | G123: 0.76 | H123: 0.68 | I123: 71 | J123: 77 | K123: 1.9 | L123: 2.2 | M123: 17
C124: Ensilage Prairie naturelle Préfané (35 % MS) 1er cycle épaison | D124: 33 | E124: 1.85 | F124: 1.26 | G124: 0.75 | H124: 0.66 | I124: 74 | J124: 65 | K124: 1.9 | L124: 2 | M124: 11
C125: Ensilage Prairie naturelle Préfané (35 % MS) 1er cycle début épiaison | D125: 33 | E125: 1.4 | F125: 1.09 | G125: 0.85 | H125: 0.77 | I125: 87 | J125: 72 | K125: 1.9 | L125: 2.2 | M125: 10
C126: Ensilage Prairie naturelle Préfané (35 % MS) 1er cycle début floraison | D126: ND | E126: ND | F126: ND | G126: ND | H126: ND | I126: ND | J126: ND | K126: ND | L126: ND | M126: 12
C127: Ensilage Prairie naturelle Préfané (35 % MS) 2ème cycle (regain) | D127: 33 | E127: 1.71 | F127: 1.21 | G127: 0.79 | H127: 0.7 | I127: 74 | J127: 68 | K127: 1.9 | L127: 2.2 | M127: 13
C128: Ensilage Prairie naturelle Ressuyage (25 % MS) 1er cycle épaison | D128: 21 | E128: 1.51 | F128: 1.45 | G128: 0.81 | H128: 0.72 | I128: 70 | J128: 58 | K128: 1.9 | L128: 2 | M128: 7
C129: Ensilage Prairie naturelle Ressuyage (25 % MS) 1er cycle début épiaison | D129: 20 | E129: 1.36 | F129: 1.31 | G129: 0.9 | H129: 0.83 | I129: 80 | J129: 62 | K129: 1.9 | L129: 2.2 | M129: 6
C130: Ensilage Prairie naturelle Ressuyage (25 % MS) 1er cycle début floraison | D130: ND | E130: ND | F130: ND | G130: ND | H130: ND | I130: ND | J130: ND | K130: ND | L130: ND | M130: 8
C131: Ensilage Prairie naturelle Ressuyage (25 % MS) 2ème cycle (regain) | D131: 21 | E131: 1.47 | F131: 1.41 | G131: 0.84 | H131: 0.77 | I131: 69 | J131: 60 | K131: 1.9 | L131: 2.2 | M131: 9
C132: Ensilage Ray Grass Italien Enrubanné (> 45 % MS) 1er cycle épaison (10/06) | D132: 55 | E132: 1.48 | F132: 1.21 | G132: 0.72 | H132: 0.64 | I132: 52 | J132: 67 | K132: 1.4 | L132: 1.8 | M132: 63
C133: Ensilage Ray Grass Italien Enrubanné (> 45 % MS) 1er cycle début épiaison (25/05) | D133: 55 | E133: 1.37 | F133: 1.1 | G133: 0.81 | H133: 0.74 | I133: 67 | J133: 76 | K133: 1.6 | L133: 1.8 | M133: 62
C134: Ensilage Ray Grass Italien Enrubanné (> 45 % MS) 1er cycle début floraison (20/06) | D134: ND | E134: ND | F134: ND | G134: ND | H134: ND | I134: ND | J134: ND | K134: ND | L134: ND | M134: 64
C135: Ensilage Ray Grass Italien Enrubanné (> 45 % MS) 2ème cycle (regain) | D135: 55 | E135: 1.42 | F135: 1.15 | G135: 0.71 | H135: 0.63 | I135: 78 | J135: 75 | K135: 1.6 | L135: 1.8 | M135: 65
C136: Ensilage Ray Grass Italien Préfané (35 % MS) 1er cycle épaison (10/06) | D136: 33 | E136: 1.62 | F136: 1.18 | G136: 0.74 | H136: 0.67 | I136: 57 | J136: 59 | K136: 1.4 | L136: 1.8 | M136: 59
C137: Ensilage Ray Grass Italien Préfané (35 % MS) 1er cycle début épiaison (25/05) | D137: 33 | E137: 1.39 | F137: 1.08 | G137: 0.83 | H137: 0.77 | I137: 70 | J137: 65 | K137: 1.6 | L137: 1.8 | M137: 58
C138: Ensilage Ray Grass Italien Préfané (35 % MS) 1er cycle début floraison (20/06) | D138: ND | E138: ND | F138: ND | G138: ND | H138: ND | I138: ND | J138: ND | K138: ND | L138: ND | M138: 60
C139: Ensilage Ray Grass Italien Préfané (35 % MS) 2ème cycle (regain) | D139: 33 | E139: 1.49 | F139: 1.13 | G139: 0.72 | H139: 0.64 | I139: 80 | J139: 64 | K139: 1.6 | L139: 1.8 | M139: 61
C140: Ensilage Ray Grass Italien Ressuyage (25 % MS) 1er cycle épaison (10/06) | D140: 21 | E140: 1.44 | F140: 1.35 | G140: 0.81 | H140: 0.73 | I140: 54 | J140: 51 | K140: 1.4 | L140: 1.8 | M140: 55
C141: Ensilage Ray Grass Italien Ressuyage (25 % MS) 1er cycle début épiaison (25/05) | D141: 21 | E141: 1.36 | F141: 1.3 | G141: 0.9 | H141: 0.84 | I141: 65 | J141: 55 | K141: 1.6 | L141: 1.8 | M141: 54
C142: Ensilage Ray Grass Italien Ressuyage (25 % MS) 1er cycle début floraison (20/06) | D142: ND | E142: ND | F142: ND | G142: ND | H142: ND | I142: ND | J142: ND | K142: ND | L142: ND | M142: 56
C143: Ensilage Ray Grass Italien Ressuyage (25 % MS) 2ème cycle (regain) | D143: 21 | E143: 1.39 | F143: 1.31 | G143: 0.79 | H143: 0.71 | I143: 74 | J143: 53 | K143: 1.6 | L143: 1.8 | M143: 57
C144: Ensilage Trèfle-Ray Grass Enrubanné (> 45 % MS) 1er cycle épaison (10/06) | D144: 55 | E144: 1.33 | F144: 1.19 | G144: 0.76 | H144: 0.69 | I144: 86 | J144: 77 | K144: 1.7 | L144: 2.8 | M144: 51
C145: Ensilage Trèfle-Ray Grass Enrubanné (> 45 % MS) 1er cycle début épiaison (25/05) | D145: 55 | E145: 1.26 | F145: 1.08 | G145: 0.83 | H145: 0.76 | I145: 103 | J145: 84 | K145: 1.7 | L145: 2.8 | M145: 50
C146: Ensilage Trèfle-Ray Grass Enrubanné (> 45 % MS) 1er cycle début floraison (20/06) | D146: ND | E146: ND | F146: ND | G146: ND | H146: ND | I146: ND | J146: ND | K146: ND | L146: ND | M146: 52
C147: Ensilage Trèfle-Ray Grass Enrubanné (> 45 % MS) 2ème cycle (regain) | D147: 55 | E147: 1.24 | F147: 1.09 | G147: 0.74 | H147: 0.66 | I147: 95 | J147: 78 | K147: 1.7 | L147: 2.8 | M147: 53
C148: Ensilage Trèfle-Ray Grass Préfané (35 % MS) 1er cycle épaison (10/06) | D148: 33 | E148: 1.45 | F148: 1.17 | G148: 0.77 | H148: 0.7 | I148: 87 | J148: 72 | K148: 1.7 | L148: 2.8 | M148: 47
C149: Ensilage Trèfle-Ray Grass Préfané (35 % MS) 1er cycle début épiaison (25/05) | D149: 33 | E149: 1.3 | F149: 1.08 | G149: 0.84 | H149: 0.78 | I149: 103 | J149: 78 | K149: 1.7 | L149: 2.8 | M149: 46
C150: Ensilage Trèfle-Ray Grass Préfané (35 % MS) 1er cycle début floraison (20/06) | D150: ND | E150: ND | F150: ND | G150: ND | H150: ND | I150: ND | J150: ND | K150: ND | L150: ND | M150: 48
C151: Ensilage Trèfle-Ray Grass Préfané (35 % MS) 2ème cycle (regain) | D151: 33 | E151: 1.46 | F151: 1.14 | G151: 0.76 | H151: 0.69 | I151: 80 | J151: 72 | K151: 1.7 | L151: 2.8 | M151: 49
C152: Ensilage Trèfle-Ray Grass Ressuyage (25 % MS) 1er cycle épaison (10/06) | D152: 21 | E152: 1.29 | F152: 1.33 | G152: 0.86 | H152: 0.79 | I152: 82 | J152: 56 | K152: 1 | L152: 2.8 | M152: 43
C153: Ensilage Trèfle-Ray Grass Ressuyage (25 % MS) 1er cycle début épiaison (25/05) | D153: 21 | E153: 1.24 | F153: 1.28 | G153: 0.93 | H153: 0.88 | I153: 93 | J153: 60 | K153: 1.7 | L153: 2.8 | M153: 42
C154: Ensilage Trèfle-Ray Grass Ressuyage (25 % MS) 1er cycle début floraison (20/06) | D154: ND | E154: ND | F154: ND | G154: ND | H154: ND | I154: ND | J154: ND | K154: ND | L154: ND | M154: 44
C155: Ensilage Trèfle-Ray Grass Ressuyage (25 % MS) 2ème cycle (regain) | D155: 21 | E155: 1.21 | F155: 1.16 | G155: 0.82 | H155: 0.74 | I155: 91 | J155: 86 | K155: 1.7 | L155: 2.8 | M155: 45
C156: Fané < 10 jours 3è coupe | D156: 85 | E156: 1.28 | F156: 1.16 | G156: 0.6 | H156: 0.5 | I156: 119 | J156: 86 | K156: 1.3 | L156: 4.3 | M156: 149
C157: Fané par beau temps 3è coupe | D157: 85 | E157: 1.18 | F157: 1.06 | G157: 0.68 | H157: 0.58 | I157: 122 | J157: 92 | K157: 1.3 | L157: 4.3 | M157: 145
C158: Foin Fétuque élevée Fané au sol < 10 jours) 1er cycle épaison (10/06) | D158: 85 | E158: 1.52 | F158: 1.2 | G158: 0.64 | H158: 0.55 | I158: 65 | J158: 74 | K158: 1.6 | L158: 1.1 | M158: 99
C159: Foin Fétuque élevée Fané au sol < 10 jours) 1er cycle début épiaison (25/05) | D159: 85 | E159: ND | F159: ND | G159: ND | H159: ND | I159: ND | J159: ND | K159: ND | L159: ND | M159: 98
C160: Foin Fétuque élevée Fané au sol < 10 jours) 1er cycle début floraison (20/06) | D160: 85 | E160: 1.82 | F160: 1.36 | G160: 0.55 | H160: 0.45 | I160: 56 | J160: 65 | K160: 1.4 | L160: 1.1 | M160: 100
C161: Foin Fétuque élevée Fané au sol < 10 jours) 2ème cycle (regain) | D161: 85 | E161: 1.45 | F161: 1.15 | G161: 0.67 | H161: 0.58 | I161: 80 | J161: 82 | K161: 1.9 | L161: 1.4 | M161: 101
C162: Foin Fétuque élevée Fané au sol par beau temps 1er cycle épaison (10/06) | D162: 85 | E162: 1.4 | F162: 1.11 | G162: 0.66 | H162: 0.58 | I162: 69 | J162: 76 | K162: 1.6 | L162: 1.1 | M162: 95
C163: Foin Fétuque élevée Fané au sol par beau temps 1er cycle début épiaison (25/05) | D163: 85 | E163: ND | F163: ND | G163: ND | H163: ND | I163: ND | J163: ND | K163: ND | L163: ND | M163: 94
C164: Foin Fétuque élevée Fané au sol par beau temps 1er cycle début floraison (20/06) | D164: 85 | E164: 1.64 | F164: 1.27 | G164: 0.57 | H164: 0.47 | I164: 59 | J164: 68 | K164: 1.4 | L164: 1.1 | M164: 96
C165: Foin Fétuque élevée Fané au sol par beau temps 2ème cycle (regain) | D165: 85 | E165: 1.33 | F165: 1.06 | G165: 0.69 | H165: 0.61 | I165: 84 | J165: 85 | K165: 1.9 | L165: 1.4 | M165: 97
C166: Foin Fétuque élevée Ventilé (en grange) 1er cycle épaison (10/06) | D166: 85 | E166: 1.3 | F166: 1.11 | G166: 0.67 | H166: 0.58 | I166: 69 | J166: 77 | K166: 1.6 | L166: 1.1 | M166: 91
C167: Foin Fétuque élevée Ventilé (en grange) 1er cycle début épiaison (25/05) | D167: 85 | E167: 1.22 | F167: 1.04 | G167: 0.73 | H167: 0.65 | I167: 89 | J167: 87 | K167: 1.7 | L167: 1.1 | M167: 90
C168: Foin Fétuque élevée Ventilé (en grange) 1er cycle début floraison (20/06) | D168: ND | E168: ND | F168: ND | G168: ND | H168: ND | I168: ND | J168: ND | K168: ND | L168: ND | M168: 92
C169: Foin Fétuque élevée Ventilé (en grange) 2ème cycle (regain) | D169: ND | E169: ND | F169: ND | G169: ND | H169: ND | I169: ND | J169: ND | K169: ND | L169: ND | M169: 93
C170: Foin Luzerne Fané au sol < 10 jours) 1er cycle épaison (10/06) | D170: 85 | E170: 1.34 | F170: 1.15 | G170: 0.55 | H170: 0.44 | I170: 103 | J170: 81 | K170: 1.3 | L170: 3.8 | M170: 147
C171: Foin Luzerne Fané au sol < 10 jours) 1er cycle début épiaison (25/05) | D171: 85 | E171: 1.3 | F171: 1.14 | G171: 0.6 | H171: 0.49 | I171: 111 | J171: 86 | K171: 1.4 | L171: 3.8 | M171: 146
C172: Foin Luzerne Fané au sol < 10 jours) 1er cycle début floraison (20/06) | D172: ND | E172: ND | F172: ND | G172: ND | H172: ND | I172: ND | J172: ND | K172: ND | L172: ND | M172: 149
C173: Foin Luzerne Fané au sol < 10 jours) 2ème cycle (regain) | D173: 85 | E173: 1.27 | F173: 1.14 | G173: 0.59 | H173: 0.49 | I173: 111 | J173: 74 | K173: 1.3 | L173: 3.3 | M173: 148
C174: Foin Luzerne Fané au sol par beau temps 1er cycle épaison (10/06) | D174: 85 | E174: 1.23 | F174: 1.05 | G174: 0.62 | H174: 0.52 | I174: 107 | J174: 87 | K174: 1.3 | L174: 3.8 | M174: 143
C175: Foin Luzerne Fané au sol par beau temps 1er cycle début épiaison (25/05) | D175: 85 | E175: 1.2 | F175: 1.04 | G175: 0.67 | H175: 0.58 | I175: 114 | J175: 91 | K175: 1.4 | L175: 3.8 | M175: 142
C176: Foin Luzerne Fané au sol par beau temps 1er cycle début floraison (20/06) | D176: ND | E176: ND | F176: ND | G176: ND | H176: ND | I176: ND | J176: ND | K176: ND | L176: ND | M176: 145
C177: Foin Luzerne Fané au sol par beau temps 2ème cycle (regain) | D177: 85 | E177: 1.17 | F177: 1.04 | G177: 0.67 | H177: 0.57 | I177: 115 | J177: 90 | K177: 1.3 | L177: 3.3 | M177: 144
C178: Foin Luzerne Ventilé (en grange) 1er cycle épaison (10/06) | D178: 85 | E178: 1.14 | F178: 0.95 | G178: 0.66 | H178: 0.56 | I178: 113 | J178: 91 | K178: 1.4 | L178: 3.8 | M178: 139
C179: Foin Luzerne Ventilé (en grange) 1er cycle début épiaison (25/05) | D179: 85 | E179: 1.1 | F179: 0.92 | G179: 0.71 | H179: 0.63 | I179: 122 | J179: 96 | K179: 1.4 | L179: 3.8 | M179: 138
C180: Foin Luzerne Ventilé (en grange) 1er cycle début floraison (20/06) | D180: ND | E180: ND | F180: ND | G180: ND | H180: ND | I180: ND | J180: ND | K180: ND | L180: ND | M180: 140
C181: Foin Luzerne Ventilé (en grange) 2ème cycle (regain) | D181: ND | E181: ND | F181: ND | G181: ND | H181: ND | I181: ND | J181: ND | K181: ND | L181: ND | M181: 141
C182: Foin Luzerne-Dactyle Fané au sol < 10 jours) 1er cycle épaison (10/06) | D182: 85 | E182: 1.4 | F182: 1.16 | G182: 0.66 | H182: 0.56 | I182: 99 | J182: 86 | K182: 1.4 | L182: 2.3 | M182: 111
C183: Foin Luzerne-Dactyle Fané au sol < 10 jours) 1er cycle début épiaison (25/05) | D183: ND | E183: ND | F183: ND | G183: ND | H183: ND | I183: ND | J183: ND | K183: ND | L183: ND | M183: 110
C184: Foin Luzerne-Dactyle Fané au sol < 10 jours) 1er cycle début floraison (20/06) | D184: 85 | E184: 1.6 | F184: 1.27 | G184: 0.57 | H184: 0.46 | I184: 80 | J184: 74 | K184: 1.2 | L184: 2.3 | M184: 112
C185: Foin Luzerne-Dactyle Fané au sol < 10 jours) 2ème cycle (regain) | D185: 85 | E185: 1.33 | F185: 1.13 | G185: 0.63 | H185: 0.54 | I185: 99 | J185: 79 | K185: 1.4 | L185: 2.4 | M185: 113
C186: Foin Luzerne-Dactyle Fané au sol par beau temps 1er cycle épaison (10/06) | D186: 85 | E186: 1.28 | F186: 1.06 | G186: 0.71 | H186: 0.63 | I186: 102 | J186: 90 | K186: 1.4 | L186: 2.3 | M186: 107
C187: Foin Luzerne-Dactyle Fané au sol par beau temps 1er cycle début épiaison (25/05) | D187: ND | E187: ND | F187: ND | G187: ND | H187: ND | I187: ND | J187: ND | K187: ND | L187: ND | M187: 106
C188: Foin Luzerne-Dactyle Fané au sol par beau temps 1er cycle début floraison (20/06) | D188: 85 | E188: 1.45 | F188: 1.17 | G188: 0.61 | H188: 0.51 | I188: 83 | J188: 79 | K188: 1.2 | L188: 2.3 | M188: 108
C189: Foin Luzerne-Dactyle Fané au sol par beau temps 2ème cycle (regain) | D189: 85 | E189: 1.22 | F189: 1.03 | G189: 0.68 | H189: 0.59 | I189: 103 | J189: 89 | K189: 1.4 | L189: 2.4 | M189: 109
C190: Foin Luzerne-Dactyle Ventilé (en grange) 1er cycle épaison (10/06) | D190: 85 | E190: 1.21 | F190: 1.01 | G190: 0.71 | H190: 0.62 | I190: 102 | J190: 90 | K190: 1.4 | L190: 2.3 | M190: 103
C191: Foin Luzerne-Dactyle Ventilé (en grange) 1er cycle début épiaison (25/05) | D191: 85 | E191: 1.1 | F191: 0.93 | G191: 0.76 | H191: 0.69 | I191: 123 | J191: 99 | K191: 1.5 | L191: 2.4 | M191: 102
C192: Foin Luzerne-Dactyle Ventilé (en grange) 1er cycle début floraison (20/06) | D192: ND | E192: ND | F192: ND | G192: ND | H192: ND | I192: ND | J192: ND | K192: ND | L192: ND | M192: 104
C193: Foin Luzerne-Dactyle Ventilé (en grange) 2ème cycle (regain) | D193: ND | E193: ND | F193: ND | G193: ND | H193: ND | I193: ND | J193: ND | K193: ND | L193: ND | M193: 105
C194: Foin Prairie naturelle Fané au sol < 10 jours) 1er cycle épaison | D194: 85 | E194: 1.69 | F194: 1.29 | G194: 0.69 | H194: 0.6 | I194: 65 | J194: 79 | K194: 2 | L194: 1.5 | M194: 87
C195: Foin Prairie naturelle Fané au sol < 10 jours) 1er cycle début épiaison | D195: 85 | E195: 1.4 | F195: 1.13 | G195: 0.76 | H195: 0.67 | I195: 82 | J195: 88 | K195: 2.1 | L195: 1.6 | M195: 86
C196: Foin Prairie naturelle Fané au sol < 10 jours) 1er cycle début floraison | D196: 85 | E196: 1.88 | F196: 1.4 | G196: 0.61 | H196: 0.51 | I196: 54 | J196: 71 | K196: 2 | L196: 1.4 | M196: 88
C197: Foin Prairie naturelle Fané au sol < 10 jours) 2ème cycle (regain) | D197: 85 | E197: 1.4 | F197: 1.12 | G197: 0.75 | H197: 0.66 | I197: 96 | J197: 96 | K197: 2.1 | L197: 2 | M197: 89
C198: Foin Prairie naturelle Fané au sol par beau temps 1er cycle épaison | D198: 85 | E198: 1.53 | F198: 1.2 | G198: 0.72 | H198: 0.63 | I198: 69 | J198: 82 | K198: 2 | L198: 1.5 | M198: 83
C199: Foin Prairie naturelle Fané au sol par beau temps 1er cycle début épiaison | D199: 85 | E199: 1.3 | F199: 1.04 | G199: 0.8 | H199: 0.72 | I199: 85 | J199: 91 | K199: 2.1 | L199: 1.6 | M199: 82
C200: Foin Prairie naturelle Fané au sol par beau temps 1er cycle début floraison | D200: 85 | E200: 1.69 | F200: 1.31 | G200: 0.63 | H200: 0.53 | I200: 58 | J200: 73 | K200: 2 | L200: 1.4 | M200: 84
C201: Foin Prairie naturelle Fané au sol par beau temps 2ème cycle (regain) | D201: 85 | E201: 1.29 | F201: 1.03 | G201: 0.79 | H201: 0.71 | I201: 100 | J201: 99 | K201: 2.1 | L201: 2 | M201: 85
C202: Foin Prairie naturelle Ventilé (en grange) 1er cycle épaison | D202: 85 | E202: 1.42 | F202: 1.2 | G202: 0.71 | H202: 0.63 | I202: 69 | J202: 82 | K202: 2 | L202: 1.5 | M202: 79
C203: Foin Prairie naturelle Ventilé (en grange) 1er cycle début épiaison | D203: 85 | E203: 1.21 | F203: 1.04 | G203: 0.8 | H203: 0.72 | I203: 85 | J203: 91 | K203: 2.1 | L203: 1.6 | M203: 78
C204: Foin Prairie naturelle Ventilé (en grange) 1er cycle début floraison | D204: ND | E204: ND | F204: ND | G204: ND | H204: ND | I204: ND | J204: ND | K204: ND | L204: ND | M204: 80
C205: Foin Prairie naturelle Ventilé (en grange) 2ème cycle (regain) | D205: ND | E205: ND | F205: ND | G205: ND | H205: ND | I205: ND | J205: ND | K205: ND | L205: ND | M205: 81
C206: Foin Ray Grass Italien Fané au sol < 10 jours) 1er cycle épaison (10/06) | D206: 85 | E206: 1.49 | F206: 1.17 | G206: 0.71 | H206: 0.62 | I206: 50 | J206: 72 | K206: 1.4 | L206: 1.4 | M206: 135
C207: Foin Ray Grass Italien Fané au sol < 10 jours) 1er cycle début épiaison (25/05) | D207: ND | E207: ND | F207: ND | G207: ND | H207: ND | I207: ND | J207: ND | K207: ND | L207: ND | M207: 134
C208: Foin Ray Grass Italien Fané au sol < 10 jours) 1er cycle début floraison (20/06) | D208: 85 | E208: 1.79 | F208: 1.35 | G208: 0.6 | H208: 0.5 | I208: 32 | J208: 59 | K208: 1.2 | L208: 1.4 | M208: 136
C209: Foin Ray Grass Italien Fané au sol < 10 jours) 2ème cycle (regain) | D209: 85 | E209: 1.46 | F209: 1.16 | G209: 0.67 | H209: 0.58 | I209: 73 | J209: 80 | K209: 1.6 | L209: 1.4 | M209: 137
C210: Foin Ray Grass Italien Fané au sol par beau temps 1er cycle épaison (10/06) | D210: 85 | E210: 1.36 | F210: 1.08 | G210: 0.74 | H210: 0.66 | I210: 54 | J210: 75 | K210: 1.4 | L210: 1.4 | M210: 131
C211: Foin Ray Grass Italien Fané au sol par beau temps 1er cycle début épiaison (25/05) | D211: ND | E211: ND | F211: ND | G211: ND | H211: ND | I211: ND | J211: ND | K211: ND | L211: ND | M211: 130
C212: Foin Ray Grass Italien Fané au sol par beau temps 1er cycle début floraison (20/06) | D212: 85 | E212: 1.62 | F212: 1.26 | G212: 0.61 | H212: 0.52 | I212: 36 | J212: 61 | K212: 1.2 | L212: 1.4 | M212: 132
C213: Foin Ray Grass Italien Fané au sol par beau temps 2ème cycle (regain) | D213: 85 | E213: 1.35 | F213: 1.07 | G213: 0.7 | H213: 0.61 | I213: 76 | J213: 82 | K213: 1.6 | L213: 1.4 | M213: 133
C214: Foin Ray Grass Italien Ventilé (en grange) 1er cycle épaison (10/06) | D214: 85 | E214: 1.27 | F214: 1.08 | G214: 0.74 | H214: 0.66 | I214: 54 | J214: 75 | K214: 1.4 | L214: 1.4 | M214: 127
C215: Foin Ray Grass Italien Ventilé (en grange) 1er cycle début épiaison (25/05) | D215: 85 | E215: 1.19 | F215: 1.01 | G215: 0.81 | H215: 0.75 | I215: 70 | J215: 85 | K215: 1.6 | L215: 1.4 | M215: 126
C216: Foin Ray Grass Italien Ventilé (en grange) 1er cycle début floraison (20/06) | D216: ND | E216: ND | F216: ND | G216: ND | H216: ND | I216: ND | J216: ND | K216: ND | L216: ND | M216: 128
C217: Foin Ray Grass Italien Ventilé (en grange) 2ème cycle (regain) | D217: ND | E217: ND | F217: ND | G217: ND | H217: ND | I217: ND | J217: ND | K217: ND | L217: ND | M217: 129
C218: Foin Trèfle-Ray Grass Fané au sol < 10 jours) 1er cycle épaison (10/06) | D218: 85 | E218: 1.31 | F218: 1.16 | G218: 0.73 | H218: 0.59 | I218: 93 | J218: 84 | K218: 1.5 | L218: 2.3 | M218: 123
C219: Foin Trèfle-Ray Grass Fané au sol < 10 jours) 1er cycle début épiaison (25/05) | D219: ND | E219: ND | F219: ND | G219: ND | H219: ND | I219: ND | J219: ND | K219: ND | L219: ND | M219: 122
C220: Foin Trèfle-Ray Grass Fané au sol < 10 jours) 1er cycle début floraison (20/06) | D220: 85 | E220: 1.54 | F220: 1.29 | G220: 0.61 | H220: 0.51 | I220: 70 | J220: 72 | K220: 1.3 | L220: 2.2 | M220: 124
C221: Foin Trèfle-Ray Grass Fané au sol < 10 jours) 2ème cycle (regain) | D221: 85 | E221: 1.25 | F221: 1.11 | G221: 0.65 | H221: 0.56 | I221: 92 | J221: 83 | K221: 1.5 | L221: 2.4 | M221: 125
C222: Foin Trèfle-Ray Grass Fané au sol par beau temps 1er cycle épaison (10/06) | D222: 85 | E222: 1.2 | F222: 1.07 | G222: 0.74 | H222: 0.66 | I222: 92 | J222: 88 | K222: 1.5 | L222: 2.3 | M222: 119
C223: Foin Trèfle-Ray Grass Fané au sol par beau temps 1er cycle début épiaison (25/05) | D223: ND | E223: ND | F223: ND | G223: ND | H223: ND | I223: ND | J223: ND | K223: ND | L223: ND | M223: 118
... 197 more rows

Sheet CONCENTRE
B1: ALIM'ovins(v. 5.1)
B2: Rationnement des ovins
I4: Ration
J5: 3 Saisissez les quantités brutes distribuées ou cliquez sur "Mélange"
B6: 1 Cliquez sur les flèches pour faire votre choix | E6: CONCENTRE N°1 | N6: Valeurs des concentrés
N7: =IF(K9="","",C10) ->  | O7: =IF(K16="","",C17) ->  | T7: =K16/(K9+K16) -> 
B8: Catégorie | E8: Valeurs alimentaires / kg brut | T8: =K9/(K9+K16) -> 
E9: U.F.L. | F9: P.D.I.N. | G9: P.D.I.E. | H9: Pabs | I9: Caabs | S9: =IF(C8="",0,IF(K16="",1,(K9*E10)/((K9*E10)+(E17*K16)))) -> 0 | T9: =IF(C8="",0,IF(K16="",1,(K9*F10)/((K9*F10)+(F17*K16)))) -> 0
B10: Espèce | E10: =IF(C8="Mélange fermier",COUT!F23,IF(C8="","",IF($C$8="Mon concentré",VLOOKUP($C$10,NOUVEAU!R22:AA35,3),VLOOKUP($C$10,$C$42:$I$79,3)))) ->  | F10: =IF(C8="Mélange fermier",COUT!H23,IF(C8="","",IF($C$8="Mon concentré",VLOOKUP($C$10,NOUVEAU!R22:AA35,5),VLOOKUP($C$10,$C$42:$I$79,4)))) ->  | G10: =IF(C8="Mélange fermier",COUT!I23,IF(C8="","",IF($C$8="Mon concentré",VLOOKUP($C$10,NOUVEAU!R22:AA35,6),VLOOKUP($C$10,$C$42:$I$79,5)))) ->  | H10: =IF(C8="Mélange fermier",COUT!J23,IF(C8="","",IF($C$8="Mon concentré",VLOOKUP($C$10,NOUVEAU!R22:AA35,7),VLOOKUP($C$10,$C$42:$I$79,6)))) ->  | I10: =IF(C8="Mélange fermier",COUT!K23,IF(C8="","",IF($C$8="Mon concentré",VLOOKUP($C$10,NOUVEAU!R22:AA35,8),VLOOKUP($C$10,$C$42:$I$79,7)))) ->  | S10: =IF(C15="",0,IF(K9="",1,(K16*E17)/((K16*E17)+(K9*E10)))) -> 0 | T10: =IF(C15="",0,IF(K9="",1,(K16*F17)/((K16*F17)+(K9*F10)))) -> 0
O11: UFL | Q11: PDIN
B13: 2 Cliquez sur les flèches pour faire votre choix | E13: CONCENTRE N°2 | N13: =IF(K9="","","Concentré 1") -> 
N14: =IF(K9="","",C10) -> 
B15: Catégorie | E15: Valeurs alimentaires / kg brut
E16: U.F.L. | F16: P.D.I.N. | G16: P.D.I.E. | H16: Pabs | I16: Caabs | N16: =IF(K16="","","Concentré 2") -> 
B17: Espèce | E17: =IF(C15="Mélange fermier",COUT!F23,IF(C15="","",IF($C$15="Mon concentré",VLOOKUP($C$17,NOUVEAU!R22:AA45,3),VLOOKUP($C$17,$C$42:$I$79,3)))) ->  | F17: =IF(C15="Mélange fermier",COUT!H23,IF(C15="","",IF($C$15="Mon concentré",VLOOKUP($C$17,NOUVEAU!R22:AA45,5),VLOOKUP($C$17,$C$42:$I$79,4)))) ->  | G17: =IF(C15="Mélange fermier",COUT!I23,IF(C15="","",IF($C$15="Mon concentré",VLOOKUP($C$17,NOUVEAU!R22:AA45,6),VLOOKUP($C$17,$C$42:$I$79,5)))) ->  | H17: =IF(C15="Mélange fermier",COUT!J23,IF(C15="","",IF($C$15="Mon concentré",VLOOKUP($C$17,NOUVEAU!R22:AA45,7),VLOOKUP($C$17,$C$42:$I$79,6)))) ->  | I17: =IF(C15="Mélange fermier",COUT!K23,IF(C15="","",IF($C$15="Mon concentré",VLOOKUP($C$17,NOUVEAU!R22:AA45,8),VLOOKUP($C$17,$C$42:$I$79,7)))) ->  | N17: =IF(K16="","",C17) -> 
E22: =IF($C$8="Mélange fermier","Mélange fermier",IF($C$8="Céréale",F22,IF($C$8="Tourteau",G22,IF($C$8="Divers",K22,IF($C$8="Mon concentré",NOUVEAU!R22,I22))))) -> Pois | F22: Blé | G22: Colza 35 | I22: Pois | K22: Drêches de brasserie
C23: Céréale | E23: =IF($C$8="Mélange fermier","",IF($C$8="Céréale",F23,IF($C$8="Tourteau",G23,IF($C$8="Divers",K23,IF($C$8="Mon concentré",NOUVEAU!R23,I23))))) -> Lupin | F23: Orge | G23: Soja 48 | I23: Lupin | K23: Graines de Colza
C24: Tourteau | E24: =IF($C$8="Mélange fermier","",IF($C$8="Céréale",F24,IF($C$8="Tourteau",G24,IF($C$8="Divers",K24,IF($C$8="Mon concentré",NOUVEAU!R24,I24))))) -> Féverole | F24: Avoine | G24: Tournesol | I24: Féverole | K24: Drêches de blé
C25: Protéagineux | E25: =IF($C$8="Mélange fermier","",IF($C$8="Céréale",F25,IF($C$8="Tourteau",G25,IF($C$8="Divers",K25,IF($C$8="Mon concentré",NOUVEAU!R25,I25))))) -> Vesce | F25: Triticale | G25: Lin | I25: Vesce | K25: Huile de Colza
C26: Divers | E26: =IF($C$8="Mélange fermier","",IF($C$8="Céréale",F26,IF($C$8="Tourteau",G26,IF($C$8="Divers",K26,IF($C$8="Mon concentré",NOUVEAU!R26,I26))))) -> Soja extrudé | F26: Seigle | G26: Arachide | I26: Soja extrudé | K26: Luzerne deshydratée
C27: Mon concentré | E27: =IF($C$8="Mélange fermier","",IF($C$8="Céréale",F27,IF($C$8="Tourteau",G27,IF($C$8="Divers",K27,IF($C$8="Mon concentré",NOUVEAU!R27,I27))))) ->  | F27: Maïs grain | G27: Coton déshuilé | K27: Mélasse
C28: Mélange fermier | E28: =IF($C$8="Mélange fermier","",IF($C$8="Céréale",F28,IF($C$8="Tourteau",G28,IF($C$8="Divers",K28,IF($C$8="Mon concentré",NOUVEAU!R28,I28))))) ->  | F28: Sarrazin | G28: Tournesol décortiqué | K28: Lait écrémé en poudre
E29: =IF($C$8="Mélange fermier","",IF($C$8="Céréale",F29,IF($C$8="Tourteau",G29,IF($C$8="Divers",K29,IF($C$8="Mon concentré",NOUVEAU!R29,I29))))) ->  | F29: Sorgho | G29: Soja tanné | K29: Pulpe de Betterave
E31: =IF($C$15="Mélange fermier","Mélange fermier",IF($C$15="Céréale",F31,IF($C$15="Tourteau",G31,IF($C$15="Divers",K31,IF($C$15="Mon concentré",NOUVEAU!R22,I31))))) -> Pois | F31: Blé | G31: Colza 35 | I31: Pois | K31: Drêches de brasserie
C32: Céréale | E32: =IF($C$15="Mélange fermier","",IF($C$15="Céréale",F32,IF($C$15="Tourteau",G32,IF($C$15="Divers",K32,IF($C$15="Mon concentré",NOUVEAU!R23,I32))))) -> Lupin | F32: Orge | G32: Soja 48 | I32: Lupin | K32: Graines de Colza
C33: Tourteau | E33: =IF($C$15="Mélange fermier","",IF($C$15="Céréale",F33,IF($C$15="Tourteau",G33,IF($C$15="Divers",K33,IF($C$15="Mon concentré",NOUVEAU!R24,I33))))) -> Féverole | F33: Avoine | G33: Tournesol | I33: Féverole | K33: Drêches de blé
C34: Protéagineux | E34: =IF($C$15="Mélange fermier","",IF($C$15="Céréale",F34,IF($C$15="Tourteau",G34,IF($C$15="Divers",K34,IF($C$15="Mon concentré",NOUVEAU!R25,I34))))) -> Vesce | F34: Triticale | G34: Lin | I34: Vesce | K34: Huile de Colza
C35: Divers | E35: =IF($C$15="Mélange fermier","",IF($C$15="Céréale",F35,IF($C$15="Tourteau",G35,IF($C$15="Divers",K35,IF($C$15="Mon concentré",NOUVEAU!R26,I35))))) -> Soja extrudé | F35: Seigle | G35: Arachide | I35: Soja extrudé | K35: Luzerne deshydratée
C36: Mes aliments | E36: =IF($C$15="Mélange fermier","",IF($C$15="Céréale",F36,IF($C$15="Tourteau",G36,IF($C$15="Divers",K36,IF($C$15="Mon concentré",NOUVEAU!R27,I36))))) ->  | F36: Maïs grain | G36: Coton déshuilé | K36: Mélasse
E37: =IF($C$15="Mélange fermier","",IF($C$15="Céréale",F37,IF($C$15="Tourteau",G37,IF($C$15="Divers",K37,IF($C$15="Mon concentré",NOUVEAU!R28,I37))))) ->  | F37: Sarrazin | G37: Tournesol décortiqué | K37: Lait écrémé en poudre
E38: =IF($C$15="Mélange fermier","",IF($C$15="Céréale",F38,IF($C$15="Tourteau",G38,IF($C$15="Divers",K38,IF($C$15="Mon concentré",NOUVEAU!R29,I38))))) ->  | F38: Sorgho | G38: Soja tanné | K38: Pulpe de Betterave
C41: Catégorie | D41: C | E41: U.F.L. | F41: P.D.I.N. | G41: P.D.I.E. | H41: Pabs | I41: Caabs
C42: Arachide | D42: 90 | E42: 1 | F42: 347 | G42: 215 | H42: =K42*(D42/100) -> 3.69 | I42: =N42*(D42/100) -> 1.08 | K42: 4.1 | N42: 1.2
C43: Avoine | D43: 88 | E43: 0.77 | F43: 61 | G43: 61 | H43: =K43*(D43/100) -> 2.376 | I43: =N43*(D43/100) -> 0.616 | K43: 2.7 | N43: 0.7
C44: Blé | D44: 87 | E44: 1.02 | F44: 70 | G44: 89 | H44: =K44*(D44/100) -> 2.262 | I44: =N44*(D44/100) -> 0.348 | K44: 2.6 | N44: 0.4
C45: Colza 35 | D45: 89 | E45: 0.85 | F45: 219 | G45: 138 | H45: =K45*(D45/100) -> 8.188 | I45: =N45*(D45/100) -> 4.628 | K45: 9.2 | N45: 5.2
C46: Colza tanné | E46: 0.85 | F46: 255 | G46: 246 | H46: 9.2 | I46: 5.2
C47: Corn gluten | E47: 0.93 | F47: 127 | G47: 102 | H47: 6.8 | I47: 1
C48: Coton | D48: 91 | E48: 0.94 | F48: 131 | G48: 77 | H48: =K48*(D48/100) -> 4.641 | I48: =N48*(D48/100) -> 0.91 | K48: 5.1 | N48: 1
C49: Coton déshuilé | E49: 0.8 | F49: 254 | G49: 173 | H49: 7.9 | I49: 1.5
C50: Drêches de blé | E50: 0.96 | F50: 228 | G50: 143 | H50: 5.4 | I50: 2
C51: Drêches de brasserie | D51: 92 | E51: 0.76 | F51: 178 | G51: 157 | H51: =K51*(D51/100) -> 4.508 | I51: =N51*(D51/100) -> 1.196 | K51: 4.9 | N51: 1.3
C52: Féverole | D52: 86 | E52: 1.03 | F52: 170 | G52: 97 | H52: 3.526 | I52: 0.774 | K52: 4.1 | N52: 0.9
C53: Graine de Colza | D53: 92 | E53: 1.68 | F53: 12 | G53: 61 | H53: 4.876 | I53: 2.576 | K53: 5.3 | N53: 2.8
C54: Huile de colza | D54: 100 | E54: 2.73 | F54: 0 | G54: 0 | H54: 0 | I54: 0 | K54: 0 | N54: 0
C55: Lin | D55: 89 | E55: 0.88 | F55: 227 | G55: 179 | H55: 5.34 | I55: 2.492 | K55: 6 | N55: 2.8
C56: Lupin | D56: 89 | E56: 1.18 | F56: 213 | G56: 106 | H56: 2.848 | I56: 1.869 | K56: 3.2 | N56: 2.1
C57: Luzerne déhydratée | D57: 91 | E57: 0.62 | F57: 103 | G57: 91 | H57: 1.729 | I57: 5.915 | K57: 1.9 | N57: 6.5
C58: Maïs grain | D58: 86 | E58: 1.06 | F58: 64 | G58: 84 | H58: 1.892 | I58: 0.258 | K58: 2.2 | N58: 0.3
C59: Mélasse | D59: 76 | E59: 0.75 | F59: 63 | G59: 54 | H59: 0.152 | I59: 0.38 | K59: 0.2 | N59: 0.5
C60: Orge | D60: 87 | E60: 0.95 | F60: 69 | G60: 87 | H60: 2.61 | I60: 0.435 | K60: 3 | N60: 0.5
C61: Pois | D61: 86 | E61: 1.04 | F61: 130 | G61: 83 | H61: 2.924 | I61: 0.602 | K61: 3.4 | N61: 0.7
C62: Poudre de lait écrémé | D62: 95 | E62: 1.15 | F62: 196 | G62: 75 | H62: 9.215 | I62: 11.115 | K62: 9.7 | N62: 11.7
C63: Pulpe de betterave | D63: 89 | E63: 0.89 | F63: 59 | G63: 97 | H63: 0.801 | I63: 2.67 | K63: 0.9 | N63: 3
C64: Sarrazin | D64: 87 | E64: 0.81 | F64: 77 | G64: 82 | H64: 2.262 | I64: 0.435 | K64: 2.6 | N64: 0.5
C65: Seigle | D65: 87 | E65: 1.03 | F65: 59 | G65: 85 | H65: 2.262 | I65: 0.609 | K65: 2.6 | N65: 0.7
C66: Soja 48 | D66: 88 | E66: 1.06 | F66: 331 | G66: 229 | H66: 4.4 | I66: 1.848 | K66: 5 | N66: 2.1
C67: Soja extrudé | E67: 1.27 | F67: 262 | G67: 214 | H67: 4.6 | I67: 2
C68: Soja tanné | E68: 1.06 | F68: 389 | G68: 374 | H68: 5 | I68: 2.1
C69: Son de blé | E69: 0.82 | F69: 94 | G69: 80 | H69: 8.2 | I69: 0.9
C70: Sorgho | D70: 87 | E70: 1.05 | F70: 67 | G70: 87 | H70: =K70*(D70/100) -> 2.088 | I70: =N70*(D70/100) -> 0.174 | K70: 2.4 | N70: 0.2
C71: Tournesol | D71: 89 | E71: 0.56 | F71: 178 | G71: 93 | H71: =K71*(D71/100) -> 6.586 | I71: =N71*(D71/100) -> 2.136 | K71: 7.4 | N71: 2.4
C72: Tournesol décortiqué | E72: 0.66 | F72: 219 | G72: 115 | H72: 7.8 | I72: 2.5
C73: Triticale | D73: 87 | E73: 1.01 | F73: 63 | G73: 84 | H73: =K73*(D73/100) -> 2.61 | I73: =N73*(D73/100) -> 0.435 | K73: 3 | N73: 0.5
C74: Urée | D74: 98 | E74: 0 | F74: 1443 | G74: 0 | H74: =K74*(D74/100) -> 0 | I74: =N74*(D74/100) -> 0 | K74: 0 | N74: 0
C75: Vesce | D75: 89 | E75: 1.02 | F75: 161 | G75: 90 | H75: =K75*(D75/100) -> 3.382 | I75: =N75*(D75/100) -> 0.89 | K75: 3.8 | N75: 1

Sheet CMV
B1: ALIM'ovins(v. 5.1)
B2: Rationnement des ovins
I4: Ration
B6: Choisir le C.M.V. ayant le rapport "Ca / P" le plus approchant du déficit | P6: Pabs | Q6: Caabs
C7: 1 Cliquez sur les flèches pour choisir le CMV | G7: Ca / P ration (avant correction) | L7: C.M.V. choisi | O7: 100 % des A.A.R. | U7: =ANIMAL!H16 ->  | V7: =ANIMAL!I16 -> 
B8: Type | G8: =IF(L24=TRUE,"Un CMV n'est pas nécessaire",IF(L14="","",IF(L12<0.2,"Utilisez un CMV pauvre en P",CONCATENATE("Utilisez un CMV avec ",INT(1.63*(L14/L12))," fois plus de Ca que de P")))) ->  | L8: =CONCATENATE("C.M.V.",C8) -> C.M.V. | O8: Avant correction | U8: =IF(RATION!I24="",RATION!I16,RATION!I16+RATION!I24) ->  | V8: =IF(RATION!J24="",RATION!J16,RATION!J16+RATION!J24) -> 
T10: 0 | U10: =U8/U7 ->  | V10: =V8/V7 ->  | W10: 0
B11: 2 Saisir la quantité de CMV choisie ou accepter la quantité proposée | L11: Déficit Pabs | P11: =IF(L12="","",U10) ->  | R11: =IF(L14="","",V10) ->  | T11: 1 | U11: 1 | V11: 1 | W11: 1
D12: g. | G12: Valeurs alimentaires / kg brut | L12: =IF(ANIMAL!C8="","",IF(SUM(RATION!I24,RATION!I16)-RATION!I8>=0,0,-(SUM(RATION!I24,RATION!I16)-RATION!I8))) ->  | O12: 100 % des A.A.R.
G13: Pabs | I13: Caabs | L13: Déficit Caabs | T13: =IF(C8="",0,(C12/1000)*G14) -> 0 | U13: =T13+U8 ->  | V13: 0 | W13: =U13/U7 ->  | X13: =U14/V7 -> 
B14: Ca / P | C14: =IF(C8="","",IF(VLOOKUP(C8,C20:H40,4)>10,"ns",VLOOKUP(C8,C20:H40,4))) ->  | E14: =IF(C8="","",G42) ->  | G14: =IF(C8="","",VLOOKUP(C8,C20:H40,5)) ->  | I14: =IF(C8="","",VLOOKUP(C8,C20:H40,6)) ->  | L14: =IF(ANIMAL!C8="","",IF(SUM(RATION!J24,RATION!J16)-RATION!J8>=0,0,-(SUM(RATION!J24,RATION!J16)-RATION!J8))) ->  | O14: Après correction | T14: =IF(C8="",0,(C12/1000)*I14) -> 0 | U14: =T14+V8 ->  | V14: 1 | W14: 1 | X14: 1
C16: =IF(C8="","",IF(E14<10,"Un CMV n'est pas nécessaire - Cliquez sur Valider sans rien saisir","")) ->  | P16: =IF(L12="","",W13) ->  | R16: =IF(L14="","",X13) -> 
C20: 0 - 27 | F20: =J20/I20 -> 2700 | G20: 0.1 | H20: =J20*0.4 -> 108 | I20: 0.1 | J20: 270
C21: 10 - 20 | F21: 2 | G21: =I21*0.65 -> 65 | H21: 80 | I21: 100 | J21: 200
C22: 10 - 6 | F22: 0.6 | G22: 65 | H22: 24 | I22: 100 | J22: 60
C23: 12 - 12 | F23: 1 | G23: 78 | H23: 48 | I23: 120 | J23: 120
C24: 2 - 28 | F24: 14 | G24: 13 | H24: 112 | I24: 20 | J24: 280 | L24: =AND(L12<0.2,L14<0.2) -> FALSE
C25: 3 - 27 | F25: 9 | G25: 19.5 | H25: 108 | I25: 30 | J25: 270
C26: 4 - 21 | F26: 5.25 | G26: 26 | H26: 84 | I26: 40 | J26: 210
C27: 5 - 20 | F27: 4 | G27: 32.5 | H27: 80 | I27: 50 | J27: 200
C28: 5 - 22 | F28: 4.4 | G28: 32.5 | H28: 88 | I28: 50 | J28: 220
C29: 5 - 25 | F29: 5 | G29: 32.5 | H29: 100 | I29: 50 | J29: 250
C30: 6 - 18 | F30: 3 | G30: 39 | H30: 72 | I30: 60 | J30: 180
C31: 6 - 6 | F31: 1 | G31: 39 | H31: 24 | I31: 60 | J31: 60
C32: 7 - 21 | F32: 3 | G32: 45.5 | H32: 84 | I32: 70 | J32: 210
C33: 7 - 23 | F33: 3.285714286 | G33: 45.5 | H33: 92 | I33: 70 | J33: 230
C34: 8 - 12 | F34: 1.5 | G34: 52 | H34: 48 | I34: 80 | J34: 120
C35: 8 - 16 | F35: 2 | G35: 52 | H35: 64 | I35: 80 | J35: 160
C36: 8 - 18 | F36: 2.25 | G36: 52 | H36: 72 | I36: 80 | J36: 180
C37: 8 - 24 | F37: 3 | G37: 52 | H37: 96 | I37: 80 | J37: 240
C38: 9 - 14 | F38: 1.555555556 | G38: 58.5 | H38: 56 | I38: 90 | J38: 140
C39: 9 - 27 | F39: 3 | G39: 58.5 | H39: 108 | I39: 90 | J39: 270
C40: CaCO3 | G40: 0 | H40: 160 | I40: 0 | J40: 400
E42: =IF(L14=0,ABS(L12)/((G14+1.01)/1000),ABS(L14)/(I14/1000)) ->  | G42: =ROUND(E42/5,0)*5 -> 

Sheet BILAN
B1: ALIM'ovins(v. 5.1)
B2: Rationnement des ovins
I4: Bilan alimentaire
C7: Saisir l'effectif d'animaux du lot | J7: =ANIMAL!E11 ->  | N7: Cout de concentré (€ / animal / jour)
C10: Saisir la durée d'alimentation (en jours) | P10: =IF(G7="","",(M32/G7)/G10) -> 
C14: QUANTITE DE FOURRAGE | P14: Pour 1 tonne de ration complète
C15: =IF(FOURRAGE!C9="","",FOURRAGE!E9) ->  | K15: =IF(C15="","",(G7*G10*FOURRAGE!L10)/1000) ->  | M15: tonnes (brut) | Q15: =IF(K15="","",IF(K15=0,0,K15/(SUM($K$15,$K$18,$H$26,$H$28,$H$30))*1000)) ->  | R15: kg
C18: =IF(FOURRAGE!C23="","",FOURRAGE!E23) ->  | K18: =IF(C18="","",(G7*G10*FOURRAGE!L24)/1000) ->  | M18: tonnes (brut) | Q18: =IF(K18="","",IF(K18=0,0,K18/(SUM($K$15,$K$18,$H$26,$H$28,$H$30))*1000)) ->  | R18: kg
Q21: Pourcentage de concentré
C23: COUT DE CONCENTRE | G23: kg / jour | H23: Besoins pour la période | K23: Coût | M23: Cout total | Q23: =SUM(Q26,Q28,Q30)/1000 -> 0
K24: unitaire
C26: =IF(CONCENTRE!C10="","",CONCENTRE!C10) ->  | G26: =IF(CONCENTRE!K9="","",CONCENTRE!K9) ->  | H26: =IF(G26="","",(G26*$G$10*$G$7)/1000) ->  | I26: tonnes | L26: / t | M26: =IF(G26="","",K26*H26) ->  | Q26: =IF(K26=0,0,IF(M26="",0,H26/(SUM($K$15,$K$18,$H$26,$H$28,$H$30))*1000)) -> 0 | R26: kg
C28: =IF(CONCENTRE!C17="","",CONCENTRE!C17) ->  | G28: =IF(CONCENTRE!K16="","",CONCENTRE!K16) ->  | H28: =IF(G28="","",(G28*$G$10*$G$7)/1000) ->  | I28: tonnes | L28: / t | M28: =IF(G28="","",K28*H28) ->  | Q28: =IF(K28=0,0,IF(M28="",0,H28/(SUM($K$15,$K$18,$H$26,$H$28,$H$30))*1000)) -> 0 | R28: kg
C30: =IF(CMV!C8="","",CMV!C8) ->  | G30: =IF(CMV!C12="","",CMV!C12/1000) ->  | H30: =IF(G30="","",(G30*$G$10*$G$7)/1000) ->  | I30: tonnes | L30: / t | M30: =IF(G30="","",K30*H30) ->  | Q30: =IF(K30=0,0,IF(M30="",0,H30/(SUM($K$15,$K$18,$H$26,$H$28,$H$30))*1000)) -> 0 | R30: kg
C32: COUT TOTAL DE CONCENTRE (en € pour le lot et pour la période) | M32: =IF($G$7="","",SUM(M26,M28,M30)) ->  | Q32: =SUM(Q30,Q28,Q26,Q18,Q15) -> 0 | R32: kg
E37: =Q15 -> 
B40: 1 | C40: Janvier | D40: 2010
B41: 2 | C41: Février | D41: 2011
B42: 3 | C42: Mars | D42: 2012
B43: 4 | C43: Avril | D43: 2013
B44: 5 | C44: Mai | D44: 2014
B45: 6 | C45: Juin | D45: 2015
B46: 7 | C46: Juillet | D46: 2016
B47: 8 | C47: Août
B48: 9 | C48: Septembre
B49: 10 | C49: Octobre
B50: 11 | C50: Novembre
B51: 12 | C51: Décembre
B52: 13
B53: 14
B54: 15
B55: 16
B56: 17
B57: 18
B58: 19
B59: 20
B60: 21
B61: 22
B62: 23
B63: 24
B64: 25
B65: 26
B66: 27
B67: 28
B68: 29
B69: 30
B70: 31

Sheet MELANGE
B1: ALIM'ovins(v. 5.0)
B2: Rationnement des bovins allaitants
B5: CALCUL DE LA COMPOSITION D'UN MELANGE DE 2 CONCENTRES
B6: Système de 2 équations et 2 inconnues (x et y)
B8: =IF(E9="","1 Mélange n'est pas nécessaire !",IF(H9<0,"1 Mélange n'est pas nécessaire ! Cliquez sur Retour","")) -> 1 Mélange n'est pas nécessaire ! | E8: =IF(CONCENTRE!C10="","",CONCENTRE!C10) ->  | F8: x | G8: + | H8: =IF(CONCENTRE!C17="","",CONCENTRE!C17) ->  | I8: y
E9: =E24 ->  | F9: kg | H9: =H24 ->  | I9: kg
C11: Déficit | E11: =IF(E9="","",E20/(E20+H20)) ->  | H11: =IF(H9="","",H20/(E20+H20)) -> 
B12: UFL | C12: =IF(CONCENTRE!E10="","",-RATION!F18) ->  | D12: = | E12: =IF(CONCENTRE!C10="",0.001,CONCENTRE!E10) -> 0.001 | F12: x | G12: + | H12: =IF(CONCENTRE!C17="",0.001,CONCENTRE!E17) -> 0.001 | I12: y
B14: PDIN | C14: =IF(CONCENTRE!F10="","",-RATION!G18) ->  | D14: = | E14: =IF(CONCENTRE!C10="",0.001,CONCENTRE!F10) -> 0.001 | F14: x | G14: + | H14: =IF(CONCENTRE!C17="",0.001,CONCENTRE!F17) -> 0.001 | I14: y
B16: =IF(E9="","VERIFIER vos concentrés, le mélange n'est pas adapté !",IF(H9="","VERIFIER vos concentrés, le mélange n'est pas adapté !","")) -> VERIFIER vos concentrés, le mélange n'est pas adapté !
E20: =IF((C12-(H12*H20))/E12<0,"",IF(E12=0.001,0,IF(C12<=0.1,0,IF(C12="","",ROUND((C12-(H12*H20))/E12,1))))) ->  | H20: =IF((C14-(C12*E14)/E12)/(H14-((H12*E14)/E12))<0,0,IF(H12=0.001,0,IF(C14<=0.1,0,IF(C12="","",ROUND((C14-(C12*E14)/E12)/(H14-((H12*E14)/E12)),1))))) -> 
E22: =IF(E12=0.001,0,IF(C12<=0.1,0,IF(C12="","",(C12-(H12*H20))/E12))) -> 0 | H22: =IF(H12=0.001,0,IF(C14<=0.1,0,IF(C12="","",(C14-(C12*E14)/E12)/(H14-((H12*E14)/E12))))) -> 0
E24: =IF(E22<=0,"",IF(H22>0,ROUND(E22,1),ROUND(C12/E12,1))) ->  | H24: =IF(H22<=0,"",IF(E22>0,ROUND(H20,1),ROUND(C12/H12,1))) -> 
C27: (C14-(C12*E14)/E12)/(H14-((H12*E14)/E12))))
C28: (C12-(H12*H9))/E12)
C30: SI(E12=0,001;0;SI(C12<=0,1;0;SI(C12="";"";(C12-(H12*H9))/E12)))
C31: SI(H12=0,001;0;SI(C14<=0,1;0;SI(C12="";"";(C14-(C12*E14)/E12)/(H14-((H12*E14)/E12)))))

Sheet RATION
B1: ALIM'ovins(v. 5.1)
B2: Rationnement des ovins
F4: Ration
B6: Catégorie | E6: Apports Alimentaires Recommandés | L6: REPARTITION DES APPORTS | T6: UFL | U6: PDIN | V6: PDIE | W6: P | X6: Ca
E7: UEM | F7: UFL | G7: PDIN | H7: PDIE | I7: Pabs | J7: Caabs | L7: en % des besoins alimentaires | T7: =F29/F8 ->  | U7: =G29/G8 ->  | V7: =H29/H8 ->  | W7: =I29/I8 ->  | X7: =J29/J8 -> 
B8: =IF(ANIMAL!E11="","",ANIMAL!E11) ->  | E8: =IF($B$8="","",ANIMAL!E16) ->  | F8: =IF($B$8="","",ANIMAL!F16) ->  | G8: =IF($B$8="","",ANIMAL!G16) ->  | H8: =IF($B$8="","",ANIMAL!G16) ->  | I8: =IF($B$8="","",ANIMAL!H16) ->  | J8: =IF($B$8="","",ANIMAL!I16) ->  | T8: 1 | U8: 1 | V8: 1 | W8: 1 | X8: 1
B10: Quantité kg | C10: Aliments (valeurs / kg MS) | D10: Valeurs alimentaires
D11: MS | E11: UEM | F11: UFL | G11: PDIN | H11: PDIE | I11: Pabs | J11: Caabs
B12: =IF(FOURRAGE!L10="","",FOURRAGE!L10) ->  | C12: =FOURRAGE!E9 ->  | D12: =FOURRAGE!E15 ->  | E12: =FOURRAGE!F15 ->  | F12: =FOURRAGE!G15 ->  | G12: =FOURRAGE!H15 ->  | H12: =FOURRAGE!I15 ->  | I12: =FOURRAGE!J15 ->  | J12: =FOURRAGE!L15 -> 
D13: =IF(B12="","",B12*(D12/100)) ->  | E13: =IF($D$13="","",$D$13*E12) ->  | M13: =F29/F8 ->  | N13: =G29/G8 ->  | P13: =H29/H8 ->  | Q13: =I29/I8 ->  | R13: =J29/J8 -> 
B14: =IF(FOURRAGE!L24="","",FOURRAGE!L24) ->  | C14: =FOURRAGE!E23 ->  | D14: =IF(C14="","",FOURRAGE!E29) ->  | E14: =IF(C14="","",FOURRAGE!F29) ->  | F14: =IF(C14="","",FOURRAGE!G29) ->  | G14: =IF(C14="","",FOURRAGE!H29) ->  | H14: =IF(C14="","",FOURRAGE!I29) ->  | I14: =IF(C14="","",FOURRAGE!J29) ->  | J14: =IF(C14="","",FOURRAGE!L29) ->  | L14: Part des fourrages et des concentrés dans la ration | O14: MS | Q14: UFL | R14: PDIN
D15: =IF(B14="","",B14*(D14/100)) ->  | E15: =IF($D$15="","",$D$15*E14) -> 
B16: =IF(SUM(B12,B14)=0,"",SUM(B12,B14)) ->  | C16: Ration de base | D16: =IF(B16="","",SUM(D13,D15)) ->  | E16: =IF(B16="","",SUM(E13,E15)) ->  | F16: =IF(B16="","",SUM(F13,F15)) ->  | G16: =IF(B16="","",SUM(G13,G15)) ->  | H16: =IF(B16="","",SUM(H13,H15)) ->  | I16: =IF(B16="","",SUM(I13,I15)) ->  | J16: =IF(B16="","",SUM(J13,J15)) ->  | L16: Concentrés
O17: =IF(G7="","",IF(V18=0,"",V18)) -> 
B18: Différence | E18: =IF(E8="","",E16-E8) ->  | T18: Fourrage 1 | U18: =B12 ->  | V18: =SUM(U18,U19)/SUM(U18,U19,U20,U21,0.0001) -> 0 | W18: =F13 ->  | X18: =SUM(W18,W19)/SUM(W18,W19,W20,W21,0.0001) -> 0 | Y18: =G13 ->  | Z18: =SUM(Y18,Y19)/SUM(Y18,Y19,Y20,Y21,0.0001) -> 0
L19: Fourrages | O19: =IF(V19=0,"",V19) ->  | T19: Fourrage 2 | U19: =B14 ->  | V19: =SUM(U20,U21)/SUM(U18,U19,U20,U21,0.0001) -> 0 | W19: =F15 ->  | X19: =SUM(W20,W21)/SUM(W18,W19,W20,W21,0.0001) -> 0 | Y19: =H15 ->  | Z19: =SUM(Y20,Y21)/SUM(Y18,Y19,Y20,Y21,0.0001) -> 0
B20: =IF(CONCENTRE!K9="","",CONCENTRE!K9) ->  | C20: =IF(B20="","",CONCENTRE!C10) ->  | F20: =IF(C20="","",CONCENTRE!E10) ->  | G20: =IF(C20="","",CONCENTRE!F10) ->  | H20: =IF(C20="","",CONCENTRE!G10) ->  | I20: =IF(C20="","",CONCENTRE!H10) ->  | J20: =IF(C20="","",CONCENTRE!I10) ->  | T20: Concentré 1 | U20: =B20 ->  | W20: =F21 ->  | Y20: =G21 -> 
F21: =IF(B20="","",$B$20*F20) ->  | G21: =IF(B20="","",$B$20*G20) ->  | H21: =IF(B20="","",$B$20*H20) ->  | I21: =IF(B20="","",$B$20*I20) ->  | J21: =IF(B20="","",$B$20*J20) ->  | T21: Concentré 2 | U21: =B22 ->  | W21: =F23 ->  | Y21: =G23 -> 
B22: =IF(CONCENTRE!K16="","",CONCENTRE!K16) ->  | C22: =IF(B22="","",CONCENTRE!C17) ->  | F22: =IF(C22="","",CONCENTRE!E17) ->  | G22: =IF(C22="","",CONCENTRE!F17) ->  | H22: =IF(C22="","",CONCENTRE!G17) ->  | I22: =IF(C22="","",CONCENTRE!H17) ->  | J22: =IF(C22="","",CONCENTRE!I17) -> 
F23: =IF(B22="","",$B$22*F22) ->  | G23: =IF(B22="","",$B$22*G22) ->  | H23: =IF(B22="","",$B$22*H22) ->  | I23: =IF(B22="","",$B$22*I22) ->  | J23: =IF(B22="","",$B$22*J22) ->  | L23: REPARTITION DES ALIMENTS
B24: =IF(SUM(B20,B22)=0,"",SUM(B20,B22)) ->  | C24: Concentrés | F24: =IF(B24="","",SUM(F21,F23)) ->  | G24: =IF(B24="","",SUM(G21,G23)) ->  | H24: =IF(B24="","",SUM(H21,H23)) ->  | I24: =IF(B24="","",SUM(I21,I23)) ->  | J24: =IF(B24="","",SUM(J21,J23)) -> 
B26: RMIC = | C26: PDIN - PDIE | D26: =IF(D29="","",(G29-H29)/F29) ->  | E26: * | F26: =IF(CMV!C8="","",(CMV!C12)/1000) ->  | G26: =IF(F26="","",CMV!L8) ->  | I26: =CMV!G14 ->  | J26: =CMV!I14 -> 
C27: UFL | I27: =IF(F26="","",I26*F26) ->  | J27: =IF(F26="","",J26*F26) -> 
B29: =IF(B16="","",SUM(B16,B24,F26)) ->  | C29: TOTAL RATION | D29: =D16 ->  | E29: =E16 ->  | F29: =IF(F18="","",SUM(F24,F16)) ->  | G29: =IF(G18="","",SUM(G24,G16)) ->  | H29: =IF(H18="","",SUM(H24,H16)) ->  | I29: =IF(I18="","",SUM(I24,I16,I27)) ->  | J29: =IF(J18="","",SUM(J24,J16,J27)) -> 
C31: Différence | E31: =IF(B16="","",E29-E8) ->  | F31: =IF($B$16="","",F29-F8) ->  | G31: =IF($B$16="","",G29-G8) ->  | H31: =IF($B$16="","",H29-H8) ->  | I31: =IF($B$16="","",I29-I8) ->  | J31: =IF($B$16="","",J29-J8) -> 
A32: * RMIC < - 12 (Brebis allaitantes - agneaux simples) RMIC < - 6 (Brebis allaitantes - agneaux doubles) | E32: =IF(E31="","",IF(E31>0.01,"ATTENTION ! La capacité d'ingestion est dépassée: REDUISEZ LES QUANTITES DE FOURRAGE","")) -> 

Sheet COUT
B1: ALIM'ovins(v. 5.1)
B2: Rationnement des ovins
F4: Formulation d'aliment et coût
B5: FORMULATION ET CALCUL DU COUT D'UN MELANGE FERMIER | P5: Répartition des matières premières
B6: Cliquez dans la case "Matières premières" et choisissez dans la liste - Saisissez ensuite les quantités introduites dans le mélange | O6: Coût des matières premières (€ /tonne)
B7: Quantités kg | C7: Matières premières | E7: Valeurs alimentaires
E8: % | F8: UFL | G8: UFV | H8: PDIN | I8: PDIE | J8: Pabs | K8: Caabs | L8: MAT | M8: CB
E9: =IF(B9="","",B9/$B$23) ->  | F9: =IF(B9="","",IF(C9="Mes_concentrés",VLOOKUP(D9,NOUVEAU!$R$22:$AA$38,3),VLOOKUP($D9,$D29:$K76,3))) ->  | G9: =IF(B9="","",IF(C9="Mes_concentrés",VLOOKUP(D9,NOUVEAU!$R$22:$AA$38,4),VLOOKUP($D9,$D29:$K76,4))) ->  | H9: =IF(B9="","",IF(C9="Mes_concentrés",VLOOKUP(D9,NOUVEAU!$R$22:$AA$38,5),VLOOKUP($D9,$D29:$K76,5))) ->  | I9: =IF(B9="","",IF(C9="Mes_concentrés",VLOOKUP(D9,NOUVEAU!$R$22:$AA$38,6),VLOOKUP($D9,$D29:$K76,6))) ->  | J9: =IF(B9="","",IF(C9="Mes_concentrés",VLOOKUP(D9,NOUVEAU!$R$22:$AA$38,7),VLOOKUP($D9,$D29:$K76,7))) ->  | K9: =IF(B9="","",IF(C9="Mes_concentrés",VLOOKUP(D9,NOUVEAU!$R$22:$AA$38,8),VLOOKUP($D9,$D29:$K76,8))) ->  | L9: =IF(B9="","",IF(C9="Mes_concentrés",VLOOKUP(D9,NOUVEAU!$R$22:$AC$38,9),VLOOKUP($D9,$D29:$M76,9))) ->  | M9: =IF(B9="","",IF(C9="Mes_concentrés",VLOOKUP(D9,NOUVEAU!$R$22:$AC$38,10),VLOOKUP($D9,$D29:$M76,10))) -> 
F10: =IF(B9="","",$E$9*F9) ->  | G10: =IF(B9="","",$E$9*G9) ->  | H10: =IF(B9="","",$E$9*H9) ->  | I10: =IF(B9="","",$E$9*I9) ->  | J10: =IF(B9="","",$E$9*J9) ->  | K10: =IF(B9="","",$E$9*K9) ->  | L10: =IF(B9="","",$E$9*L9) ->  | M10: =IF(B9="","",$E$9*M9) -> 
E11: =IF(B9="","",B11/$B$23) ->  | F11: =IF(B11="","",IF(C11="Mes_concentrés",VLOOKUP(D11,NOUVEAU!$R$22:$AA$38,3),VLOOKUP($D11,$D29:$K76,3))) ->  | G11: =IF(B11="","",IF(C11="Mes_concentrés",VLOOKUP(D11,NOUVEAU!$R$22:$AA$38,4),VLOOKUP($D11,$D29:$K76,4))) ->  | H11: =IF(B11="","",IF(C11="Mes_concentrés",VLOOKUP(D11,NOUVEAU!$R$22:$AA$38,5),VLOOKUP($D11,$D29:$K76,5))) ->  | I11: =IF(B11="","",IF(C11="Mes_concentrés",VLOOKUP(D11,NOUVEAU!$R$22:$AA$38,6),VLOOKUP($D11,$D29:$K76,6))) ->  | J11: =IF(B11="","",IF(C11="Mes_concentrés",VLOOKUP(D11,NOUVEAU!$R$22:$AA$38,7),VLOOKUP($D11,$D29:$K76,7))) ->  | K11: =IF(B11="","",IF(C11="Mes_concentrés",VLOOKUP(D11,NOUVEAU!$R$22:$AA$38,8),VLOOKUP($D11,$D29:$K76,8))) ->  | L11: =IF(B11="","",IF(C11="Mes_concentrés",VLOOKUP(D11,NOUVEAU!$R$22:$AC$38,9),VLOOKUP($D11,$D29:$M76,9))) ->  | M11: =IF(B11="","",IF(C11="Mes_concentrés",VLOOKUP(D11,NOUVEAU!$R$22:$AC$38,10),VLOOKUP($D11,$D29:$M76,10))) -> 
F12: =IF(B11="","",E11*F11) ->  | G12: =IF(B11="","",E11*G11) ->  | H12: =IF(B11="","",E11*H11) ->  | I12: =IF(B11="","",E11*I11) ->  | J12: =IF(B11="","",E11*J11) ->  | K12: =IF(B11="","",E11*K11) ->  | L12: =IF(B11="","",E11*L11) ->  | M12: =IF(B11="","",$E$11*M11) -> 
E13: =IF(B9="","",B13/$B$23) ->  | F13: =IF(B13="","",IF(C13="Mes_concentrés",VLOOKUP(D13,NOUVEAU!$R$22:$AA$38,3),VLOOKUP($D13,$D29:$K76,3))) ->  | G13: =IF(B13="","",IF(C13="Mes_concentrés",VLOOKUP(D13,NOUVEAU!$R$22:$AA$38,4),VLOOKUP($D13,$D29:$K76,4))) ->  | H13: =IF(B13="","",IF(C13="Mes_concentrés",VLOOKUP(D13,NOUVEAU!$R$22:$AA$38,5),VLOOKUP($D13,$D29:$K76,5))) ->  | I13: =IF(B13="","",IF(C13="Mes_concentrés",VLOOKUP(D13,NOUVEAU!$R$22:$AA$38,6),VLOOKUP($D13,$D29:$K76,6))) ->  | J13: =IF(B13="","",IF(C13="Mes_concentrés",VLOOKUP(D13,NOUVEAU!$R$22:$AA$38,7),VLOOKUP($D13,$D29:$K76,7))) ->  | K13: =IF(B13="","",IF(C13="Mes_concentrés",VLOOKUP(D13,NOUVEAU!$R$22:$AA$38,8),VLOOKUP($D13,$D29:$K76,8))) ->  | L13: =IF(B13="","",IF(C13="Mes_concentrés",VLOOKUP(D13,NOUVEAU!$R$22:$AC$38,9),VLOOKUP($D13,$D29:$M76,9))) ->  | M13: =IF(B13="","",IF(C13="Mes_concentrés",VLOOKUP(D13,NOUVEAU!$R$22:$AC$38,10),VLOOKUP($D13,$D29:$M76,10))) -> 
F14: =IF(B13="","",E13*F13) ->  | G14: =IF(C13="","",E13*G13) ->  | H14: =IF(B13="","",E13*H13) ->  | I14: =IF(B13="","",E13*I13) ->  | J14: =IF(B13="","",E13*J13) ->  | K14: =IF(B13="","",E13*K13) ->  | L14: =IF(B13="","",E13*L13) ->  | M14: =IF(B13="","",$E$13*M13) -> 
E15: =IF(B9="","",B15/$B$23) ->  | F15: =IF(B15="","",IF(C15="Mes_concentrés",VLOOKUP(D15,NOUVEAU!$R$22:$AA$38,3),VLOOKUP($D15,$D29:$K76,3))) ->  | G15: =IF(B15="","",IF(C15="Mes_concentrés",VLOOKUP(D15,NOUVEAU!$R$22:$AA$38,4),VLOOKUP($D15,$D29:$K76,4))) ->  | H15: =IF(B15="","",IF(C15="Mes_concentrés",VLOOKUP(D15,NOUVEAU!$R$22:$AA$38,5),VLOOKUP($D15,$D29:$K76,5))) ->  | I15: =IF(B15="","",IF(C15="Mes_concentrés",VLOOKUP(D15,NOUVEAU!$R$22:$AA$38,6),VLOOKUP($D15,$D29:$K76,6))) ->  | J15: =IF(B15="","",IF(C15="Mes_concentrés",VLOOKUP(D15,NOUVEAU!$R$22:$AA$38,7),VLOOKUP($D15,$D29:$K76,7))) ->  | K15: =IF(B15="","",IF(C15="Mes_concentrés",VLOOKUP(D15,NOUVEAU!$R$22:$AA$38,8),VLOOKUP($D15,$D29:$K76,8))) ->  | L15: =IF(B15="","",IF(C15="Mes_concentrés",VLOOKUP(D15,NOUVEAU!$R$22:$AC$38,9),VLOOKUP($D15,$D29:$M76,9))) ->  | M15: =IF(B15="","",IF(C15="Mes_concentrés",VLOOKUP(D15,NOUVEAU!$R$22:$AC$38,10),VLOOKUP($D15,$D29:$M76,10))) -> 
F16: =IF(B15="","",E15*F15) ->  | G16: =IF(B15="","",E15*G15) ->  | H16: =IF(B15="","",E15*H15) ->  | I16: =IF(B15="","",E15*I15) ->  | J16: =IF(B15="","",E15*J15) ->  | K16: =IF(B15="","",E15*K15) ->  | L16: =IF(B15="","",E15*L15) ->  | M16: =IF(B15="","",$E$15*M15) -> 
E17: =IF(B9="","",B17/$B$23) ->  | F17: =IF(B17="","",IF(C17="Mes_concentrés",VLOOKUP(D17,NOUVEAU!$R$22:$AA$38,3),VLOOKUP($D17,$D29:$K76,3))) ->  | G17: =IF(B17="","",IF(C17="Mes_concentrés",VLOOKUP(D17,NOUVEAU!$R$22:$AA$38,4),VLOOKUP($D17,$D29:$K76,4))) ->  | H17: =IF(B17="","",IF(C17="Mes_concentrés",VLOOKUP(D17,NOUVEAU!$R$22:$AA$38,5),VLOOKUP($D17,$D29:$K76,5))) ->  | I17: =IF(B17="","",IF(C17="Mes_concentrés",VLOOKUP(D17,NOUVEAU!$R$22:$AA$38,6),VLOOKUP($D17,$D29:$K76,6))) ->  | J17: =IF(B17="","",IF(C17="Mes_concentrés",VLOOKUP(D17,NOUVEAU!$R$22:$AA$38,7),VLOOKUP($D17,$D29:$K76,7))) ->  | K17: =IF(B17="","",IF(C17="Mes_concentrés",VLOOKUP(D17,NOUVEAU!$R$22:$AA$38,8),VLOOKUP($D17,$D29:$K76,8))) ->  | L17: =IF(B17="","",IF(C17="Mes_concentrés",VLOOKUP(D17,NOUVEAU!$R$22:$AC$38,9),VLOOKUP($D17,$D29:$M76,9))) ->  | M17: =IF(B17="","",IF(C17="Mes_concentrés",VLOOKUP(D17,NOUVEAU!$R$22:$AC$38,10),VLOOKUP($D17,$D29:$M76,10))) -> 
F18: =IF(B17="","",E17*F17) ->  | G18: =IF(B17="","",E17*G17) ->  | H18: =IF(B17="","",E17*H17) ->  | I18: =IF(B17="","",E17*I17) ->  | J18: =IF(B17="","",E17*J17) ->  | K18: =IF(B17="","",E17*K17) ->  | L18: =IF(B17="","",E17*L17) ->  | M18: =IF(B17="","",$E$17*M17) -> 
E19: =IF(B9="","",B19/$B$23) ->  | F19: =IF(B19="","",IF(C19="Mes_concentrés",VLOOKUP(D19,NOUVEAU!$R$22:$AA$38,3),VLOOKUP($D19,$D29:$K76,3))) ->  | G19: =IF(B19="","",IF(C19="Mes_concentrés",VLOOKUP(D19,NOUVEAU!$R$22:$AA$38,4),VLOOKUP($D19,$D29:$K76,4))) ->  | H19: =IF(B19="","",IF(C19="Mes_concentrés",VLOOKUP(D19,NOUVEAU!$R$22:$AA$38,5),VLOOKUP($D19,$D29:$K76,5))) ->  | I19: =IF(B19="","",IF(C19="Mes_concentrés",VLOOKUP(D19,NOUVEAU!$R$22:$AA$38,6),VLOOKUP($D19,$D29:$K76,6))) ->  | J19: =IF(B19="","",IF(C19="Mes_concentrés",VLOOKUP(D19,NOUVEAU!$R$22:$AA$38,7),VLOOKUP($D19,$D29:$K76,7))) ->  | K19: =IF(B19="","",IF(C19="Mes_concentrés",VLOOKUP(D19,NOUVEAU!$R$22:$AA$38,8),VLOOKUP($D19,$D29:$K76,8))) ->  | L19: =IF(B19="","",IF(C19="Mes_concentrés",VLOOKUP(D19,NOUVEAU!$R$22:$AC$38,9),VLOOKUP($D19,$D29:$M76,9))) ->  | M19: =IF(B19="","",IF(C19="Mes_concentrés",VLOOKUP(D19,NOUVEAU!$R$22:$AC$38,10),VLOOKUP($D19,$D29:$M76,10))) -> 
F20: =IF(B19="","",E19*F19) ->  | G20: =IF(B19="","",E19*G19) ->  | H20: =IF(B19="","",E19*H19) ->  | I20: =IF(B19="","",E19*I19) ->  | J20: =IF(B19="","",E19*J19) ->  | K20: =IF(B19="","",E19*K19) ->  | L20: =IF(B19="","",E19*L19) ->  | M20: =IF(B19="","",$E$19*M19) -> 
F21: =CONCATENATE(ROUND(H23/F23,0)," PDI / UFL") ->  | J21: =CONCATENATE("Ca / P = ",ROUND(K23/J23,1)) -> 
O22: COUT € / kg
B23: =SUM(B9:B20) -> 0 | C23: kg | D23: Mon aliment | E23: =IF(B9="","",SUM(E9:E20)) ->  | F23: =IF(F10="","",SUM(F10,F12,F14,F16,F18,F20)) ->  | L23: =IF(L10="","",SUM(L10,L12,L14,L16,L18,L20)) ->  | O23: =IF(B9="","",((O10*B9)+(O12*B11)+(O14*B13)+(O16*B15)+(O18*B17)+(O20*B19))/(B23*1000)) -> 
D24: Les valeurs alimentaires sont reportées dans la liste des aliments "Mon aliment"
D28: Catégorie | E28: C | F28: U.F.L. | G28: U.F.V. | H28: P.D.I.N. | I28: P.D.I.E. | J28: Pabs | K28: Caabs | L28: MAT | M28: CB
D29: Avoine | F29: 0.77 | G29: 0.71 | H29: 61 | I29: 61 | J29: 2.7 | K29: 0.7 | L29: 11.1 | M29: 13.8 | Q29: Avoine
D30: Bicarbonate de Na | F30: 0 | G30: 0 | H30: 0 | I30: 0 | J30: 0 | K30: 0 | L30: 0 | M30: 0 | Q30: Blé
B31: Céréale | D31: Blé | F31: 1.02 | G31: 1.02 | H31: 70 | I31: 89 | J31: 2.6 | K31: 0.4 | L31: 12.1 | M31: 2.6 | Q31: Maïs grain
B32: Tourteau | D32: Carbonate de Ca | F32: 0 | G32: 0 | H32: 0 | I32: 0 | J32: 0 | K32: 150 | L32: 0 | M32: 0 | Q32: Orge
B33: Graines | D33: CMV 0 - 27 | F33: 0 | G33: 0 | H33: 0 | I33: 0 | J33: 0 | K33: 108 | L33: 0 | M33: 0 | Q33: Sarrazin
B34: Divers | D34: CMV 10 - 20 | F34: 0 | G34: 0 | H34: 0 | I34: 0 | J34: 65 | K34: 80 | L34: 0 | M34: 0 | Q34: Seigle
B35: Minéraux | D35: CMV 10 - 6 | F35: 0 | G35: 0 | H35: 0 | I35: 0 | J35: 65 | K35: 24 | L35: 0 | M35: 0 | Q35: Sorgho
B36: Mes_concentrés | D36: CMV 12 - 12 | F36: 0 | G36: 0 | H36: 0 | I36: 0 | J36: 78 | K36: 48 | L36: 0 | M36: 0 | Q36: Triticale
B37: Fibres | D37: CMV 12 - 12 | F37: 0 | G37: 0 | H37: 0 | I37: 0 | J37: 78 | K37: 48 | L37: 0 | M37: 0
D38: CMV 2 - 28 | F38: 0 | G38: 0 | H38: 0 | I38: 0 | J38: 13 | K38: 112 | L38: 0 | M38: 0 | Q38: Tourteau d'arachide
D39: CMV 3 - 27 | F39: 0 | G39: 0 | H39: 0 | I39: 0 | J39: 20 | K39: 108 | L39: 0 | M39: 0 | Q39: Tourteau de colza
D40: CMV 4 - 21 | F40: 0 | G40: 0 | H40: 0 | I40: 0 | J40: 26 | K40: 84 | L40: 0 | M40: 0 | Q40: Tourteau de coton
D41: CMV 5 - 20 | F41: 0 | G41: 0 | H41: 0 | I41: 0 | J41: 32 | K41: 80 | L41: 0 | M41: 0 | Q41: Tourteau de lin
D42: CMV 5 - 25 | F42: 0 | G42: 0 | H42: 0 | I42: 0 | J42: 32 | K42: 100 | L42: 0 | M42: 0 | Q42: Tourteau de soja
D43: CMV 6 - 6 | F43: 0 | G43: 0 | H43: 0 | I43: 0 | J43: 39 | K43: 24 | L43: 0 | M43: 0 | Q43: Tourteau de tournesol
D44: CMV 7 - 21 | F44: 0 | G44: 0 | H44: 0 | I44: 0 | J44: 15 | K44: 84 | L44: 0 | M44: 0
D45: CMV 8 - 12 | F45: 0 | G45: 0 | H45: 0 | I45: 0 | J45: 52 | K45: 48 | L45: 0 | M45: 0 | Q45: Féverole
D46: CMV 8 - 16 | F46: 0 | G46: 0 | H46: 0 | I46: 0 | J46: 52 | K46: 64 | L46: 0 | M46: 0 | Q46: Graines de colza
D47: CMV 8 - 24 | F47: 0 | G47: 0 | H47: 0 | I47: 0 | J47: 52 | K47: 96 | L47: 0 | M47: 0 | Q47: Graines de coton
D48: CMV 9 - 14 | F48: 0 | G48: 0 | H48: 0 | I48: 0 | J48: 58 | K48: 56 | L48: 0 | M48: 0 | Q48: Graines de lin
D49: Drêches de blé | F49: 0.76 | G49: 0.68 | H49: 178 | I49: 157 | J49: 4.9 | K49: 1.3 | L49: 31 | M49: 6 | Q49: Graines de soja
D50: Drêches de brasserie | F50: 0.75 | G50: 0.67 | H50: 180 | I50: 160 | J50: 5 | K50: 1 | L50: 31.6 | M50: 6.1 | Q50: Graines de tournesol
D51: Féverole | F51: 1.03 | G51: 1.03 | H51: 170 | I51: 97 | J51: 4.1 | K51: 0.9 | L51: 31.1 | M51: 9.6 | Q51: Lupin
D52: Foin (prairies) | F52: 0.6 | G52: 0.5 | H52: 55 | I52: 65 | J52: 2 | K52: 1.5 | L52: 10 | M52: 33 | Q52: Pois
D53: Graines de colza | F53: 1.68 | G53: 1.68 | H53: 12 | I53: 61 | J53: 5.3 | K53: 2.8 | L53: 20.7 | M53: 8.9 | Q53: Vesce
D54: Graines de coton | F54: 0.94 | G54: 0.85 | H54: 131 | I54: 77 | J54: 5.1 | K54: 1 | L54: 23.4 | M54: 25.9
D55: Huile de colza | F55: 2.73 | G55: 2.78 | H55: 0 | I55: 0 | J55: 0 | K55: 0 | L55: 0 | M55: 0 | Q55: Bicarbonate de Na
D56: Lupin | F56: 1.18 | G56: 1.18 | H56: 213 | I56: 106 | J56: 3.2 | K56: 2.1 | L56: 38.5 | M56: 12.8 | Q56: Drêches de blé
D57: Luzerne (foin) | F57: 0.6 | G57: 0.5 | H57: 100 | I57: 80 | J57: 1.3 | K57: 3.8 | L57: 17 | M57: 36 | Q57: Drêches de brasserie
D58: Luzerne déshydratée | F58: 0.62 | G58: 0.54 | H58: 103 | I58: 91 | J58: 1.9 | K58: 6.5 | L58: 17.5 | M58: 29.5 | Q58: Huile de colza
D59: Maïs grain | F59: 1.06 | G59: 1.06 | H59: 64 | I59: 84 | J59: 2.2 | K59: 0.3 | L59: 9.4 | M59: 2.5 | Q59: Lactosérum
D60: Mélasse | F60: 0.75 | G60: 0.75 | H60: 63 | I60: 54 | J60: 0.2 | K60: 0.5 | L60: 14.5 | M60: 0 | Q60: Luzerne deshydratée
D61: Orge | F61: 0.95 | G61: 0.93 | H61: 69 | I61: 87 | J61: 3 | K61: 0.5 | L61: 11.6 | M61: 5.2 | Q61: Mélasse
D62: Paille de céréales | F62: 0.4 | G62: 0.35 | H62: 25 | I62: 45 | J62: 0.5 | K62: 1 | L62: 3.5 | M62: 42 | Q62: Poudre de lait écrémé
D63: Pois | F63: 1.04 | G63: 1.05 | H63: 130 | I63: 83 | J63: 3.4 | K63: 0.7 | L63: 23.9 | M63: 6 | Q63: Pulpe de betterave
D64: Poudre de lait écrémé | F64: 1.15 | G64: 1.17 | H64: 196 | I64: 75 | J64: 9.7 | K64: 11.7 | L64: 36 | M64: 0 | N64: 0
D65: Pulpe de betterave | F65: 0.89 | G65: 0.87 | H65: 59 | I65: 97 | J65: 0.9 | K65: 3 | L65: 9.1 | M65: 19.4 | N65: 100 | Q65: Carbonate de Ca
D66: Sarrazin | F66: 0.81 | G66: 0.76 | H66: 77 | I66: 82 | J66: 2.6 | K66: 0.5 | L66: 13.1 | M66: 11.6 | N66: 100 | Q66: CMV 0 - 27
D67: Seigle | F67: 1.03 | G67: 1.03 | H67: 59 | I67: 85 | J67: 2.6 | K67: 0.7 | L67: 10.3 | M67: 2.2 | N67: 120 | Q67: CMV 10 - 20
D68: Sorgho | F68: 1.05 | G68: 1.06 | H68: 67 | I68: 87 | J68: 2.4 | K68: 0.2 | L68: 109 | M68: 2.7 | N68: 120 | Q68: CMV 10 - 6
D69: Tourteau d'arachide | F69: 1 | G69: 0.97 | H69: 347 | I69: 215 | J69: 4.1 | K69: 1.2 | L69: 54.6 | M69: 7.6 | N69: 40 | Q69: CMV 12 - 12
D70: Tourteau de colza | F70: 0.85 | G70: 0.8 | H70: 219 | I70: 138 | J70: 9.2 | K70: 5.2 | L70: 35 | M70: 13.9 | N70: 50 | Q70: CMV 2 - 28
D71: Tourteau de lin | F71: 0.88 | G71: 0.84 | H71: 227 | I71: 179 | J71: 6 | K71: 2.8 | L71: 35.9 | M71: 11 | N71: 50 | Q71: CMV 3 - 27
D72: Tourteau de soja | F72: 1.06 | G72: 1.05 | H72: 331 | I72: 229 | J72: 5 | K72: 2.1 | L72: 51.6 | M72: 6.8 | N72: 60 | Q72: CMV 4 - 21
D73: Tourteau de tournesol | F73: 0.56 | G73: 0.46 | H73: 178 | I73: 93 | J73: 7.4 | K73: 2.4 | L73: 37.3 | M73: 23.6 | N73: 70 | Q73: CMV 5 - 20
D74: Triticale | F74: 1.01 | G74: 1.02 | H74: 63 | I74: 84 | J74: 3 | K74: 0.5 | L74: 11 | M74: 2.7 | N74: 80 | Q74: CMV 5 - 25
D75: Urée | F75: 0 | G75: 0 | H75: 1443 | I75: 0 | J75: 0 | K75: 0 | L75: 0 | M75: 0 | N75: 80 | Q75: CMV 6 - 6
D76: Vesce | F76: 1.02 | G76: 1.01 | H76: 161 | I76: 90 | J76: 3.8 | K76: 1 | L76: 29.6 | M76: 7.4 | N76: 80 | Q76: CMV 7 - 21
N77: 90 | Q77: CMV 8 - 12
N78: 0 | Q78: CMV 8 - 16
Q79: CMV 8 - 24
Q80: CMV 9 - 14
Q82: Paille de céréales
Q83: Luzerne (foin)
Q84: Foin (prairies)

Sheet IMPRIMER
B2: ALIM'ovins (v. 5.1) | F2: Nom:
B3: Rationnement des ovins allaitants
B7: Catégorie | E7: Apports Alimentaires Recommandés
E8: UEM | F8: UFL | G8: PDIN | H8: PDIE | I8: Pabs | J8: Caabs
B9: =IF(ANIMAL!E11="","",ANIMAL!E11) ->  | E9: =IF($B$9="","",ANIMAL!E16) ->  | F9: =IF($B$9="","",ANIMAL!F16) ->  | G9: =IF($B$9="","",ANIMAL!G16) ->  | H9: =IF($B$9="","",ANIMAL!G16) ->  | I9: =IF($B$9="","",ANIMAL!H16) ->  | J9: =IF($B$9="","",ANIMAL!I16) -> 
B11: Quantité kg | C11: Aliments (valeurs / kg MS) | D11: Valeurs alimentaires
D12: MS | E12: UEM | F12: UFL | G12: PDIN | H12: PDIE | I12: Pabs | J12: Caabs
B13: =IF(FOURRAGE!L10="","",FOURRAGE!L10) ->  | C13: =FOURRAGE!E9 ->  | D13: =FOURRAGE!E15 ->  | E13: =FOURRAGE!F15 ->  | F13: =FOURRAGE!G15 ->  | G13: =FOURRAGE!H15 ->  | H13: =FOURRAGE!I15 ->  | I13: =FOURRAGE!J15 ->  | J13: =FOURRAGE!L15 -> 
D14: =IF(B13="","",B13*(D13/100)) ->  | E14: =IF($D$14="","",$D$14*E13) -> 
B15: =IF(FOURRAGE!L24="","",FOURRAGE!L24) ->  | C15: =FOURRAGE!E23 ->  | D15: =IF(C15="","",FOURRAGE!E29) ->  | E15: =IF(C15="","",FOURRAGE!F29) ->  | F15: =IF(C15="","",FOURRAGE!G29) ->  | G15: =IF(C15="","",FOURRAGE!H29) ->  | H15: =IF(C15="","",FOURRAGE!I29) ->  | I15: =IF(C15="","",FOURRAGE!J29) ->  | J15: =IF(C15="","",FOURRAGE!L29) -> 
D16: =IF(B15="","",B15*(D15/100)) ->  | E16: =IF($D$16="","",$D$16*E15) -> 
B17: =IF(SUM(B13,B15)=0,"",SUM(B13,B15)) ->  | C17: Ration de base | D17: =IF(B17="","",SUM(D14,D16)) ->  | E17: =IF(B17="","",SUM(E14,E16)) ->  | F17: =IF(B17="","",SUM(F14,F16)) ->  | G17: =IF(B17="","",SUM(G14,G16)) ->  | H17: =IF(B17="","",SUM(H14,H16)) ->  | I17: =IF(B17="","",SUM(I14,I16)) ->  | J17: =IF(B17="","",SUM(J14,J16)) -> 
B19: Différence | E19: =IF(E9="","",E17-E9) -> 
B21: =IF(CONCENTRE!K9="","",CONCENTRE!K9) ->  | C21: =IF(B21="","",CONCENTRE!C10) ->  | F21: =IF(C21="","",CONCENTRE!E10) ->  | G21: =IF(C21="","",CONCENTRE!F10) ->  | H21: =IF(C21="","",CONCENTRE!G10) ->  | I21: =IF(C21="","",CONCENTRE!H10) ->  | J21: =IF(C21="","",CONCENTRE!I10) -> 
F22: =IF(B21="","",$B$21*F21) ->  | G22: =IF(B21="","",$B$21*G21) ->  | H22: =IF(B21="","",$B$21*H21) ->  | I22: =IF(B21="","",$B$21*I21) ->  | J22: =IF(B21="","",$B$21*J21) -> 
B23: =IF(CONCENTRE!K16="","",CONCENTRE!K16) ->  | C23: =IF(B23="","",CONCENTRE!C17) ->  | F23: =IF(C23="","",CONCENTRE!E17) ->  | G23: =IF(C23="","",CONCENTRE!F17) ->  | H23: =IF(C23="","",CONCENTRE!G17) ->  | I23: =IF(C23="","",CONCENTRE!H17) ->  | J23: =IF(C23="","",CONCENTRE!I17) -> 
F24: =IF(B23="","",$B$23*F23) ->  | G24: =IF(B23="","",$B$23*G23) ->  | H24: =IF(B23="","",$B$23*H23) ->  | I24: =IF(B23="","",$B$23*I23) ->  | J24: =IF(B23="","",$B$23*J23) -> 
B25: =IF(SUM(B21,B23)=0,"",SUM(B21,B23)) ->  | C25: Concentrés | F25: =IF(B25="","",SUM(F22,F24)) ->  | G25: =IF(B25="","",SUM(G22,G24)) ->  | H25: =IF(B25="","",SUM(H22,H24)) ->  | I25: =IF(B25="","",SUM(I22,I24)) ->  | J25: =IF(B25="","",SUM(J22,J24)) -> 
B27: RMIC = | C27: PDIN - PDIE | D27: =IF(D30="","",(G30-H30)/F30) ->  | E27: * | F27: =IF(CMV!C8="","",(CMV!C12)/1000) ->  | G27: =IF(F27="","",CMV!L8) ->  | I27: =CMV!G14 ->  | J27: =CMV!I14 -> 
C28: UFL | I28: =IF(F27="","",I27*F27) ->  | J28: =IF(F27="","",J27*F27) -> 
B30: =IF(B17="","",SUM(B17,B25,F27)) ->  | C30: TOTAL RATION | D30: =D17 ->  | E30: =E17 ->  | F30: =IF(F19="","",SUM(F25,F17)) ->  | G30: =IF(G19="","",SUM(G25,G17)) ->  | H30: =IF(H19="","",SUM(H25,H17)) ->  | I30: =IF(I19="","",SUM(I25,I17,I28)) ->  | J30: =IF(J19="","",SUM(J25,J17,J28)) -> 
C32: Différence | E32: =IF(B17="","",E30-E9) ->  | F32: =IF($B$17="","",F30-F9) ->  | G32: =IF($B$17="","",G30-G9) ->  | H32: =IF($B$17="","",H30-H9) ->  | I32: =IF($B$17="","",I30-I9) ->  | J32: =IF($B$17="","",J30-J9) -> 
A33: * RMIC < - 12 (Brebis allaitantes - agneaux simples) RMIC < - 6 (Brebis allaitantes - agneaux doubles) | E33: =IF(E32="","",IF(E32>0,"ATTENTION ! La capacité d'ingestion est dépassée: REDUISEZ LES QUANTITES DE FOURRAGE","")) -> 
A36: Commentaires: . . . . . . . . . . . . . . . . . . . . . . . . . . . . . . . . . . . . . . . . . . . . . . . . . . . . . . . . . . . . . . . . . . . . . . . . . . . .
A38: . . . . . . . . . . . . . . . . . . . . . . . . . . . . . . . . . . . . . . . . . . . . . . . . . . . . . . . . . . . . . . . . . . . . . . . . . . . . . . . . . . . . . . . . . . . . . .
A40: . . . . . . . . . . . . . . . . . . . . . . . . . . . . . . . . . . . . . . . . . . . . . . . . . . . . . . . . . . . . . . . . . . . . . . . . . . . . . . . . . . . . . . . . . . . . . .

Sheet IMPRIMCOUT
B2: ALIM'ovins(v. 5.1)
F3: Nom: | G3: OVIMASH Bélier
B4: FORMULATION ET CALCUL DU COUT D'UN CONCENTRE FERMIER
L5: =COUT!N6 -> 0 | M5: =COUT!O6 -> Coût des matières premières (€ /tonne)
B6: =COUT!B7 -> Quantités kg | C6: =COUT!C7 -> Matières premières | D6: =COUT!E7 -> Valeurs alimentaires
D7: =COUT!E8 -> % | E7: =COUT!F8 -> UFL | F7: =COUT!H8 -> PDIN | G7: =COUT!I8 -> PDIE | H7: =COUT!J8 -> Pabs | I7: =COUT!K8 -> Caabs | J7: MAT | K7: CB
B8: =IF(COUT!B9="","",COUT!B9) ->  | C8: =IF(COUT!D9="","",COUT!D9) ->  | D8: =COUT!E9 ->  | E8: =COUT!F9 ->  | F8: =COUT!H9 ->  | G8: =COUT!I9 ->  | H8: =COUT!J9 ->  | I8: =COUT!K9 ->  | J8: =COUT!L9 ->  | K8: =COUT!M9 -> 
E9: =COUT!F10 ->  | F9: =COUT!H10 ->  | G9: =COUT!I10 ->  | H9: =COUT!J10 ->  | I9: =COUT!K10 ->  | J9: =COUT!L10 ->  | K9: =COUT!M10 ->  | M9: =COUT!O10 -> 0
B10: =IF(COUT!B11="","",COUT!B11) ->  | C10: =IF(COUT!D11="","",COUT!D11) ->  | D10: =COUT!E11 ->  | E10: =COUT!F11 ->  | F10: =COUT!H11 ->  | G10: =COUT!I11 ->  | H10: =COUT!J11 ->  | I10: =COUT!K11 ->  | J10: =COUT!L11 ->  | K10: =COUT!M11 -> 
E11: =COUT!F12 ->  | F11: =COUT!H12 ->  | G11: =COUT!I12 ->  | H11: =COUT!J12 ->  | I11: =COUT!K12 ->  | J11: =COUT!L12 ->  | K11: =COUT!M12 ->  | M11: =COUT!O12 -> 0
B12: =IF(COUT!B13="","",COUT!B13) ->  | C12: =IF(COUT!D13="","",COUT!D13) ->  | D12: =COUT!E13 ->  | E12: =COUT!F13 ->  | F12: =COUT!H13 ->  | G12: =COUT!I13 ->  | H12: =COUT!J13 ->  | I12: =COUT!K13 ->  | J12: =COUT!L13 ->  | K12: =COUT!M13 -> 
E13: =COUT!F14 ->  | F13: =COUT!H14 ->  | G13: =COUT!I14 ->  | H13: =COUT!J14 ->  | I13: =COUT!K14 ->  | J13: =COUT!L14 ->  | K13: =COUT!M14 ->  | M13: =COUT!O14 -> 0
B14: =IF(COUT!B15="","",COUT!B15) ->  | C14: =IF(COUT!D15="","",COUT!D15) ->  | D14: =COUT!E15 ->  | E14: =COUT!F15 ->  | F14: =COUT!H15 ->  | G14: =COUT!I15 ->  | H14: =COUT!J15 ->  | I14: =COUT!K15 ->  | J14: =COUT!L15 ->  | K14: =COUT!M15 -> 
E15: =COUT!F16 ->  | F15: =COUT!H16 ->  | G15: =COUT!I16 ->  | H15: =COUT!J16 ->  | I15: =COUT!K16 ->  | J15: =COUT!L16 ->  | K15: =COUT!M16 ->  | M15: =COUT!O16 -> 0
B16: =IF(COUT!B17="","",COUT!B17) ->  | C16: =IF(COUT!D17="","",COUT!D17) ->  | D16: =COUT!E17 ->  | E16: =COUT!F17 ->  | F16: =COUT!H17 ->  | G16: =COUT!I17 ->  | H16: =COUT!J17 ->  | I16: =COUT!K17 ->  | J16: =COUT!L17 ->  | K16: =COUT!M17 -> 
E17: =COUT!F18 ->  | F17: =COUT!H18 ->  | G17: =COUT!I18 ->  | H17: =COUT!J18 ->  | I17: =COUT!K18 ->  | J17: =COUT!L18 ->  | K17: =COUT!M18 ->  | M17: =COUT!O18 -> 0
B18: =IF(COUT!B19="","",COUT!B19) ->  | C18: =IF(COUT!D19="","",COUT!D19) ->  | D18: =COUT!E19 ->  | E18: =COUT!F19 ->  | F18: =COUT!H19 ->  | G18: =COUT!I19 ->  | H18: =COUT!J19 ->  | I18: =COUT!K19 ->  | J18: =COUT!L19 ->  | K18: =COUT!M19 -> 
E19: =COUT!F20 ->  | F19: =COUT!H20 ->  | G19: =COUT!I20 ->  | H19: =COUT!J20 ->  | I19: =COUT!K20 ->  | J19: =COUT!L20 ->  | K19: =COUT!M20 ->  | M19: =COUT!O20 -> 0
M21: =COUT!O22 -> COUT € / kg
B22: =COUT!B23 -> 0 | C22: =COUT!D23 -> Mon aliment | D22: =COUT!E23 ->  | E22: =COUT!F23 ->  | F22: =COUT!H23 ->  | G22: =COUT!I23 ->  | H22: =COUT!J23 ->  | I22: =COUT!K23 ->  | J22: =COUT!L23 ->  | K22: =COUT!M23 ->  | L22: =COUT!N23 -> 0 | M22: =COUT!O23 -> 
C27: Catégorie | D27: C | E27: U.F.L. | F27: P.D.I.N. | G27: P.D.I.E. | H27: Pabs | I27: Caabs
C28: Aliment complet | E28: =#REF! ->  | F28: =#REF! ->  | G28: =#REF! ->  | H28: =#REF! ->  | I28: =#REF! -> 
C29: Aliment divers | E29: =#REF! ->  | F29: =#REF! ->  | G29: =#REF! ->  | H29: =#REF! ->  | I29: =#REF! -> 
C30: Avoine | E30: 0.77 | F30: 61 | G30: 61 | H30: 2.7 | I30: 0.7
C31: Bicarbonate de Na | E31: 0 | F31: 0 | G31: 0 | H31: 0 | I31: 0
C32: Blé | E32: 1.02 | F32: 70 | G32: 89 | H32: 2.6 | I32: 0.4
C33: Carbonate de Ca | E33: 0 | F33: 0 | G33: 0 | H33: 0 | I33: 150
C34: CMV 0 - 27 (Gravelle) | E34: 0 | F34: 0 | G34: 0 | H34: 0 | I34: 108
C35: CMV 10 - 20 | E35: 0 | F35: 0 | G35: 0 | H35: 65 | I35: 80
C36: CMV 10 - 6 | E36: 0 | F36: 0 | G36: 0 | H36: 65 | I36: 24
C37: CMV 12 - 12 | E37: 0 | F37: 0 | G37: 0 | H37: 78 | I37: 48
C38: CMV 12 - 12 | E38: 0 | F38: 0 | G38: 0 | H38: 78 | I38: 48
C39: CMV 4 - 21 | E39: 0 | F39: 0 | G39: 0 | H39: 26 | I39: 84
C40: CMV 5 - 20 | E40: 0 | F40: 0 | G40: 0 | H40: 32 | I40: 80
C41: CMV 5 - 25 | E41: 0 | F41: 0 | G41: 0 | H41: 32 | I41: 100
C42: CMV 6 - 6 | E42: 0 | F42: 0 | G42: 0 | H42: 39 | I42: 24
C43: CMV 7 - 21 | E43: 0 | F43: 0 | G43: 0 | H43: 15 | I43: 84
C44: CMV 8 - 12 | E44: 0 | F44: 0 | G44: 0 | H44: 52 | I44: 48
C45: CMV 8 - 16 | E45: 0 | F45: 0 | G45: 0 | H45: 52 | I45: 64
C46: CMV 8 - 24 | E46: 0 | F46: 0 | G46: 0 | H46: 52 | I46: 96
C47: CMV 9 - 14 | E47: 0 | F47: 0 | G47: 0 | H47: 58 | I47: 56
C48: Complémentaire azoté | E48: =#REF! ->  | F48: =#REF! ->  | G48: =#REF! ->  | H48: =#REF! ->  | I48: =#REF! -> 
C49: Drêches | E49: 0.76 | F49: 178 | G49: 157 | H49: 4.9 | I49: 1.3
C50: Féverole | E50: 1.03 | F50: 170 | G50: 97 | H50: 4.1 | I50: 0.9
C51: Graines Colza | E51: 1.68 | F51: 12 | G51: 61 | H51: 5.3 | I51: 2.8
C52: Graines Coton | E52: 0.94 | F52: 131 | G52: 77 | H52: 5.1 | I52: 1
C53: Huile de colza | E53: 2.73 | F53: 0 | G53: 0 | H53: 0 | I53: 0
C54: Lupin Blanc | E54: 1.18 | F54: 213 | G54: 106 | H54: 3.2 | I54: 2.1
C55: Luzerne déhydratée | E55: 0.62 | F55: 103 | G55: 91 | H55: 1.9 | I55: 6.5
C56: Maïs grain | E56: 1.06 | F56: 64 | G56: 84 | H56: 2.2 | I56: 0.3
C57: Mélange 2/3 O - 1/3 S | E57: 0.9866666657 | F57: 156.3333332 | G57: 134.3333332 | H57: 3.666666663 | I57: 1.033333332
C58: Mélange 2/3 T - 1/3 C | E58: 0.9566666657 | F58: 114.9999999 | G58: 101.9999999 | H58: 5.066666662 | I58: 2.066666665
C59: Mélange 3/4 O - 1/4 S | E59: 0.9775 | F59: 134.5 | G59: 122.5 | H59: 3.5 | I59: 0.9
C60: Mélange 80 % O - 20 % S | E60: 0.972 | F60: 121.4 | G60: 115.4 | H60: 3.4 | I60: 0.82
C61: Mélasse | E61: 0.75 | F61: 63 | G61: 54 | H61: 0.2 | I61: 0.5
C62: Mon concentré | E62: =COUT!F7 -> 0 | F62: =COUT!H7 -> 0 | G62: =COUT!I7 -> 0 | H62: =COUT!J7 -> 0 | I62: =COUT!K7 -> 0
C63: Orge | E63: 0.95 | F63: 69 | G63: 87 | H63: 3 | I63: 0.5 | L63: 0
C64: Pois | E64: 1.04 | F64: 130 | G64: 83 | H64: 3.4 | I64: 0.7 | L64: 100
C65: Poudre de lait écrémé | E65: 1.15 | F65: 196 | G65: 75 | H65: 9.7 | I65: 11.7 | L65: 100
C66: Pulpe de betterave | E66: 0.89 | F66: 59 | G66: 97 | H66: 0.9 | I66: 3 | L66: 120
C67: Sarrazin | E67: 0.81 | F67: 77 | G67: 82 | H67: 2.6 | I67: 0.5 | L67: 120
C68: Seigle | E68: 1.03 | F68: 59 | G68: 85 | H68: 2.6 | I68: 0.7 | L68: 40
C69: Sorgho | E69: 1.05 | F69: 67 | G69: 87 | H69: 2.4 | I69: 0.2 | L69: 50
C70: Tourteau Arachide | E70: 1 | F70: 347 | G70: 215 | H70: 4.1 | I70: 1.2 | L70: 50
C71: Tourteau Colza 35 | E71: 0.85 | F71: 219 | G71: 138 | H71: 9.2 | I71: 5.2 | L71: 60
C72: Tourteau Lin | E72: 0.88 | F72: 227 | G72: 179 | H72: 6 | I72: 2.8 | L72: 70
C73: Tourteau Soja 48 | E73: 1.06 | F73: 331 | G73: 229 | H73: 5 | I73: 2.1 | L73: 80
C74: Tourteau Tournesol | E74: 0.56 | F74: 178 | G74: 93 | H74: 7.4 | I74: 2.4 | L74: 80
C75: Triticale | E75: 1.01 | F75: 63 | G75: 84 | H75: 3 | I75: 0.5 | L75: 80
C76: Urée | E76: 0 | F76: 1443 | G76: 0 | H76: 0 | I76: 0 | L76: 90
C77: Vesce | E77: 1.02 | F77: 161 | G77: 90 | H77: 3.8 | I77: 1 | L77: 0

Sheet AGNEAU
B1: ALIM'ovins(v. 5.1)
B2: Rationnement des ovins
B4: Agneau
U5: 3 Composez votre concentré "agneau"
B6: 1 Cliquez sur les flèches ou cochez les cases | F6: CATEGORIE | L6: CHOIX DU CONCENTRE
U7: % | V7: Matières premières | X7: Valeurs alimentaires
E8: =IF(C12="","",CONCATENATE(IF(I33=1,"mâle","femelle")," de race ",IF(I36=TRUE,"à viande","rustique ou croisée")," poids ",C12," - GMQ ",C14)) ->  | X8: UFV | Y8: PDIN | Z8: PDIE | AA8: Pabs | AB8: Caabs
L9: Valeur U.F.V. de l'aliment | P9: =IF(E8="","",M38) ->  | Q9: =IF(P9="","","UFV / kg") ->  | X9: =IF(U9="","",IF(V9="Mes_concentrés",VLOOKUP(W9,NOUVEAU!$R$22:$AA$38,4),VLOOKUP($W9,$W44:$AC93,3))) ->  | Y9: =IF(U9="","",IF(V9="Mes_concentrés",VLOOKUP(W9,NOUVEAU!$R$22:$AA$38,5),VLOOKUP($W9,$W44:$AC93,4))) ->  | Z9: =IF(U9="","",IF(V9="Mes_concentrés",VLOOKUP(W9,NOUVEAU!$R$22:$AA$38,6),VLOOKUP($W9,$W44:$AC93,5))) ->  | AA9: =IF(U9="","",IF(V9="Mes_concentrés",VLOOKUP(W9,NOUVEAU!$R$22:$AA$38,7),VLOOKUP($W9,$W44:$AC93,6))) ->  | AB9: =IF(U9="","",IF(V9="Mes_concentrés",VLOOKUP(W9,NOUVEAU!$R$22:$AA$38,8),VLOOKUP($W9,$W44:$AC93,7))) -> 
X10: =IF(U9="","",($U$9/100)*X9) ->  | Y10: =IF(U9="","",($U$9/100)*Y9) ->  | Z10: =IF(U9="","",($U$9/100)*Z9) ->  | AA10: =IF(U9="","",($U$9/100)*AA9) ->  | AB10: =IF(U9="","",($U$9/100)*AB9) -> 
M11: 2 | N11: faites varier la teneur avec les flèches | X11: =IF(U11="","",IF(V11="Mes_concentrés",VLOOKUP(W11,NOUVEAU!$R$22:$AA$38,4),VLOOKUP($W11,$W44:$AC93,3))) ->  | Y11: =IF(U11="","",IF(V11="Mes_concentrés",VLOOKUP(W11,NOUVEAU!$R$22:$AA$38,5),VLOOKUP($W11,$W44:$AC93,4))) ->  | Z11: =IF(U11="","",IF(V11="Mes_concentrés",VLOOKUP(W11,NOUVEAU!$R$22:$AA$38,6),VLOOKUP($W11,$W44:$AC93,5))) ->  | AA11: =IF(U11="","",IF(V11="Mes_concentrés",VLOOKUP(W11,NOUVEAU!$R$22:$AA$38,7),VLOOKUP($W11,$W44:$AC93,6))) ->  | AB11: =IF(U11="","",IF(V11="Mes_concentrés",VLOOKUP(W11,NOUVEAU!$R$22:$AA$38,8),VLOOKUP($W11,$W44:$AC93,7))) -> 
B12: Poids | E12: BESIONS ALIMENTAIRES | X12: =IF(U11="","",($U$11/100)*X11) ->  | Y12: =IF(U11="","",($U$11/100)*Y11) ->  | Z12: =IF(U11="","",($U$11/100)*Z11) ->  | AA12: =IF(U11="","",($U$11/100)*AA11) ->  | AB12: =IF(U11="","",($U$11/100)*AB11) -> 
E13: U.F.V. | F13: P.D.I. | G13: Pabs | H13: Caabs | M13: Quantités nécessaires | P13: =IF(E8="","",IF(E14="ND","",E14/P9)) ->  | Q13: =IF(E8="","","kg /jour") ->  | X13: =IF(U13="","",IF(V13="Mes_concentrés",VLOOKUP(W13,NOUVEAU!$R$22:$AA$38,4),VLOOKUP($W13,$W44:$AC93,3))) ->  | Y13: =IF(U13="","",IF(V13="Mes_concentrés",VLOOKUP(W13,NOUVEAU!$R$22:$AA$38,5),VLOOKUP($W13,$W44:$AC93,4))) ->  | Z13: =IF(U13="","",IF(V13="Mes_concentrés",VLOOKUP(W13,NOUVEAU!$R$22:$AA$38,6),VLOOKUP($W13,$W44:$AC93,5))) ->  | AA13: =IF(U13="","",IF(V13="Mes_concentrés",VLOOKUP(W13,NOUVEAU!$R$22:$AA$38,7),VLOOKUP($W13,$W44:$AC93,6))) ->  | AB13: =IF(U13="","",IF(V13="Mes_concentrés",VLOOKUP(W13,NOUVEAU!$R$22:$AA$38,8),VLOOKUP($W13,$W44:$AC93,7))) -> 
B14: GMQ | E14: =IF(E8="","",VLOOKUP(E8,G43:K211,2)) ->  | F14: =IF(E8="","",VLOOKUP(E8,G43:K211,3)) ->  | G14: =IF(E8="","",VLOOKUP(E8,G43:K211,4)) ->  | H14: =IF(E8="","",VLOOKUP(E8,G43:K211,5)) ->  | X14: =IF(U13="","",($U$13/100)*X13) ->  | Y14: =IF(U13="","",($U$13/100)*Y13) ->  | Z14: =IF(U13="","",($U$13/100)*Z13) ->  | AA14: =IF(U13="","",($U$13/100)*AA13) ->  | AB14: =IF(Z13="","",($U$13/100)*AB13) -> 
X15: =IF(U15="","",IF(V15="Mes_concentrés",VLOOKUP(W15,NOUVEAU!$R$22:$AA$38,4),VLOOKUP($W15,$W44:$AC93,3))) ->  | Y15: =IF(U15="","",IF(V15="Mes_concentrés",VLOOKUP(W15,NOUVEAU!$R$22:$AA$38,5),VLOOKUP($W15,$W44:$AC93,4))) ->  | Z15: =IF(U15="","",IF(V15="Mes_concentrés",VLOOKUP(W15,NOUVEAU!$R$22:$AA$38,6),VLOOKUP($W15,$W44:$AC93,5))) ->  | AA15: =IF(U15="","",IF(V15="Mes_concentrés",VLOOKUP(W15,NOUVEAU!$R$22:$AA$38,7),VLOOKUP($W15,$W44:$AC93,6))) ->  | AB15: =IF(U15="","",IF(V15="Mes_concentrés",VLOOKUP(W15,NOUVEAU!$R$22:$AA$38,8),VLOOKUP($W15,$W44:$AC93,7))) -> 
X16: =IF(U15="","",($U$15/100)*X15) ->  | Y16: =IF(U15="","",($U$15/100)*Y15) ->  | Z16: =IF(U15="","",($U$15/100)*Z15) ->  | AA16: =IF(U15="","",($U$15/100)*AA15) ->  | AB16: =IF(U15="","",($U$15/100)*AB15) -> 
C17: COMPOSITION DE L'ALIMENT | K17: DUREE D'ENGRAISSEMENT (jours restants jusqu'à 40 kg) | X17: =IF(U17="","",IF(V17="Mes_concentrés",VLOOKUP(W17,NOUVEAU!$R$22:$AA$38,4),VLOOKUP($W17,$W44:$AC93,3))) ->  | Y17: =IF(U17="","",IF(V17="Mes_concentrés",VLOOKUP(W17,NOUVEAU!$R$22:$AA$38,5),VLOOKUP($W17,$W44:$AC93,4))) ->  | Z17: =IF(U17="","",IF(V17="Mes_concentrés",VLOOKUP(W17,NOUVEAU!$R$22:$AA$38,6),VLOOKUP($W17,$W44:$AC93,5))) ->  | AA17: =IF(U17="","",IF(V17="Mes_concentrés",VLOOKUP(W17,NOUVEAU!$R$22:$AA$38,7),VLOOKUP($W17,$W44:$AC93,6))) ->  | AB17: =IF(U17="","",IF(V17="Mes_concentrés",VLOOKUP(W17,NOUVEAU!$R$22:$AA$38,8),VLOOKUP($W17,$W44:$AC93,7))) -> 
C18: U.F.V. | D18: P.D.I. | F18: Pabs | G18: Caabs | H18: Ca / P | X18: =IF(U17="","",($U$17/100)*X17) ->  | Y18: =IF(U17="","",($U$17/100)*Y17) ->  | Z18: =IF(U17="","",($U$17/100)*Z17) ->  | AA18: =IF(U17="","",($U$17/100)*AA17) ->  | AB18: =IF(U17="","",($U$17/100)*AB17) -> 
B19: / kg brut | C19: =P9 ->  | D19: =IF(E8="","",F14/P13) ->  | F19: =IF(E8="","",G14/P13) ->  | G19: =IF(E8="","",H14/P13) ->  | H19: =IF(E8="","",G19/F19) ->  | X19: =IF(U19="","",IF(V19="Mes_concentrés",VLOOKUP(W19,NOUVEAU!$R$22:$AA$38,4),VLOOKUP($W19,$W44:$AC93,3))) ->  | Y19: =IF(U19="","",IF(V19="Mes_concentrés",VLOOKUP(W19,NOUVEAU!$R$22:$AA$38,5),VLOOKUP($W19,$W44:$AC93,4))) ->  | Z19: =IF(U19="","",IF(V19="Mes_concentrés",VLOOKUP(W19,NOUVEAU!$R$22:$AA$38,6),VLOOKUP($W19,$W44:$AC93,5))) ->  | AA19: =IF(U19="","",IF(V19="Mes_concentrés",VLOOKUP(W19,NOUVEAU!$R$22:$AA$38,7),VLOOKUP($W19,$W44:$AC93,6))) ->  | AB19: =IF(U19="","",IF(V19="Mes_concentrés",VLOOKUP(W19,NOUVEAU!$R$22:$AA$38,8),VLOOKUP($W19,$W44:$AC93,7))) -> 
K20: =(40-Q34)/(Q35/1000) -> 0 | O20: jours | X20: =IF(U19="","",($U$19/100)*X19) ->  | Y20: =IF(U19="","",($U$19/100)*Y19) ->  | Z20: =IF(U19="","",($U$19/100)*Z19) ->  | AA20: =IF(U19="","",($U$19/100)*AA19) ->  | AB20: =IF(U19="","",($U$19/100)*AB19) -> 
U21: =IF(SUM(U9,U11,U13,U15,U17,U19)=0,"",SUM(U9:U20)) ->  | W21: Concentrés | X21: =IF(U9="","",SUM(X10,X12,X14,X16,X18,X20)) ->  | Y21: =IF(U9="","",SUM(Y10,Y12,Y14,Y16,Y18,Y20)) ->  | Z21: =IF(U9="","",SUM(Z10,Z12,Z14,Z16,Z18,Z20)) ->  | AA21: =IF(U9="","",SUM(AA10,AA12,AA14,AA16,AA18,AA20)) ->  | AB21: =IF(U9="","",SUM(AB10,AB12,AB14,AB16,AB18,AB20)) -> 
C23: Saisissez le prix de l'aliment et le nombre d'agneaux | H23: QUANTITES D'ALIMENTS ET COUTS | U23: =CONCATENATE(" Votre aliment contient ",ROUND(Q62,1)," % de MAT et ",ROUND(Q74,1)," % de Cellulose") -> Votre aliment contient 0 % de MAT et 0 % de Cellulose
B24: Prix de l'aliment (€ / tonne) | F24: Aliment / jour | H24: =IF(D27="","",P13*D27) ->  | J24: =IF(H24="","","kg") ->  | L24: Quantité totale d'aliment à prévoir | P24: Cout total | U24: =IF(U21=100,"",IF(U21>100,">100%","<100%")) -> >100% | W24: Différence | X24: =IF(U9="","",X21-C19) ->  | Y24: =IF(U9="","",Y21-D19) ->  | Z24: =IF(U9="","",Z21-D19) ->  | AA24: =IF(U9="","",AA21-F19) ->  | AB24: =IF(U9="","",AB21-G19) -> 
L26: =IF(D27="","",H24*K20) ->  | N26: =IF(L26="","","kg") ->  | P26: =IF(D27="","",(D24*L26)/1000) -> 
B27: Nombre d'agneaux | F27: Cout /jour | H27: =IF(D27="","",(P13*D24*D27)/1000) ->  | T27: =IF(U9="","",IF(Q74<6,"ATTENTION ! aliment acidogène: augmentez la cellulose","")) ->  | W27: =IF(U9="","",IF(C19>X21+0.03,"Augmentez l'énergie (céréales...)",IF(C19<X21-0.03,"Diminuez l'énergie (Pulpe…)",""))) ->  | Y27: =IF(U9="","",IF(Y24>5,"Diminez l'azote (Céréales, pulpe…)",IF(Y24<-5,"Augmentez l'azote (Tourteau, luzerne…)",""))) -> 
E32: 150 g | F32: Viande | H32: 15 kg | I32: Mâle/Femelle
E33: 200 g | F33: Rustique | H33: 20 kg | I33: 1
E34: 250 g | F34: Laitière | H34: 25 kg | Q34: =IF(C12="15 kg",15,IF(C12="20 kg",20,IF(C12="25 kg",25,IF(C12="30 kg",30,IF(C12="35 kg",35,40))))) -> 40
E35: 300 g | F35: Croisée | H35: 30 kg | I35: Viande/Rustique | Q35: =IF(C14="150 g",150,IF(C14="200 g",200,IF(C14="250 g",250,IF(C14="300 g",300,IF(C14="350 g",350,IF(C14="400 g",400,450)))))) -> 450
E36: 350 g | H36: 35 kg | I36: TRUE
E37: 400 g | H37: 40 kg
E38: 450 g | L38: 1 | M38: =IF(L38=1,0.8,IF(L38=2,0.85,IF(L38=3,0.9,IF(L38=4,0.95,1)))) -> 0.8
H40: 0 | J40: UFV / kg
C43: Poids vif | D43: GMQ | E43: Potentiel | F43: sexe | H43: UFV | I43: PDI | J43: P | K43: Ca | W43: Catégorie | X43: Cu | Y43: U.F.V. | Z43: P.D.I.N. | AA43: P.D.I.E. | AB43: Pabs | AC43: Caabs | AD43: MAT | AE43: CB
C44: 15 kg | D44: 150 g | E44: Elevé | F44: femelle | G44: femelle de race à viande poids 15 kg - GMQ 150 g | H44: ND | I44: ND | J44: ND | K44: ND | L44: 22 | Q44: Céréale | W44: Avoine | X44: 3 | Y44: 0.71 | Z44: 61 | AA44: 61 | AB44: 2.4 | AC44: 0.6 | AD44: 11.1 | AE44: 13.8
C45: 15 kg | D45: 200 g | E45: Elevé | F45: femelle | G45: femelle de race à viande poids 15 kg - GMQ 200 g | H45: ND | I45: ND | J45: ND | K45: ND | L45: 23 | Q45: Tourteau | W45: Bicarbonate de Na | X45: 0 | Y45: 0 | Z45: 0 | AA45: 0 | AB45: 0 | AC45: 0 | AD45: 0 | AE45: 0
C46: 15 kg | D46: 250 g | E46: Elevé | F46: femelle | G46: femelle de race à viande poids 15 kg - GMQ 250 g | H46: ND | I46: ND | J46: ND | K46: ND | L46: 24 | Q46: Graines | W46: Blé | X46: 5 | Y46: 1.02 | Z46: 70 | AA46: 89 | AB46: 2.3 | AC46: 0.3 | AD46: 12.1 | AE46: 2.6
C47: 15 kg | D47: 300 g | E47: Elevé | F47: femelle | G47: femelle de race à viande poids 15 kg - GMQ 300 g | H47: ND | I47: ND | J47: ND | K47: ND | L47: 25 | Q47: Divers | W47: Carbonate de Ca | X47: 0 | Y47: 0 | Z47: 0 | AA47: 0 | AB47: 0 | AC47: 150 | AD47: 0 | AE47: 0
C48: 15 kg | D48: 350 g | E48: Elevé | F48: femelle | G48: femelle de race à viande poids 15 kg - GMQ 350 g | H48: ND | I48: ND | J48: ND | K48: ND | L48: 26 | Q48: Minéraux | W48: CMV 0 - 27 | Y48: 0 | Z48: 0 | AA48: 0 | AB48: 0 | AC48: 108 | AD48: 0 | AE48: 0
C49: 15 kg | D49: 400 g | E49: Elevé | F49: femelle | G49: femelle de race à viande poids 15 kg - GMQ 400 g | H49: ND | I49: ND | J49: ND | K49: ND | L49: 27 | Q49: Mes_concentrés | W49: CMV 10 - 20 | Y49: 0 | Z49: 0 | AA49: 0 | AB49: 65 | AC49: 80 | AD49: 0 | AE49: 0
C50: 15 kg | D50: 450 g | E50: Elevé | F50: femelle | G50: femelle de race à viande poids 15 kg - GMQ 450 g | H50: ND | I50: ND | J50: ND | K50: ND | L50: 28 | W50: CMV 10 - 6 | Y50: 0 | Z50: 0 | AA50: 0 | AB50: 65 | AC50: 24 | AD50: 0 | AE50: 0
C51: 20 kg | D51: 150 g | E51: Elevé | F51: femelle | G51: femelle de race à viande poids 20 kg - GMQ 150 g | H51: 0.73 | I51: 67 | J51: 1.9 | K51: 4.6 | L51: 50 | W51: CMV 12 - 12 | Y51: 0 | Z51: 0 | AA51: 0 | AB51: 78 | AC51: 48 | AD51: 0 | AE51: 0
C52: 20 kg | D52: 200 g | E52: Elevé | F52: femelle | G52: femelle de race à viande poids 20 kg - GMQ 200 g | H52: 0.77 | I52: 80 | J52: 2.3 | K52: 5.7 | L52: 51 | W52: CMV 4 - 21 | Y52: 0 | Z52: 0 | AA52: 0 | AB52: 26 | AC52: 84 | AD52: 0 | AE52: 0
C53: 20 kg | D53: 250 g | E53: Elevé | F53: femelle | G53: femelle de race à viande poids 20 kg - GMQ 250 g | H53: 0.8 | I53: 93 | J53: 2.7 | K53: 6.8 | L53: 52 | W53: CMV 5 - 20 | Y53: 0 | Z53: 0 | AA53: 0 | AB53: 32 | AC53: 80 | AD53: 0 | AE53: 0
C54: 20 kg | D54: 300 g | E54: Elevé | F54: femelle | G54: femelle de race à viande poids 20 kg - GMQ 300 g | H54: 0.82 | I54: 106 | J54: 3 | K54: 8 | L54: 53 | P54: =U9 -> 0 | Q54: =VLOOKUP(W9,$W$44:$AD$93,8) ->  | R54: =IF(P54=0,0,(Q54/100)*(P54/100)) -> 0 | W54: CMV 5 - 22 | Y54: 0 | Z54: 0 | AA54: 0 | AB54: 32 | AC54: 90 | AD54: 0 | AE54: 0
C55: 20 kg | D55: 350 g | E55: Elevé | F55: femelle | G55: femelle de race à viande poids 20 kg - GMQ 350 g | H55: ND | I55: ND | J55: ND | K55: ND | L55: 54 | P55: =U11 -> 0 | Q55: =VLOOKUP(W11,$W$44:$AD$93,8) ->  | R55: =IF(P55=0,0,(Q55/100)*(P55/100)) -> 0 | W55: CMV 5 - 25 | Y55: 0 | Z55: 0 | AA55: 0 | AB55: 32 | AC55: 100 | AD55: 0 | AE55: 0
C56: 20 kg | D56: 400 g | E56: Elevé | F56: femelle | G56: femelle de race à viande poids 20 kg - GMQ 400 g | H56: ND | I56: ND | J56: ND | K56: ND | L56: 55 | P56: =U13 -> 0 | Q56: =VLOOKUP(W13,$W$44:$AD$93,8) ->  | R56: 0 | W56: CMV 6 - 6 | Y56: 0 | Z56: 0 | AA56: 0 | AB56: 39 | AC56: 24 | AD56: 0 | AE56: 0
C57: 20 kg | D57: 450 g | E57: Elevé | F57: femelle | G57: femelle de race à viande poids 20 kg - GMQ 450 g | H57: ND | I57: ND | J57: ND | K57: ND | L57: 56 | P57: =U15 -> 0 | Q57: =VLOOKUP(W15,$W$44:$AD$93,8) ->  | R57: 0 | W57: CMV 7 - 21 | Y57: 0 | Z57: 0 | AA57: 0 | AB57: 15 | AC57: 84 | AD57: 0 | AE57: 0
C58: 25 kg | D58: 150 g | E58: Elevé | F58: femelle | G58: femelle de race à viande poids 25 kg - GMQ 150 g | H58: 0.82 | I58: 69 | J58: 2.2 | K58: 5.2 | L58: 78 | P58: =U17 -> 0 | Q58: =VLOOKUP(W17,$W$44:$AD$93,8) ->  | R58: 0 | W58: CMV 8 - 12 | Y58: 0 | Z58: 0 | AA58: 0 | AB58: 52 | AC58: 48 | AD58: 0 | AE58: 0
C59: 25 kg | D59: 200 g | E59: Elevé | F59: femelle | G59: femelle de race à viande poids 25 kg - GMQ 200 g | H59: 0.85 | I59: 82 | J59: 2.6 | K59: 6.4 | L59: 79 | P59: =U19 -> 0 | Q59: =VLOOKUP(W19,$W$44:$AD$93,8) ->  | R59: 0 | W59: CMV 8 - 16 | Y59: 0 | Z59: 0 | AA59: 0 | AB59: 52 | AC59: 64 | AD59: 0 | AE59: 0
C60: 25 kg | D60: 250 g | E60: Elevé | F60: femelle | G60: femelle de race à viande poids 25 kg - GMQ 250 g | H60: 0.89 | I60: 94 | J60: 3 | K60: 7.6 | L60: 80 | W60: CMV 8 - 24 | Y60: 0 | Z60: 0 | AA60: 0 | AB60: 52 | AC60: 96 | AD60: 0 | AE60: 0
C61: 25 kg | D61: 300 g | E61: Elevé | F61: femelle | G61: femelle de race à viande poids 25 kg - GMQ 300 g | H61: 0.92 | I61: 107 | J61: 3.3 | K61: 8.9 | L61: 81 | W61: CMV 9 - 14 | Y61: 0 | Z61: 0 | AA61: 0 | AB61: 58 | AC61: 56 | AD61: 0 | AE61: 0
C62: 25 kg | D62: 350 g | E62: Elevé | F62: femelle | G62: femelle de race à viande poids 25 kg - GMQ 350 g | H62: 0.95 | I62: 119 | J62: 3.7 | K62: 10.3 | L62: 82 | Q62: =SUM(R54:R59)*100 -> 0 | R62: MAT | W62: Drêches de blé | X62: 18 | Y62: 0.67 | Z62: 178 | AA62: 157 | AB62: 4.5 | AC62: 1.2 | AD62: 31.6 | AE62: 6.1
C63: 25 kg | D63: 400 g | E63: Elevé | F63: femelle | G63: femelle de race à viande poids 25 kg - GMQ 400 g | H63: ND | I63: ND | J63: ND | K63: ND | L63: 83 | W63: Féverole | X63: 11 | Y63: 1.03 | Z63: 170 | AA63: 97 | AB63: 3.5 | AC63: 0.8 | AD63: 31.1 | AE63: 9.6
C64: 25 kg | D64: 450 g | E64: Elevé | F64: femelle | G64: femelle de race à viande poids 25 kg - GMQ 450 g | H64: ND | I64: ND | J64: ND | K64: ND | L64: 84 | W64: Graines de colza | X64: 3 | Y64: 1.68 | Z64: 12 | AA64: 61 | AB64: 4.9 | AC64: 2.6 | AD64: 20.7 | AE64: 8.9
C65: 30 kg | D65: 150 g | E65: Elevé | F65: femelle | G65: femelle de race à viande poids 30 kg - GMQ 150 g | H65: 0.91 | I65: 72 | J65: 2.4 | K65: 5.8 | L65: 106 | W65: Graines de coton | X65: 10 | Y65: 0.85 | Z65: 131 | AA65: 77 | AB65: 4.6 | AC65: 0.9 | AD65: 23.4 | AE65: 25.9
C66: 30 kg | D66: 200 g | E66: Elevé | F66: femelle | G66: femelle de race à viande poids 30 kg - GMQ 200 g | H66: 0.96 | I66: 84 | J66: 2.8 | K66: 7.1 | L66: 107 | P66: =U9 -> 0 | Q66: =VLOOKUP(W9,$W$44:$AE$93,9) ->  | R66: =IF(P66=0,0,(Q66/100)*(P66/100)) -> 0 | W66: Huile de colza | X66: 0 | Y66: 2.78 | Z66: 0 | AA66: 0 | AB66: 0 | AC66: 0 | AD66: 0 | AE66: 0
C67: 30 kg | D67: 250 g | E67: Elevé | F67: femelle | G67: femelle de race à viande poids 30 kg - GMQ 250 g | H67: 1.01 | I67: 95 | J67: 3.2 | K67: 8.5 | L67: 108 | P67: =U11 -> 0 | Q67: =VLOOKUP(W11,$W$44:$AE$93,9) ->  | R67: =IF(P67=0,0,(Q67/100)*(P67/100)) -> 0 | W67: Lupin | X67: 4 | Y67: 1.18 | Z67: 213 | AA67: 106 | AB67: 2.8 | AC67: 1.9 | AD67: 38.5 | AE67: 12.8
C68: 30 kg | D68: 300 g | E68: Elevé | F68: femelle | G68: femelle de race à viande poids 30 kg - GMQ 300 g | H68: 1.04 | I68: 107 | J68: 3.6 | K68: 9.7 | L68: 109 | P68: =U13 -> 0 | Q68: =VLOOKUP(W13,$W$44:$AE$93,9) ->  | R68: 0 | W68: Luzerne deshydratée | X68: 5 | Y68: 0.54 | Z68: 103 | AA68: 91 | AB68: 1.7 | AC68: 5.9 | AD68: 17.5 | AE68: 29.5
C69: 30 kg | D69: 350 g | E69: Elevé | F69: femelle | G69: femelle de race à viande poids 30 kg - GMQ 350 g | H69: 1.07 | I69: 119 | J69: 4 | K69: 11.1 | L69: 110 | P69: =U15 -> 0 | Q69: =VLOOKUP(W15,$W$44:$AE$93,9) ->  | R69: 0 | W69: Maïs grain | X69: 2 | Y69: 1.06 | Z69: 64 | AA69: 84 | AB69: 1.9 | AC69: 0.3 | AD69: 9.4 | AE69: 2.5
C70: 30 kg | D70: 400 g | E70: Elevé | F70: femelle | G70: femelle de race à viande poids 30 kg - GMQ 400 g | H70: ND | I70: ND | J70: ND | K70: ND | L70: 111 | P70: =U17 -> 0 | Q70: =VLOOKUP(W17,$W$44:$AE$93,9) ->  | R70: 0 | W70: Mélasse | X70: 13 | Y70: 0.75 | Z70: 63 | AA70: 54 | AB70: 0.2 | AC70: 0.4 | AD70: 14.5 | AE70: 0
C71: 30 kg | D71: 450 g | E71: Elevé | F71: femelle | G71: femelle de race à viande poids 30 kg - GMQ 450 g | H71: ND | I71: ND | J71: ND | K71: ND | L71: 112 | P71: =U19 -> 0 | Q71: =VLOOKUP(W19,$W$44:$AE$93,9) ->  | R71: 0 | W71: Orge | X71: 9 | Y71: 0.93 | Z71: 69 | AA71: 87 | AB71: 2.6 | AC71: 0.4 | AD71: 11.6 | AE71: 5.2
C72: 35 kg | D72: 150 g | E72: Elevé | F72: femelle | G72: femelle de race à viande poids 35 kg - GMQ 150 g | H72: 1.01 | I72: 73 | J72: 2.8 | K72: 6.5 | L72: 134 | W72: Pois | X72: 7 | Y72: 1.05 | Z72: 130 | AA72: 83 | AB72: 2.9 | AC72: 0.6 | AD72: 23.9 | AE72: 6
C73: 35 kg | D73: 200 g | E73: Elevé | F73: femelle | G73: femelle de race à viande poids 35 kg - GMQ 200 g | H73: 1.07 | I73: 84 | J73: 3.2 | K73: 8 | L73: 135 | W73: Poudre de lait écrémé | X73: 3 | Y73: 1.17 | Z73: 196 | AA73: 75 | AB73: 9.2 | AC73: 11.1 | AD73: 36 | AE73: 0
C74: 35 kg | D74: 250 g | E74: Elevé | F74: femelle | G74: femelle de race à viande poids 35 kg - GMQ 250 g | H74: 1.15 | I74: 96 | J74: 3.6 | K74: 9.5 | L74: 136 | Q74: =SUM(R66:R71)*100 -> 0 | R74: CB | W74: Pulpe de betterave | X74: 5 | Y74: 0.87 | Z74: 59 | AA74: 97 | AB74: 0.8 | AC74: 2.7 | AD74: 9.1 | AE74: 19.4
C75: 35 kg | D75: 300 g | E75: Elevé | F75: femelle | G75: femelle de race à viande poids 35 kg - GMQ 300 g | H75: 1.18 | I75: 107 | J75: 4 | K75: 10.5 | L75: 137 | W75: Sarrazin | Y75: 0.76 | Z75: 77 | AA75: 82 | AB75: 2.3 | AC75: 0.4 | AD75: 13.1 | AE75: 11.6
C76: 35 kg | D76: 350 g | E76: Elevé | F76: femelle | G76: femelle de race à viande poids 35 kg - GMQ 350 g | H76: 1.21 | I76: 118 | J76: 4.4 | K76: 12.4 | L76: 138 | W76: Seigle | X76: 5 | Y76: 1.03 | Z76: 59 | AA76: 85 | AB76: 2.3 | AC76: 0.6 | AD76: 10.3 | AE76: 2.2
C77: 35 kg | D77: 400 g | E77: Elevé | F77: femelle | G77: femelle de race à viande poids 35 kg - GMQ 400 g | H77: 1.23 | I77: 130 | J77: 4.8 | K77: 13.9 | L77: 139 | W77: Sorgho | X77: 4 | Y77: 1.06 | Z77: 67 | AA77: 87 | AB77: 2.1 | AC77: 0.2 | AD77: 109 | AE77: 2.7
C78: 35 kg | D78: 450 g | E78: Elevé | F78: femelle | G78: femelle de race à viande poids 35 kg - GMQ 450 g | H78: ND | I78: ND | J78: ND | K78: ND | L78: 140 | W78: Tourteau d'arachide | X78: 17 | Y78: 0.97 | Z78: 347 | AA78: 215 | AB78: 3.7 | AC78: 1.1 | AD78: 54.6 | AE78: 7.6
C79: 40 kg | D79: 150 g | E79: Elevé | F79: femelle | G79: femelle de race à viande poids 40 kg - GMQ 150 g | H79: ND | I79: ND | J79: ND | K79: ND | L79: 162 | W79: Tourteau de colza | X79: 7 | Y79: 0.8 | Z79: 219 | AA79: 138 | AB79: 8.2 | AC79: 4.6 | AD79: 35 | AE79: 13.9
C80: 40 kg | D80: 200 g | E80: Elevé | F80: femelle | G80: femelle de race à viande poids 40 kg - GMQ 200 g | H80: 1.21 | I80: 76 | J80: 3.5 | K80: 9 | L80: 163 | W80: Tourteau de lin | X80: 19 | Y80: 0.84 | Z80: 227 | AA80: 179 | AB80: 5.3 | AC80: 2.5 | AD80: 35.9 | AE80: 11
C81: 40 kg | D81: 250 g | E81: Elevé | F81: femelle | G81: femelle de race à viande poids 40 kg - GMQ 250 g | H81: 1.31 | I81: 87 | J81: 3.9 | K81: 10.5 | L81: 164 | W81: Tourteau de soja | X81: 18 | Y81: 1.05 | Z81: 331 | AA81: 229 | AB81: 4.4 | AC81: 1.8 | AD81: 51.6 | AE81: 6.8
C82: 40 kg | D82: 300 g | E82: Elevé | F82: femelle | G82: femelle de race à viande poids 40 kg - GMQ 300 g | H82: 1.36 | I82: 99 | J82: 4.4 | K82: 12 | L82: 165 | W82: Tourteau de tournesol | X82: 27 | Y82: 0.46 | Z82: 178 | AA82: 93 | AB82: 6.6 | AC82: 2.1 | AD82: 37.3 | AE82: 23.6
C83: 40 kg | D83: 350 g | E83: Elevé | F83: femelle | G83: femelle de race à viande poids 40 kg - GMQ 350 g | H83: 1.4 | I83: 100 | J83: 4.8 | K83: 13.6 | L83: 166 | W83: Triticale | X83: 6 | Y83: 1.02 | Z83: 63 | AA83: 84 | AB83: 2.6 | AC83: 0.4 | AD83: 11 | AE83: 2.7
C84: 40 kg | D84: 400 g | E84: Elevé | F84: femelle | G84: femelle de race à viande poids 40 kg - GMQ 400 g | H84: 1.43 | I84: 121 | J84: 5.2 | K84: 15.3 | L84: 167 | W84: Urée | X84: 0 | Y84: 0 | Z84: 1443 | AA84: 0 | AB84: 0 | AC84: 0 | AD84: 0 | AE84: 0
C85: 40 kg | D85: 450 g | E85: Elevé | F85: femelle | G85: femelle de race à viande poids 40 kg - GMQ 450 g | H85: ND | I85: ND | J85: ND | K85: ND | L85: 168 | W85: Vesce | Y85: 1.01 | Z85: 161 | AA85: 90 | AB85: 3.4 | AC85: 0.9 | AD85: 29.6 | AE85: 7.4
C86: 15 kg | D86: 150 g | E86: Modéré | F86: femelle | G86: femelle de race rustique ou croisée poids 15 kg - GMQ 150 g | H86: 0.68 | I86: 62 | J86: 1.7 | K86: 4.2 | L86: 8
C87: 15 kg | D87: 200 g | E87: Modéré | F87: femelle | G87: femelle de race rustique ou croisée poids 15 kg - GMQ 200 g | H87: 0.69 | I87: 75 | J87: 2.1 | K87: 5.3 | L87: 9
C88: 15 kg | D88: 250 g | E88: Modéré | F88: femelle | G88: femelle de race rustique ou croisée poids 15 kg - GMQ 250 g | H88: 0.71 | I88: 87 | J88: 2.5 | K88: 6.4 | L88: 10
C89: 15 kg | D89: 300 g | E89: Modéré | F89: femelle | G89: femelle de race rustique ou croisée poids 15 kg - GMQ 300 g | H89: ND | I89: ND | J89: 2.9 | K89: ND | L89: 11
C90: 15 kg | D90: 350 g | E90: Modéré | F90: femelle | G90: femelle de race rustique ou croisée poids 15 kg - GMQ 350 g | H90: ND | I90: ND | J90: ND | K90: ND | L90: 12
C91: 15 kg | D91: 400 g | E91: Modéré | F91: femelle | G91: femelle de race rustique ou croisée poids 15 kg - GMQ 400 g | H91: ND | I91: ND | J91: ND | K91: ND | L91: 13
C92: 15 kg | D92: 450 g | E92: Modéré | F92: femelle | G92: femelle de race rustique ou croisée poids 15 kg - GMQ 450 g | H92: ND | I92: ND | J92: ND | K92: ND | L92: 14
C93: 20 kg | D93: 150 g | E93: Modéré | F93: femelle | G93: femelle de race rustique ou croisée poids 20 kg - GMQ 150 g | H93: 0.8 | I93: 65 | J93: 1.9 | K93: 4.6 | L93: 36
C94: 20 kg | D94: 200 g | E94: Modéré | F94: femelle | G94: femelle de race rustique ou croisée poids 20 kg - GMQ 200 g | H94: 0.84 | I94: 78 | J94: 2.3 | K94: 5.7 | L94: 37
C95: 20 kg | D95: 250 g | E95: Modéré | F95: femelle | G95: femelle de race rustique ou croisée poids 20 kg - GMQ 250 g | H95: 0.89 | I95: 90 | J95: 2.7 | K95: 6.8 | L95: 38
C96: 20 kg | D96: 300 g | E96: Modéré | F96: femelle | G96: femelle de race rustique ou croisée poids 20 kg - GMQ 300 g | H96: 0.91 | I96: 103 | J96: 3 | K96: 8 | L96: 39
C97: 20 kg | D97: 350 g | E97: Modéré | F97: femelle | G97: femelle de race rustique ou croisée poids 20 kg - GMQ 350 g | H97: ND | I97: ND | J97: ND | K97: ND | L97: 40
C98: 20 kg | D98: 400 g | E98: Modéré | F98: femelle | G98: femelle de race rustique ou croisée poids 20 kg - GMQ 400 g | H98: ND | I98: ND | J98: ND | K98: ND | L98: 41
C99: 20 kg | D99: 450 g | E99: Modéré | F99: femelle | G99: femelle de race rustique ou croisée poids 20 kg - GMQ 450 g | H99: ND | I99: ND | J99: ND | K99: ND | L99: 42
C100: 25 kg | D100: 150 g | E100: Modéré | F100: femelle | G100: femelle de race rustique ou croisée poids 25 kg - GMQ 150 g | H100: 0.92 | I100: 68 | J100: 2.2 | K100: 5.2 | L100: 64
C101: 25 kg | D101: 200 g | E101: Modéré | F101: femelle | G101: femelle de race rustique ou croisée poids 25 kg - GMQ 200 g | H101: 0.98 | I101: 80 | J101: 2.6 | K101: 6.4 | L101: 65
C102: 25 kg | D102: 250 g | E102: Modéré | F102: femelle | G102: femelle de race rustique ou croisée poids 25 kg - GMQ 250 g | H102: 1.06 | I102: 91 | J102: 3 | K102: 7.6 | L102: 66
C103: 25 kg | D103: 300 g | E103: Modéré | F103: femelle | G103: femelle de race rustique ou croisée poids 25 kg - GMQ 300 g | H103: 1.1 | I103: 103 | J103: 3.3 | K103: 8.9 | L103: 67
C104: 25 kg | D104: 350 g | E104: Modéré | F104: femelle | G104: femelle de race rustique ou croisée poids 25 kg - GMQ 350 g | H104: ND | I104: ND | J104: ND | K104: ND | L104: 68
C105: 25 kg | D105: 400 g | E105: Modéré | F105: femelle | G105: femelle de race rustique ou croisée poids 25 kg - GMQ 400 g | H105: ND | I105: ND | J105: ND | K105: ND | L105: 69
C106: 25 kg | D106: 450 g | E106: Modéré | F106: femelle | G106: femelle de race rustique ou croisée poids 25 kg - GMQ 450 g | H106: ND | I106: ND | J106: ND | K106: ND | L106: 70
C107: 30 kg | D107: 150 g | E107: Modéré | F107: femelle | G107: femelle de race rustique ou croisée poids 30 kg - GMQ 150 g | H107: 1.04 | I107: 70 | J107: 2.4 | K107: 5.8 | L107: 92
C108: 30 kg | D108: 200 g | E108: Modéré | F108: femelle | G108: femelle de race rustique ou croisée poids 30 kg - GMQ 200 g | H108: 1.13 | I108: 81 | J108: 2.8 | K108: 7.1 | L108: 93
C109: 30 kg | D109: 250 g | E109: Modéré | F109: femelle | G109: femelle de race rustique ou croisée poids 30 kg - GMQ 250 g | H109: 1.23 | I109: 93 | J109: 3.2 | K109: 8.5 | L109: 94
C110: 30 kg | D110: 300 g | E110: Modéré | F110: femelle | G110: femelle de race rustique ou croisée poids 30 kg - GMQ 300 g | H110: 1.25 | I110: 104 | J110: 3.6 | K110: 9.7 | L110: 95
C111: 30 kg | D111: 350 g | E111: Modéré | F111: femelle | G111: femelle de race rustique ou croisée poids 30 kg - GMQ 350 g | H111: ND | I111: ND | J111: ND | K111: ND | L111: 96
C112: 30 kg | D112: 400 g | E112: Modéré | F112: femelle | G112: femelle de race rustique ou croisée poids 30 kg - GMQ 400 g | H112: ND | I112: ND | J112: ND | K112: ND | L112: 97
C113: 30 kg | D113: 450 g | E113: Modéré | F113: femelle | G113: femelle de race rustique ou croisée poids 30 kg - GMQ 450 g | H113: ND | I113: ND | J113: ND | K113: ND | L113: 98
C114: 35 kg | D114: 150 g | E114: Modéré | F114: femelle | G114: femelle de race rustique ou croisée poids 35 kg - GMQ 150 g | H114: ND | I114: ND | J114: ND | K114: ND | L114: 120
C115: 35 kg | D115: 200 g | E115: Modéré | F115: femelle | G115: femelle de race rustique ou croisée poids 35 kg - GMQ 200 g | H115: ND | I115: ND | J115: ND | K115: ND | L115: 121
C116: 35 kg | D116: 250 g | E116: Modéré | F116: femelle | G116: femelle de race rustique ou croisée poids 35 kg - GMQ 250 g | H116: ND | I116: ND | J116: ND | K116: ND | L116: 122
C117: 35 kg | D117: 300 g | E117: Modéré | F117: femelle | G117: femelle de race rustique ou croisée poids 35 kg - GMQ 300 g | H117: ND | I117: ND | J117: ND | K117: ND | L117: 123
C118: 35 kg | D118: 350 g | E118: Modéré | F118: femelle | G118: femelle de race rustique ou croisée poids 35 kg - GMQ 350 g | H118: ND | I118: ND | J118: ND | K118: ND | L118: 124
C119: 35 kg | D119: 400 g | E119: Modéré | F119: femelle | G119: femelle de race rustique ou croisée poids 35 kg - GMQ 400 g | H119: ND | I119: ND | J119: ND | K119: ND | L119: 125
C120: 35 kg | D120: 450 g | E120: Modéré | F120: femelle | G120: femelle de race rustique ou croisée poids 35 kg - GMQ 450 g | H120: ND | I120: ND | J120: ND | K120: ND | L120: 126
C121: 40 kg | D121: 150 g | E121: Modéré | F121: femelle | G121: femelle de race rustique ou croisée poids 40 kg - GMQ 150 g | H121: ND | I121: ND | J121: ND | K121: ND | L121: 148
C122: 40 kg | D122: 200 g | E122: Modéré | F122: femelle | G122: femelle de race rustique ou croisée poids 40 kg - GMQ 200 g | H122: ND | I122: ND | J122: ND | K122: ND | L122: 149
C123: 40 kg | D123: 250 g | E123: Modéré | F123: femelle | G123: femelle de race rustique ou croisée poids 40 kg - GMQ 250 g | H123: ND | I123: ND | J123: ND | K123: ND | L123: 150
C124: 40 kg | D124: 300 g | E124: Modéré | F124: femelle | G124: femelle de race rustique ou croisée poids 40 kg - GMQ 300 g | H124: ND | I124: ND | J124: ND | K124: ND | L124: 151
C125: 40 kg | D125: 350 g | E125: Modéré | F125: femelle | G125: femelle de race rustique ou croisée poids 40 kg - GMQ 350 g | H125: ND | I125: ND | J125: ND | K125: ND | L125: 152
C126: 40 kg | D126: 400 g | E126: Modéré | F126: femelle | G126: femelle de race rustique ou croisée poids 40 kg - GMQ 400 g | H126: ND | I126: ND | J126: ND | K126: ND | L126: 153
C127: 40 kg | D127: 450 g | E127: Modéré | F127: femelle | G127: femelle de race rustique ou croisée poids 40 kg - GMQ 450 g | H127: ND | I127: ND | J127: ND | K127: ND | L127: 154
C128: 15 kg | D128: 150 g | E128: Elevé | F128: mâle | G128: mâle de race à viande poids 15 kg - GMQ 150 g | H128: ND | I128: ND | J128: ND | K128: ND | L128: 15
C129: 15 kg | D129: 200 g | E129: Elevé | F129: mâle | G129: mâle de race à viande poids 15 kg - GMQ 200 g | H129: ND | I129: ND | J129: ND | K129: ND | L129: 16
C130: 15 kg | D130: 250 g | E130: Elevé | F130: mâle | G130: mâle de race à viande poids 15 kg - GMQ 250 g | H130: ND | I130: ND | J130: ND | K130: ND | L130: 17
C131: 15 kg | D131: 300 g | E131: Elevé | F131: mâle | G131: mâle de race à viande poids 15 kg - GMQ 300 g | H131: ND | I131: ND | J131: ND | K131: ND | L131: 18
C132: 15 kg | D132: 350 g | E132: Elevé | F132: mâle | G132: mâle de race à viande poids 15 kg - GMQ 350 g | H132: ND | I132: ND | J132: ND | K132: ND | L132: 19
C133: 15 kg | D133: 400 g | E133: Elevé | F133: mâle | G133: mâle de race à viande poids 15 kg - GMQ 400 g | H133: ND | I133: ND | J133: ND | K133: ND | L133: 20
C134: 15 kg | D134: 450 g | E134: Elevé | F134: mâle | G134: mâle de race à viande poids 15 kg - GMQ 450 g | H134: ND | I134: ND | J134: ND | K134: ND | L134: 21
C135: 20 kg | D135: 150 g | E135: Elevé | F135: mâle | G135: mâle de race à viande poids 20 kg - GMQ 150 g | H135: 0.63 | I135: 71 | J135: 1.9 | K135: 4.6 | L135: 43
C136: 20 kg | D136: 200 g | E136: Elevé | F136: mâle | G136: mâle de race à viande poids 20 kg - GMQ 200 g | H136: 0.67 | I136: 85 | J136: 2.3 | K136: 5.7 | L136: 44
C137: 20 kg | D137: 250 g | E137: Elevé | F137: mâle | G137: mâle de race à viande poids 20 kg - GMQ 250 g | H137: 0.71 | I137: 99 | J137: 2.7 | K137: 6.8 | L137: 45
C138: 20 kg | D138: 300 g | E138: Elevé | F138: mâle | G138: mâle de race à viande poids 20 kg - GMQ 300 g | H138: 0.75 | I138: 113 | J138: 3 | K138: 8 | L138: 46
C139: 20 kg | D139: 350 g | E139: Elevé | F139: mâle | G139: mâle de race à viande poids 20 kg - GMQ 350 g | H139: ND | I139: ND | J139: ND | K139: ND | L139: 47
C140: 20 kg | D140: 400 g | E140: Elevé | F140: mâle | G140: mâle de race à viande poids 20 kg - GMQ 400 g | H140: ND | I140: ND | J140: ND | K140: ND | L140: 48
C141: 20 kg | D141: 450 g | E141: Elevé | F141: mâle | G141: mâle de race à viande poids 20 kg - GMQ 450 g | H141: ND | I141: ND | J141: ND | K141: ND | L141: 49
C142: 25 kg | D142: 150 g | E142: Elevé | F142: mâle | G142: mâle de race à viande poids 25 kg - GMQ 150 g | H142: 0.75 | I142: 73 | J142: 2.2 | K142: 5.2 | L142: 71
C143: 25 kg | D143: 200 g | E143: Elevé | F143: mâle | G143: mâle de race à viande poids 25 kg - GMQ 200 g | H143: 0.77 | I143: 86 | J143: 2.6 | K143: 6.4 | L143: 72
C144: 25 kg | D144: 250 g | E144: Elevé | F144: mâle | G144: mâle de race à viande poids 25 kg - GMQ 250 g | H144: 0.8 | I144: 100 | J144: 3 | K144: 7.6 | L144: 73
C145: 25 kg | D145: 300 g | E145: Elevé | F145: mâle | G145: mâle de race à viande poids 25 kg - GMQ 300 g | H145: 0.82 | I145: 114 | J145: 3.3 | K145: 8.9 | L145: 74
C146: 25 kg | D146: 350 g | E146: Elevé | F146: mâle | G146: mâle de race à viande poids 25 kg - GMQ 350 g | H146: 0.85 | I146: 127 | J146: 3.7 | K146: 10.3 | L146: 75
C147: 25 kg | D147: 400 g | E147: Elevé | F147: mâle | G147: mâle de race à viande poids 25 kg - GMQ 400 g | H147: ND | I147: ND | J147: ND | K147: ND | L147: 76
C148: 25 kg | D148: 450 g | E148: Elevé | F148: mâle | G148: mâle de race à viande poids 25 kg - GMQ 450 g | H148: ND | I148: ND | J148: ND | K148: ND | L148: 77
C149: 30 kg | D149: 150 g | E149: Elevé | F149: mâle | G149: mâle de race à viande poids 30 kg - GMQ 150 g | H149: 0.87 | I149: 75 | J149: 2.4 | K149: 5.8 | L149: 99
C150: 30 kg | D150: 200 g | E150: Elevé | F150: mâle | G150: mâle de race à viande poids 30 kg - GMQ 200 g | H150: 0.91 | I150: 88 | J150: 2.8 | K150: 7.1 | L150: 100
C151: 30 kg | D151: 250 g | E151: Elevé | F151: mâle | G151: mâle de race à viande poids 30 kg - GMQ 250 g | H151: 0.96 | I151: 101 | J151: 3.2 | K151: 8.5 | L151: 101
C152: 30 kg | D152: 300 g | E152: Elevé | F152: mâle | G152: mâle de race à viande poids 30 kg - GMQ 300 g | H152: 0.98 | I152: 114 | J152: 3.6 | K152: 9.7 | L152: 102
C153: 30 kg | D153: 350 g | E153: Elevé | F153: mâle | G153: mâle de race à viande poids 30 kg - GMQ 350 g | H153: 1 | I153: 127 | J153: 4 | K153: 11.1 | L153: 103
C154: 30 kg | D154: 400 g | E154: Elevé | F154: mâle | G154: mâle de race à viande poids 30 kg - GMQ 400 g | H154: 1.03 | I154: 142 | J154: 4.4 | K154: 12.6 | L154: 104
C155: 30 kg | D155: 450 g | E155: Elevé | F155: mâle | G155: mâle de race à viande poids 30 kg - GMQ 450 g | H155: ND | I155: ND | J155: ND | K155: ND | L155: 105
C156: 35 kg | D156: 150 g | E156: Elevé | F156: mâle | G156: mâle de race à viande poids 35 kg - GMQ 150 g | H156: 0.99 | I156: 76 | J156: 2.8 | K156: 6.5 | L156: 127
C157: 35 kg | D157: 200 g | E157: Elevé | F157: mâle | G157: mâle de race à viande poids 35 kg - GMQ 200 g | H157: 1.05 | I157: 89 | J157: 3.2 | K157: 8 | L157: 128
C158: 35 kg | D158: 250 g | E158: Elevé | F158: mâle | G158: mâle de race à viande poids 35 kg - GMQ 250 g | H158: 1.11 | I158: 101 | J158: 3.6 | K158: 9.5 | L158: 129
C159: 35 kg | D159: 300 g | E159: Elevé | F159: mâle | G159: mâle de race à viande poids 35 kg - GMQ 300 g | H159: 1.14 | I159: 114 | J159: 4 | K159: 10.5 | L159: 130
C160: 35 kg | D160: 350 g | E160: Elevé | F160: mâle | G160: mâle de race à viande poids 35 kg - GMQ 350 g | H160: 1.16 | I160: 126 | J160: 4.4 | K160: 12.4 | L160: 131
C161: 35 kg | D161: 400 g | E161: Elevé | F161: mâle | G161: mâle de race à viande poids 35 kg - GMQ 400 g | H161: 1.18 | I161: 139 | J161: 4.8 | K161: 13.9 | L161: 132
C162: 35 kg | D162: 450 g | E162: Elevé | F162: mâle | G162: mâle de race à viande poids 35 kg - GMQ 450 g | H162: 1.2 | I162: 150 | J162: 5.2 | K162: 15.4 | L162: 133
C163: 40 kg | D163: 150 g | E163: Elevé | F163: mâle | G163: mâle de race à viande poids 40 kg - GMQ 150 g | H163: ND | I163: ND | J163: ND | K163: ND | L163: 155
C164: 40 kg | D164: 200 g | E164: Elevé | F164: mâle | G164: mâle de race à viande poids 40 kg - GMQ 200 g | H164: 1.18 | I164: 90 | J164: 3.5 | K164: 9 | L164: 156
C165: 40 kg | D165: 250 g | E165: Elevé | F165: mâle | G165: mâle de race à viande poids 40 kg - GMQ 250 g | H165: 1.27 | I165: 102 | J165: 3.9 | K165: 10.5 | L165: 157
C166: 40 kg | D166: 300 g | E166: Elevé | F166: mâle | G166: mâle de race à viande poids 40 kg - GMQ 300 g | H166: 1.32 | I166: 115 | J166: 4.4 | K166: 12 | L166: 158
C167: 40 kg | D167: 350 g | E167: Elevé | F167: mâle | G167: mâle de race à viande poids 40 kg - GMQ 350 g | H167: 1.37 | I167: 127 | J167: 4.8 | K167: 13.6 | L167: 159
C168: 40 kg | D168: 400 g | E168: Elevé | F168: mâle | G168: mâle de race à viande poids 40 kg - GMQ 400 g | H168: 1.39 | I168: 140 | J168: 5.2 | K168: 15.3 | L168: 160
C169: 40 kg | D169: 450 g | E169: Elevé | F169: mâle | G169: mâle de race à viande poids 40 kg - GMQ 450 g | H169: 1.42 | I169: 153 | J169: 5.6 | K169: 16.8 | L169: 161
C170: 15 kg | D170: 150 g | E170: Modéré | F170: mâle | G170: mâle de race rustique ou croisée poids 15 kg - GMQ 150 g | H170: 0.57 | I170: 65 | J170: 1.7 | K170: 4.2 | L170: 1
C171: 15 kg | D171: 200 g | E171: Modéré | F171: mâle | G171: mâle de race rustique ou croisée poids 15 kg - GMQ 200 g | H171: 0.58 | I171: 78 | J171: 2.1 | K171: 5.3 | L171: 2
C172: 15 kg | D172: 250 g | E172: Modéré | F172: mâle | G172: mâle de race rustique ou croisée poids 15 kg - GMQ 250 g | H172: 0.59 | I172: 92 | J172: 2.5 | K172: 6.4 | L172: 3
C173: 15 kg | D173: 300 g | E173: Modéré | F173: mâle | G173: mâle de race rustique ou croisée poids 15 kg - GMQ 300 g | H173: 0.6 | I173: 108 | J173: 2.9 | K173: 7.5 | L173: 4
C174: 15 kg | D174: 350 g | E174: Modéré | F174: mâle | G174: mâle de race rustique ou croisée poids 15 kg - GMQ 350 g | H174: ND | I174: ND | J174: ND | K174: ND | L174: 5
C175: 15 kg | D175: 400 g | E175: Modéré | F175: mâle | G175: mâle de race rustique ou croisée poids 15 kg - GMQ 400 g | H175: ND | I175: ND | J175: ND | K175: ND | L175: 6
C176: 15 kg | D176: 450 g | E176: Modéré | F176: mâle | G176: mâle de race rustique ou croisée poids 15 kg - GMQ 450 g | H176: ND | I176: ND | J176: ND | K176: ND | L176: 7
C177: 20 kg | D177: 150 g | E177: Modéré | F177: mâle | G177: mâle de race rustique ou croisée poids 20 kg - GMQ 150 g | H177: 0.72 | I177: 69 | J177: 1.9 | K177: 4.6 | L177: 29
C178: 20 kg | D178: 200 g | E178: Modéré | F178: mâle | G178: mâle de race rustique ou croisée poids 20 kg - GMQ 200 g | H178: 0.75 | I178: 82 | J178: 2.3 | K178: 5.7 | L178: 30
C179: 20 kg | D179: 250 g | E179: Modéré | F179: mâle | G179: mâle de race rustique ou croisée poids 20 kg - GMQ 250 g | H179: 0.79 | I179: 96 | J179: 2.7 | K179: 6.8 | L179: 31
C180: 20 kg | D180: 300 g | E180: Modéré | F180: mâle | G180: mâle de race rustique ou croisée poids 20 kg - GMQ 300 g | H180: 0.8 | I180: 110 | J180: 3 | K180: 8 | L180: 32
C181: 20 kg | D181: 350 g | E181: Modéré | F181: mâle | G181: mâle de race rustique ou croisée poids 20 kg - GMQ 350 g | H181: ND | I181: ND | J181: ND | K181: ND | L181: 33
C182: 20 kg | D182: 400 g | E182: Modéré | F182: mâle | G182: mâle de race rustique ou croisée poids 20 kg - GMQ 400 g | H182: ND | I182: ND | J182: ND | K182: ND | L182: 34
C183: 20 kg | D183: 450 g | E183: Modéré | F183: mâle | G183: mâle de race rustique ou croisée poids 20 kg - GMQ 450 g | H183: ND | I183: ND | J183: ND | K183: ND | L183: 35
C184: 25 kg | D184: 150 g | E184: Modéré | F184: mâle | G184: mâle de race rustique ou croisée poids 25 kg - GMQ 150 g | H184: 0.87 | I184: 71 | J184: 2.2 | K184: 5.2 | L184: 57
C185: 25 kg | D185: 200 g | E185: Modéré | F185: mâle | G185: mâle de race rustique ou croisée poids 25 kg - GMQ 200 g | H185: 0.93 | I185: 84 | J185: 2.6 | K185: 6.4 | L185: 58
C186: 25 kg | D186: 250 g | E186: Modéré | F186: mâle | G186: mâle de race rustique ou croisée poids 25 kg - GMQ 250 g | H186: 1 | I186: 97 | J186: 3 | K186: 7.6 | L186: 59
C187: 25 kg | D187: 300 g | E187: Modéré | F187: mâle | G187: mâle de race rustique ou croisée poids 25 kg - GMQ 300 g | H187: 1.03 | I187: 110 | J187: 3.3 | K187: 8.9 | L187: 60
C188: 25 kg | D188: 350 g | E188: Modéré | F188: mâle | G188: mâle de race rustique ou croisée poids 25 kg - GMQ 350 g | H188: 1.05 | I188: 123 | J188: 3.7 | K188: 10.3 | L188: 61
C189: 25 kg | D189: 400 g | E189: Modéré | F189: mâle | G189: mâle de race rustique ou croisée poids 25 kg - GMQ 400 g | H189: ND | I189: ND | J189: ND | K189: ND | L189: 62
C190: 25 kg | D190: 450 g | E190: Modéré | F190: mâle | G190: mâle de race rustique ou croisée poids 25 kg - GMQ 450 g | H190: ND | I190: ND | J190: ND | K190: ND | L190: 63
C191: 30 kg | D191: 150 g | E191: Modéré | F191: mâle | G191: mâle de race rustique ou croisée poids 30 kg - GMQ 150 g | H191: 1.01 | I191: 73 | J191: 2.4 | K191: 5.8 | L191: 85
C192: 30 kg | D192: 200 g | E192: Modéré | F192: mâle | G192: mâle de race rustique ou croisée poids 30 kg - GMQ 200 g | H192: 1.09 | I192: 86 | J192: 2.8 | K192: 7.1 | L192: 86
C193: 30 kg | D193: 250 g | E193: Modéré | F193: mâle | G193: mâle de race rustique ou croisée poids 30 kg - GMQ 250 g | H193: 1.19 | I193: 98 | J193: 3.2 | K193: 8.5 | L193: 87
C194: 30 kg | D194: 300 g | E194: Modéré | F194: mâle | G194: mâle de race rustique ou croisée poids 30 kg - GMQ 300 g | H194: 1.25 | I194: 111 | J194: 3.6 | K194: 9.7 | L194: 88
C195: 30 kg | D195: 350 g | E195: Modéré | F195: mâle | G195: mâle de race rustique ou croisée poids 30 kg - GMQ 350 g | H195: 1.29 | I195: 123 | J195: 4 | K195: 11.1 | L195: 89
C196: 30 kg | D196: 400 g | E196: Modéré | F196: mâle | G196: mâle de race rustique ou croisée poids 30 kg - GMQ 400 g | H196: 1.33 | I196: 136 | J196: 4.4 | K196: 12.6 | L196: 90
C197: 30 kg | D197: 450 g | E197: Modéré | F197: mâle | G197: mâle de race rustique ou croisée poids 30 kg - GMQ 450 g | H197: ND | I197: ND | J197: ND | K197: ND | L197: 91
C198: 35 kg | D198: 150 g | E198: Modéré | F198: mâle | G198: mâle de race rustique ou croisée poids 35 kg - GMQ 150 g | H198: ND | I198: ND | J198: ND | K198: ND | L198: 113
C199: 35 kg | D199: 200 g | E199: Modéré | F199: mâle | G199: mâle de race rustique ou croisée poids 35 kg - GMQ 200 g | H199: 1.27 | I199: 87 | J199: 3.2 | K199: 8 | L199: 114
C200: 35 kg | D200: 250 g | E200: Modéré | F200: mâle | G200: mâle de race rustique ou croisée poids 35 kg - GMQ 250 g | H200: 1.38 | I200: 99 | J200: 3.6 | K200: 9.5 | L200: 115
C201: 35 kg | D201: 300 g | E201: Modéré | F201: mâle | G201: mâle de race rustique ou croisée poids 35 kg - GMQ 300 g | H201: 1.47 | I201: 110 | J201: 4 | K201: 10.5 | L201: 116
C202: 35 kg | D202: 350 g | E202: Modéré | F202: mâle | G202: mâle de race rustique ou croisée poids 35 kg - GMQ 350 g | H202: 1.57 | I202: 122 | J202: 4.4 | K202: 12.4 | L202: 117
C203: 35 kg | D203: 400 g | E203: Modéré | F203: mâle | G203: mâle de race rustique ou croisée poids 35 kg - GMQ 400 g | H203: 1.6 | I203: 134 | J203: 4.8 | K203: 13.9 | L203: 118
C204: 35 kg | D204: 450 g | E204: Modéré | F204: mâle | G204: mâle de race rustique ou croisée poids 35 kg - GMQ 450 g | H204: ND | I204: ND | J204: ND | K204: ND | L204: 119
C205: 40 kg | D205: 150 g | E205: Modéré | F205: mâle | G205: mâle de race rustique ou croisée poids 40 kg - GMQ 150 g | H205: ND | I205: ND | J205: ND | K205: ND | L205: 141
C206: 40 kg | D206: 200 g | E206: Modéré | F206: mâle | G206: mâle de race rustique ou croisée poids 40 kg - GMQ 200 g | H206: ND | I206: ND | J206: ND | K206: ND | L206: 142
C207: 40 kg | D207: 250 g | E207: Modéré | F207: mâle | G207: mâle de race rustique ou croisée poids 40 kg - GMQ 250 g | H207: ND | I207: ND | J207: ND | K207: ND | L207: 143
C208: 40 kg | D208: 300 g | E208: Modéré | F208: mâle | G208: mâle de race rustique ou croisée poids 40 kg - GMQ 300 g | H208: ND | I208: ND | J208: ND | K208: ND | L208: 144
C209: 40 kg | D209: 350 g | E209: Modéré | F209: mâle | G209: mâle de race rustique ou croisée poids 40 kg - GMQ 350 g | H209: ND | I209: ND | J209: ND | K209: ND | L209: 145
C210: 40 kg | D210: 400 g | E210: Modéré | F210: mâle | G210: mâle de race rustique ou croisée poids 40 kg - GMQ 400 g | H210: ND | I210: ND | J210: ND | K210: ND | L210: 146
... 1 more rows

Sheet PATURAGE
B1: ALIM'ovins(v. 5.1)
B2: Rationnement des ovins
G4: Pâturage
C6: Saisissez la surface et le nombre d'animaux. Saisir les hauteurs d'herbe mesurées et prévues
B7: Surface de la parcelle | D7: ha | E7: Hauteur d'herbe à l'entrée | H7: cm* | J7: Hauteur de sortie prévue | N7: cm
B9: Nombre de femelles | G9: densité | K9: Nombre de jours de pâturage d'avance
G10: de la
B11: Catégorie | G11: prairie
C12: =IF(C11="","",CONCATENATE(N23," kg MS /jour")) ->  | F12: Pousse de l'herbe ** | K12: =IF(C7="","",IF(H31=1,(C13/C16),IF(H31=2,(C13/C16)*1.07,IF(H31=3,(C13/C16)*1.15,(C13/C16)*1.3)))) ->  | M12: =IF(K12="","","Jours") -> 
B13: Quantité disponible | C13: =IF(C7="","",(G7-L7)*I23*C7) ->  | D13: kg MS
C14: =IF(C7="","",CONCATENATE((C13/C7)/1000," t MS /ha")) ->  | L14: =IF(K12="","",(C9*0.15)/C7) ->  | M14: =IF(K12="","","UGB / ha") -> 
C15: =IF(C8="","",CONCATENATE((C14/C8)/1000," t MS /ha")) ->  | F15: * Hauteur d'herbe mesurée avec l'herbomètre ** Estimation de la pousse de l'herbe en fonction de la saison | K15: =IF(G7>13,"Trop de gaspillage Il vaut mieux faucher !",IF(C7="","",IF(J32>J33*1.2,"Risques de gaspillage importants: Augmentez le chargement !",""))) -> 
B16: Besoin d'herbe quotidien | C16: =IF(C7="","",N23*C9) ->  | D16: kg MS
H22: Densité | L22: Besoins
C23: Brebis vide | H23: 2 | I23: =IF(H23=1,250,IF(H23=2,300,350)) -> 300 | L23: =C11 -> 0 | N23: =IF(L23="Brebis allaitante",3.5,IF(L23="Agnelle",2,2.5)) -> 2.5
C24: Brebis gestante
C25: Brebis allaitante | H25: pousse
C26: Agnelle | H26: Nulle (Hiver - Sécheresse)
C27: Bélier | H27: Faible (Eté) | M27: =IF(H31=1,(C13/C16),IF(H31=2,(C13/C16)*1.07,IF(H31=3,(C13/C16)*1.15,(C13/C16)*1.3))) -> 
H28: Moyenne (Automne)
H29: Forte (Printemps)
H31: 1 | J31: =IF(H31=1,0,IF(H31=2,0.5,IF(H31=3,1,2))) -> 0
H32: =J32/C16 ->  | J32: =(J31*I23*C7)/7 -> 0
H33: =H32*(K12/7) ->  | J33: =C16 -> 
H34: =H33/K12 -> 

Sheet NOUVEAU
B1: ALIM'ovins(v. 5.1) | R1: LISTE DE VOS ALIMENTS FOURRAGES CONCENTRES
B2: Rationnement des ovins | R2: =IF(E22="","",E22) -> Betterave fourragère | T2: =IF(R22="","",R22) -> ACL 40
R3: =IF(E23="","",E23) -> Foin de crau
I4: Nouveaux | R4: =IF(E24="","",E24) ->  | T4: Epeautre
R5: =IF(E25="","",E25) -> 
B6: VALEURS ALIMENTAIRES DE VOS ALIMENTS
B8: Les valeurs seront reportées automatiquement dans les listes d'aliments disponibles aux rubriques "Mon fourrage" et "Mon concentré"
G9: Valeurs alimentaires / kg
G10: Saisissez les valeurs alimentaires
E11: Saisir le nom de l'aliment | G11: % MS | H11: UEM | I11: UFL | J11: UFV | K11: PDIN | L11: PDIE | M11: Pabs | N11: Caabs
C12: FOURRAGE | R12: Maximum 7 fourrages | T12: Maximum 8 concentrés
E13: Saisir le nom de l'aliment | G13: UFL | H13: UFV | I13: PDIN | J13: PDIE | K13: Pabs | L13: Caabs | M13: MAT | N13: CB | R13: Pour supprimer un aliment, choisissez dans la liste | T13: Pour supprimer un aliment, choisissez dans la liste
C14: CONCENTRE
E15: N'oubliez pas de valider l'aliment
C16: =IF(PREVISION!D12=""," Si vous ne connaissez pas les valeurs UF et PDI de l'aliment, cliquez sur PREVISION","Rappel des valeurs alimentaires calculées (PREVISION)") -> Si vous ne connaissez pas les valeurs UF et PDI de l'aliment, cliquez sur PREVISION | I16: =IF(PREVISION!D12="","","UFL") ->  | J16: =IF(PREVISION!D12="","","UFV") ->  | K16: =IF(PREVISION!D12="","","PDIN") ->  | L16: =IF(PREVISION!D12="","","PDIE") ->  | M16: =IF(PREVISION!D12="","","P") ->  | N16: =IF(PREVISION!D12="","","Ca") -> 
I17: =PREVISION!J12 ->  | J17: =PREVISION!J14 ->  | K17: =PREVISION!J18 ->  | L17: =PREVISION!J20 ->  | M17: =PREVISION!N18 ->  | N17: =PREVISION!N20 -> 
E20: TABLE DE VOS ALIMENTS
E21: FOURRAGE | G21: % MS | H21: U.E.M.. | I21: U.F.L. | J21: U.F.V. | K21: P.D.I.N. | L21: P.D.I.E. | M21: Pabs | N21: Caabs | R21: CONCENTRE | T21: U.F.L. | U21: U.F.V. | V21: P.D.I.N. | W21: P.D.I.E. | X21: Pabs | Y21: Caabs | Z21: MAT | AA21: CB
E22: Betterave fourragère | G22: 13 | H22: 0.91 | I22: 1.15 | J22: 1.16 | K22: 62 | L22: 86 | M22: 1.1 | N22: 0.5 | R22: ACL 40 | T22: 0.63 | U22: 0.62 | V22: 166 | W22: 114 | X22: 1 | Y22: 2 | Z22: 40 | AA22: 1
E23: Foin de crau | G23: 85 | H23: 1.37 | I23: 0.77 | J23: 0.69 | K23: 75 | L23: 87 | M23: 2 | N23: 3.7
R24: Epeautre | T24: 0.85 | U24: 0.82 | V24: 66 | W24: 82 | X24: 2.5 | Y24: 0.5 | Z24: 12 | AA24: 12.7

Sheet STOCKS
B1: ALIM'ovins(v. 5.1)
B2: Rationnement des ovins
F4: BILAN FOURRAGER
B6: EVALUATION DES STOCKS DISPONIBLES
B7: Saisissez les surfaces et les rendements ou les quantités (en bottes ou m3)
G8: Rendement (t MS/ha) | K8: Nombre de bottes | Q8: Poids d'une botte (kg) | S8: % MS | U8: Type | W8: Total MS
E9: Surface (ha) | I9: OU | K9: Produites | M9: Achetées | O9: Stocks (n-1)
B10: Foin balle ronde | I10: =IF(G10="",IF(E10="","",(K10*Q10*(S10/100))/(E10*1000)),"") ->  | Q10: 260 | S10: 85 | U10: =IF(Q10<150,"90 x 90",IF(Q10>260,"150 x 150","120 x 120")) -> 120 x 120 | W10: =IF(G10="",IF(K10+M10+O10=0,"",(((K10+M10+O10)*Q10)*S10)/100000),(G10*E10)+(((M10+O10)*Q10)*S10)/100000) ->  | X10: =IF(W10="","","t de MS") -> 
B12: Autre | I12: =IF(G12="",IF(E12="","",(K12*Q12*(S12/100))/(E12*1000)),"") ->  | Q12: 260 | S12: 85 | U12: =IF(Q12<150,"90 x 90",IF(Q12>260,"150 x 150","120 x 120")) -> 120 x 120 | W12: =IF(G12="",IF(K12+M12+O12=0,"",(((K12+M12+O12)*Q12)*S12)/100000),(G12*E12)+(((M12+O12)*Q12)*S12)/100000) ->  | X12: =IF(W12="","","t de MS") -> 
B14: Foin haute densité | I14: =IF(G14="",IF(E14="","",(K14*Q14*(S14/100))/(E14*1000)),"") ->  | Q14: 400 | S14: 85 | U14: =IF(Q14<400,"80 x 90",IF(Q14>500,"120 x 90","120 x 130")) -> 120 x 130 | W14: =IF(G14="",IF(K14+M14+O14=0,"",(((K14+M14+O14)*Q14)*S14)/100000),(G14*E14)+(((M14+O14)*Q14)*S14)/100000) ->  | X14: =IF(W14="","","t de MS") -> 
B16: Paille alimentaire | I16: =IF(G16="",IF(E16="","",(K16*Q16*(S16/100))/(E16*1000)),"") ->  | Q16: 180 | S16: 85 | U16: =IF(Q16<100,"90 x 90",IF(Q16>160,"150 x 150","120 x 120")) -> 150 x 150 | W16: =IF(G16="",IF(K16+M16+O16=0,"",(((K16+M16+O16)*Q16)*S16)/100000),(G16*E16)+(((M16+O16)*Q16)*S16)/100000) ->  | X16: =IF(W16="","","t de MS") -> 
B18: Enrubannage | I18: =IF(G18="",IF(E18="","",(K18*Q18*(S18/100))/(E18*1000)),"") ->  | Q18: 400 | S18: 50 | U18: 120 x 120 | W18: =IF(G18="",IF(K18+M18+O18=0,"",(((K18+M18+O18)*Q18)*S18)/100000),(G18*E18)+(((M18+O18)*Q18)*S18)/100000) ->  | X18: =IF(W18="","","t de MS") -> 
G20: Rendement (t MS/ha) | K20: Volumes (m3)
E21: Surface (ha) | I21: OU | K21: Produits | M21: Achetés | O21: Stocks (n-1) | Q21: hauteur silo (cm) | S21: % MS | T21: Densité (kg MS/ m3)
B22: Ensilage herbe (couloir) | I22: =IF(G22="",IF(E22="","",(K22*Q22*(S22/100))/(E22*1000)),"") ->  | Q22: 200 | S22: 30 | U22: =(5*S22)+(16*(Q22/100))+34 -> 216 | W22: =IF(G22="",IF(K22+M22+O22=0,"",(((K22+M22+O22)*Q22)*S22)/100000),(G22*E22)+(((M22+O22)*Q22)*S22)/100000) ->  | X22: =IF(W22="","","t de MS") -> 
B24: Ensilage herbe (taupe) | I24: =IF(G24="",IF(E24="","",(K24*Q24*(S24/100))/(E24*1000)),"") ->  | Q24: 200 | S24: 30 | U24: =(5*S24)+(16*(Q24/100))+34 -> 216 | W24: =IF(G24="",IF(K24+M24+O24=0,"",(((K24+M24+O24)*Q24)*S24)/100000),(G24*E24)+(((M24+O24)*Q24)*S24)/100000) ->  | X24: =IF(W24="","","t de MS") -> 
B26: Ensilage maïs | I26: =IF(G26="",IF(E26="","",(K26*Q26*(S26/100))/(E26*1000)),"") ->  | Q26: 200 | S26: 30 | U26: =(5*S26)+(16*(Q26/100))+34 -> 216 | W26: =IF(G26="",IF(K26+M26+O26=0,"",(((K26+M26+O26)*Q26)*S26)/100000),(G26*E26)+(((M26+O26)*Q26)*S26)/100000) ->  | X26: =IF(W26="","","t de MS") -> 
B28: Autre | I28: =IF(G28="",IF(E28="","",(K28*Q28*(S28/100))/(E28*1000)),"") ->  | Q28: 200 | S28: 30 | U28: =(5*S28)+(16*(Q28/100))+34 -> 216 | W28: =IF(G28="",IF(K28+M28+O28=0,"",(((K28+M28+O28)*Q28)*S28)/100000),(G28*E28)+(((M28+O28)*Q28)*S28)/100000) ->  | X28: =IF(W28="","","t de MS") -> 
B30: Autre | I30: =IF(G30="",IF(E30="","",(K30*Q30*(S30/100))/(E30*1000)),"") ->  | Q30: 130 | S30: 30 | U30: =(5*S30)+(16*(Q30/100))+34 -> 204.8 | W30: =IF(G30="",IF(K30+M30+O30=0,"",(((K30+M30+O30)*Q30)*S30)/100000),(G30*E30)+(((M30+O30)*Q30)*S30)/100000) ->  | X30: =IF(W30="","","t de MS") -> 
B32: Autre | I32: =IF(G32="",IF(E32="","",(K32*Q32*(S32/100))/(E32*1000)),"") ->  | Q32: 190 | S32: 30 | U32: =(5*S32)+(16*(Q32/100))+34 -> 214.4 | W32: =IF(G32="",IF(K32+M32+O32=0,"",(((K32+M32+O32)*Q32)*S32)/100000),(G32*E32)+(((M32+O32)*Q32)*S32)/100000) ->  | X32: =IF(W32="","","t de MS") -> 
B34: Foin vrac | I34: =IF(G34="",IF(E34="","",(K34*U34*(S34/100))/(E34*1000)),"") ->  | S34: 85 | U34: 90 | W34: =IF(G34="",IF(K34+M34+O34=0,"",(((K34+M34+U34)*Q34)*S34)/100000),(G34*E34)+(((M34+O34)*U34)*S34)/100000) ->  | X34: =IF(W34="","","t de MS") -> 
B41: 90 x 90 | O41: 1 | Q41: 120 | S41: 80 | U41: 80
B42: 120 x 120 | O42: 1.2 | Q42: 200 | S42: 120 | U42: 85
B43: 150 x 150 | O43: 1.5 | Q43: 280 | S43: 180 | U43: 90
B44: 180 x 180 | O44: 1.7 | Q44: 400 | S44: 300 | U44: 95
O45: 2
O46: 2.2 | Q46: 300 | S46: 20 | U46: 40
O47: 2.5 | Q47: 350 | S47: 25 | U47: 45
Q48: 400 | S48: 30 | U48: 50
Q49: 450 | S49: 35 | U49: 55
Q50: 500 | S50: 40 | U50: 60
Q51: 550 | S51: 45
Q52: 600

Sheet BESOINS
B1: ALIM'ovins(v. 5.1)
B2: Rationnement des ovins
B4: BILAN FOURRAGER
B6: EVALUATION DES BESOINS | R6: BILAN
B8: Lot | D8: Catégorie | F8: Effectif | H8: U.G.B | J8: Consommation (kg MS/j) | L8: Durée (jours) | N8: Besoins en MS | R8: Stocks disponibles | U8: =IF(SUM(STOCKS!W10:W34)=0,"",IF(STOCKS!W16="",SUM(STOCKS!W10:W34),SUM(STOCKS!W10:W34)-STOCKS!W16)) ->  | W8: =IF(U8="","","t de MS") -> 
B9: Lot N°1 | H9: =IF(D9="","",VLOOKUP(D9,$D$41:$F$50,3)) ->  | J9: =IF(D9="","",VLOOKUP(D9,$D$41:$E$50,2)) ->  | N9: =IF(D9="","",(F9*J9*L9)/1000) ->  | O9: =IF(D9="","","t de MS") -> 
R10: Besoins du troupeau | U10: =IF(SUM(N9:N27)=0,"",SUM(N9:N27)) ->  | W10: =IF(U10="","","t de MS") -> 
B11: Lot N°2 | H11: =IF(D11="","",VLOOKUP(D11,$D$41:$F$50,3)) ->  | J11: =IF(D11="","",VLOOKUP(D11,$D$41:$E$50,2)) ->  | N11: =IF(D11="","",(F11*J11*L11)/1000) ->  | O11: =IF(D11="","","t de MS") -> 
B13: Lot N°3 | H13: =IF(D13="","",VLOOKUP(D13,$D$41:$F$50,3)) ->  | J13: =IF(D13="","",VLOOKUP(D13,$D$41:$E$50,2)) ->  | N13: =IF(D13="","",(F13*J13*L13)/1000) ->  | O13: =IF(D13="","","t de MS") ->  | R13: Marge de sécurité | T13: =(V13*52)/100 -> 4.16 | U13: semaine(s) | V13: 8 | W13: %
B15: Lot N°4 | H15: =IF(D15="","",VLOOKUP(D15,$D$41:$F$50,3)) ->  | J15: =IF(D15="","",VLOOKUP(D15,$D$41:$E$50,2)) ->  | N15: =IF(D15="","",(F15*J15*L15)/1000) ->  | O15: =IF(D15="","","t de MS") ->  | R15: BILAN FOURRAGER ( hors paille) | U15: =IF(SUM(STOCKS!W10:W34)=0,"",IF(U10="","",U8-(U10*(1+(V13/100))))) ->  | W15: =IF(U15="","","t de MS") -> 
B17: Lot N°5 | H17: =IF(D17="","",VLOOKUP(D17,$D$41:$F$50,3)) ->  | J17: =IF(D17="","",VLOOKUP(D17,$D$41:$E$50,2)) ->  | N17: =IF(D17="","",(F17*J17*L17)/1000) ->  | O17: =IF(D17="","","t de MS") -> 
R18: en pourcentage des besoins | U18: =IF(U15="","",U15/U10) -> 
B19: Lot N°6 | H19: =IF(D19="","",VLOOKUP(D19,$D$41:$F$50,3)) ->  | J19: =IF(D19="","",VLOOKUP(D19,$D$41:$E$50,2)) ->  | N19: =IF(D19="","",(F19*J19*L19)/1000) ->  | O19: =IF(D19="","","t de MS") -> 
R20: =IF(U8="","",IF(U15<0,"Attention ! votre bilan fourrager est déficitaire",IF(U15>10,"Votre bilan fourrager est excédentaire","Votre bilan fourrager est équilibré"))) -> 
B21: Lot N°7 | H21: =IF(D21="","",VLOOKUP(D21,$D$41:$F$50,3)) ->  | J21: =IF(D21="","",VLOOKUP(D21,$D$41:$E$50,2)) ->  | N21: =IF(D21="","",(F21*J21*L21)/1000) ->  | O21: =IF(D21="","","t de MS") -> 
B23: Lot N°8 | H23: =IF(D23="","",VLOOKUP(D23,$D$41:$F$50,3)) ->  | J23: =IF(D23="","",VLOOKUP(D23,$D$41:$E$50,2)) ->  | N23: =IF(D23="","",(F23*J23*L23)/1000) ->  | O23: =IF(D23="","","t de MS") ->  | R23: BILAN FOURRAGER (avec paille) | U23: =IF(STOCKS!W16="",IF(SUM(STOCKS!W10:W34)=0,"",IF(U10="","",U8-(U10*(1+(V13/100))))),IF(SUM(STOCKS!W10:W34)=0,"",IF(U10="","",U15+STOCKS!W16))) ->  | W23: =IF(U23="","","t de MS") -> 
B25: Lot N°9 | H25: =IF(D25="","",VLOOKUP(D25,$D$41:$F$50,3)) ->  | J25: =IF(D25="","",VLOOKUP(D25,$D$41:$E$50,2)) ->  | N25: =IF(D25="","",(F25*J25*L25)/1000) ->  | O25: =IF(D25="","","t de MS") -> 
R26: en pourcentage des besoins | U26: =IF(U23="","",U23/U10) -> 
B27: Lot N°10 | H27: =IF(D27="","",VLOOKUP(D27,$D$41:$F$50,3)) ->  | J27: =IF(D27="","",VLOOKUP(D27,$D$41:$E$50,2)) ->  | N27: =IF(D27="","",(F27*J27*L27)/1000) ->  | O27: =IF(D27="","","t de MS") -> 
D41: Agneau à l'engrais | E41: 0.5 | F41: 0.05
D42: Agnelle - 6 mois | E42: 0.5 | F42: 0.05
D43: Agnelle + 6 mois | E43: 1 | F43: 0.07 | S43: Brebis | T43: 0.15
D44: Bélier - 1 an | E44: 1.5 | F44: 0.15 | S44: Agnelles - 6 mois | T44: 0.05
D45: Bélier - 6 mois | E45: 1 | F45: 0.05 | S45: Agnelles 6 mois et + | T45: 0.07
D46: Bélier adulte | E46: 2.5 | F46: 0.15 | S46: Béliers - 6 mois | T46: 0.05
D47: Brebis allaitante | E47: 2 | F47: 0.15 | S47: Béliers 6 mois et + | T47: 0.15
D48: Brebis de réforme | E48: 2 | F48: 0.15 | S48: Mâle castré de +12 mois | T48: 0.15
D49: Brebis gestante | E49: 1.5 | F49: 0.15 | S49: Agneaux de boucherie | T49: 0.05
D50: Brebis traite | E50: 2 | F50: 0.15
D51: Brebis vide | E51: 2 | F51: 0.15
